Workbook

Sheet Recipe to Formula (1)
B2: EuCal | D2: version 1.91 | J2: TRUE | M2: FALSE
D3: Recipe to Formula | F3: Formula - Standard Molecular Unity | Z3: =+'%Analysis'!A5 -> Al2O3
E4: Batch | F4: K2O | G4: =C92 -> 0.07212759739 | H4: CaO | I4: =F92 -> 0.5355577261 | J4: Al2O3 | K4: =L92 -> 0.2697257336 | L4: SiO2 | M4: =M92 -> 1.778656693 | Z4: =+'%Analysis'!A6 -> Albany Slip
B5: Recipe | E5: Size | F5: Na2O | G5: =D92 -> 0.07493933991 | H5: MgO | I5: =G92 -> 0.3160330318 | J5: B2O3 | K5: =+K92 -> 0.1436274524 | L5: SiO2/Al2O3 | M5: =M4/K4 -> 6.594315897 | Z5: =+'%Analysis'!A7 -> Alumina Hydrate
B6: Mineral | C6: % | D6: Fit 100% | E6: 106 | F6: Li2O | G6: =E92 -> 0 | H6: SrO | I6: =I92 -> 0.00134230476 | J6: Fe2O3 | K6: =Q155/$H$156 -> 0.002364143348 | Z6: =+'%Analysis'!A8 -> B2O3
B7: Dolomite | C7: 12 | D7: =IF(C7>0,C7/SUM($C$7:$C$18)*100,"") -> 11.32075472 | E7: =IF(C7>0,D7*$E$6*0.01,"") -> 12 | F7: R2O | G7: =SUM(G4:G6) -> 0.1470669373 | H7: ZnO | I7: =J92 -> 0 | Z7: =+'%Analysis'!A9 -> BaCarb
B8: Gillespie Borate | C8: 14 | D8: 13.20754717 | E8: =IF(C8>0,D8*$E$6*0.01,"") -> 14 | F8: RO | G8: =SUM(I4:I8) -> 0.8529330627 | H8: BaO | I8: =H92 -> 0 | Z8: =+'%Analysis'!A10 -> BaO
B9: Wollastonite | C9: 10 | D9: 9.433962264 | E9: 10 | F9: Formula - Eutectics Only | Z9: =+'%Analysis'!A11 -> Barnard Slip
B10: Ferro3124 | C10: 8 | D10: 7.547169811 | E10: 8 | F10: K2O | G10: =C89 -> 0.1054547964 | H10: CaO | I10: =F89 -> 0.7830169453 | J10: Al2O3 | K10: =L89 -> 0.3062630893 | L10: SiO2 | M10: =M89 -> 2.526163266 | Z10: =+'%Analysis'!A12 -> Bentone MA
B11: Cornwall | C11: 46 | D11: 43.39622642 | E11: 46 | F11: Na2O | G11: =D89 -> 0.1095657296 | H11: MgO | I11: =G89 -> 0 | J11: B2O3 | K11: =K89 -> 0.2099917965 | L11: SiO2/Al2O3 | M11: =M10/K10 -> 8.248343837 | Z11: =+'%Analysis'!A13 -> Bentonite
B12: EPK | C12: 10 | D12: 9.433962264 | E12: 10 | F12: Li2O | G12: =E89 -> 0 | H12: SrO | I12: =I89 -> 0.001962528634 | Z12: =+'%Analysis'!A14 -> BoneAsh
F13: R2O | G13: =SUM(G10:G12) -> 0.2150205261 | H13: ZnO | I13: =J89 -> 0 | Z13: =+'%Analysis'!A15 -> Borax
B14: MgCarb | C14: 6 | D14: 5.660377358 | E14: 6 | F14: RO | G14: =SUM(I10:I14) -> 0.7849794739 | H14: BaO | I14: =H89 -> 0 | Z14: =+'%Analysis'!A16 -> CaO
F15: Oxides Excess to the Eutectics | Z15: =+'%Analysis'!A17 -> ChromeOxide
F16: K2O | G16: Na2O | H16: Li2O | I16: CaO | J16: MgO | K16: BaO | L16: SrO | M16: ZnO | Z16: =+'%Analysis'!A18 -> CMC Gum
F17: =C90 -> 0 | G17: 0 | H17: 0 | I17: 0 | J17: 0.46205891 | K17: 0 | L17: 0 | M17: 0 | Z17: =+'%Analysis'!A19 -> CoCarb
F18: Al2O3 | G18: SiO2 | L18: B2O3 | M18: Fe2O3 | Z18: =+'%Analysis'!A20 -> Coleman
C19: =SUM(C7:C18) -> 106 | D19: =SUM(D7:D18) -> 100 | E19: =SUM(E7:E18) -> 106 | F19: =L90 -> 0.08809182265 | G19: =M90 -> 0.07433759973 | L19: =+K90 -> 0 | M19: =(Q153/Q154)/$B$88 -> 0.003456516847 | Z19: =+'%Analysis'!A21 -> CoOxide
Z20: =+'%Analysis'!A22 -> Corn Old
Z21: =+'%Analysis'!A23 -> Cornwall
Z22: =+'%Analysis'!A24 -> Cu2O
Z23: =+'%Analysis'!A25 -> CuCarb
Z24: =+'%Analysis'!A26 -> Custer
Z25: =+'%Analysis'!A27 -> Custer - Old
Z26: =+'%Analysis'!A28 -> Dolomite
Z27: =+'%Analysis'!A29 -> EPK
C28: The Eutectics | Z28: =+'%Analysis'!A30 -> EPK - Calcined
B29: # | C29: K2O | D29: Na2O | E29: Li2O | F29: CaO | G29: MgO | H29: BaO | I29: SrO | J29: ZnO | K29: B2O3 | L29: Al2O3 | M29: SiO2 | N29: MP°C | Z29: =+'%Analysis'!A31 -> Fe2O3
B30: 1 | C30: 1 | K30: 2.119 | M30: 2.853 | N30: 630 | Z30: =+'%Analysis'!A32 -> Ferro3110
B31: 2 | C31: 1 | L31: 0.0972 | M31: 3.4243 | N31: 695 | Z31: =+'%Analysis'!A33 -> Ferro3124
B32: 3 | D32: 1 | L32: 0.2922 | M32: 2.44 | N32: 732 | Z32: =+'%Analysis'!A34 -> Ferro3134
B33: 4 | D33: 1 | K33: 1.3 | M33: 1.73 | N33: 790 | Z33: =+'%Analysis'!A35 -> Ferro3195
B34: 5 | E34: 1 | K34: 0.7 | M34: 0.3 | N34: 802 | Z34: =+'%Analysis'!A36 -> Flint
B35: 6 | F35: 1 | K35: 1.51 | M35: 0 | N35: 990 | Z35: =+'%Analysis'!A37 -> G-200
B36: 7 | E36: 1 | L36: 0.228 | M36: 1.6838 | N36: 1026 | O36: CaO/ZnO | P36: ZnO/CaO | Z36: =+'%Analysis'!A38 -> G200 HP
B37: 8 | F37: 0.544 | J37: 0.456 | L37: 0.1326 | M37: 1.3943 | N37: 1030 | O37: =+F37/J37 -> 1.192982456 | P37: =+J37/F37 -> 0.8382352941 | Z37: =+'%Analysis'!A39 -> Gerstley Borate
B38: 9 | H38: 1 | L38: 0.4058 | M38: 4.009 | N38: 1122 | Z38: =+'%Analysis'!A40 -> Gerstley Borate - 1999
B39: 10 | F39: 1 | L39: 0.3489 | M39: 2.4888 | N39: 1165 | Z39: =+'%Analysis'!A41 -> Gillespie Borate
B40: 11 | I40: 1 | L40: 0.2144 | M40: 2.8 | N40: 1176 | Z40: =+'%Analysis'!A42 -> Goldart
B41: 12 | G41: 1 | L41: 0.3374 | M41: 2.0287 | N41: 1350 | Z41: =+'%Analysis'!A43 -> Grolleg
Z42: =+'%Analysis'!A44 -> K2CO3
C43: The Eutectics by Weight | Z43: =+'%Analysis'!A45 -> K2O
B44: # | C44: K2O | D44: Na2O | E44: Li2O | F44: CaO | G44: MgO | H44: BaO | I44: SrO | J44: ZnO | K44: B2O3 | L44: Al2O3 | M44: SiO2 | N44: MP°C | Z44: =+'%Analysis'!A46 -> Kaolin
B45: 1 | C45: 22.8 | K45: 35.7 | M45: 41.5 | N45: 630 | O45: =SUM(C45:M45) -> 100 | Z45: =+'%Analysis'!A47 -> KFeld
B46: 2 | C46: 30.4 | L46: 3.2 | M46: 66.4 | N46: 695 | O46: 100 | Z46: =+'%Analysis'!A48 -> Kingman
B47: 3 | D47: 26 | L47: 12.5 | M47: 61.5 | N47: 732 | O47: 100 | Z47: =+'%Analysis'!A49 -> KonaF-4
B48: 4 | D48: 24.2 | K48: 35.2 | M48: 40.6 | N48: 790 | O48: 100 | Z48: =+'%Analysis'!A50 -> Leucite
B49: 5 | E49: 30.9 | K49: 50.4 | M49: 18.7 | N49: 802 | O49: 100 | Z49: =+'%Analysis'!A51 -> Li2O
B50: 6 | F50: 65.21 | K50: 34.79 | N50: 990 | O50: 100 | Z50: =+'%Analysis'!A52 -> LiCarb
B51: 7 | E51: 19.366 | L51: 15.067 | M51: 65.567 | N51: 1026 | O51: 100 | Z51: =+'%Analysis'!A53 -> LiSilicate
B52: 8 | F52: 18.5 | J52: 22.5 | L52: 8.2 | M52: 50.8 | N52: 1030 | O52: 100 | Z52: =+'%Analysis'!A54 -> Macaloid
B53: 9 | H53: 35.2 | L53: 9.5 | M53: 55.3 | N53: 1122 | O53: 100 | Z53: =+'%Analysis'!A55 -> MgCarb
B54: 10 | F54: 23.25 | L54: 14.75 | M54: 62 | N54: 1165 | O54: 100 | Z54: =+'%Analysis'!A56 -> MgO
B55: 11 | I55: 35.278 | L55: 7.443 | M55: 57.278 | N55: 1176 | O55: 99.999 | Z55: =+'%Analysis'!A57 -> Mahavir Feldspar
B56: 12 | G56: 20.5 | L56: 17.5 | M56: 62 | N56: 1350 | O56: 100 | Z56: =+'%Analysis'!A58 -> Minspar 200
Z57: =+'%Analysis'!A59 -> MnCarb
Z58: =+'%Analysis'!A60 -> MnO2
C59: WHAT'S LEFT AFTER EACH EUTECTIC - BY WEIGHT | O59: NEEDED | R59: AVAILABLE | T59: Ratios | V59: Possible | X59: AVAILABLE | Z59: =+'%Analysis'!A61 -> Na2CO3
A60: # | C60: K2O | D60: Na2O | E60: Li2O | F60: CaO | G60: MgO | H60: BaO | I60: SrO | J60: ZnO | K60: B2O3 | L60: Al2O3 | M60: SiO2 | N60: B2O3 | O60: Al2O3 | P60: SiO2 | Q60: B2O3 | R60: Al2O3 | S60: SiO2 | T60: CaO/ | U60: ZnO | V60: CaO | W60: ZnO | X60: CaO | Y60: ZnO | Z60: =+'%Analysis'!A62 -> Na2O
A61: Start | C61: =+H153 -> 307.74 | D61: =+I153 -> 210.38 | E61: =+J153 -> 0 | F61: =+K153 -> 1360.32 | G61: =+M153 -> 576.94 | H61: =+O153 -> 0 | I61: =+L153 -> 6.3 | J61: =+N153 -> 0 | K61: =+R153 -> 452.92 | L61: =+P153 -> 1245.68 | M61: =+S153 -> 4840.62 | Z61: =+'%Analysis'!A63 -> NaFeld
A62: 1 | B62: Used | C62: =IF(AND(N62<=Q62,P62<=S62),C61,MIN(Q62/N62,S62/P62)*C61) -> 289.2598319 | K62: =C62*(K45/C45) -> 452.92 | M62: =C62*(M45/C45) -> 526.5036415 | N62: =(K45/C45)*C61 -> 481.8560526 | P62: =(M45/C45)*C61 -> 560.1407895 | Q62: =+K61 -> 452.92 | S62: =M61 -> 4840.62 | Z62: =+'%Analysis'!A64 -> NephelineSyenite
A63: 1 | B63: Remaining | C63: =C61-C62 -> 18.48016807 | D63: =D61-D62 -> 210.38 | E63: 0 | F63: 1360.32 | G63: 576.94 | H63: 0 | I63: 6.3 | J63: 0 | K63: 0 | L63: 1245.68 | M63: 4314.116359 | Z63: =+'%Analysis'!A65 -> NiCarb
A64: 2 | B64: Used | C64: =IF(AND(O64<=R64,P64<=S64),C63,MIN(R64/O64,S64/P64)*C63) -> 18.48016807 | L64: =(L46/C46)*C64 -> 1.945280849 | M64: =(M46/C46)*C64 -> 40.36457762 | O64: =(L46/C46)*C63 -> 1.945280849 | P64: =(M46/C46)*C63 -> 40.36457762 | Q64: =+K63 -> 0 | R64: =L63 -> 1245.68 | S64: =M63 -> 4314.116359 | Z64: =+'%Analysis'!A66 -> OldHick
A65: 2 | B65: Remaining | C65: =C63-C64 -> 0 | D65: =D63-D64 -> 210.38 | E65: 0 | F65: 1360.32 | G65: 576.94 | H65: 0 | I65: 6.3 | J65: 0 | K65: 0 | L65: 1243.734719 | M65: 4273.751781 | Q65: =+K64 -> 0 | Z65: =+'%Analysis'!A67 -> OM4
A66: 3 | B66: Used | D66: =IF(AND(P66<=S66,O66<=R66),D65,MIN(S66/P66,R66/O66)*D65) -> 210.38 | L66: =D66*(L47/D47) -> 101.1442308 | M66: =D66*(M47/D47) -> 497.6296154 | O66: =D65*(L47/D47) -> 101.1442308 | P66: =D65*(M47/D47) -> 497.6296154 | Q66: =+K65 -> 0 | R66: =L65 -> 1243.734719 | S66: =M65 -> 4273.751781 | Z66: =+'%Analysis'!A68 -> P2O5
A67: 3 | B67: Remaining | C67: =C65-C66 -> 0 | D67: =D65-D66 -> 0 | E67: 0 | F67: 1360.32 | G67: 576.94 | H67: 0 | I67: 6.3 | J67: 0 | K67: 0 | L67: 1142.590488 | M67: 3776.122166 | Z67: =+'%Analysis'!A69 -> Petalite
A68: 4 | B68: Used | D68: =IF(AND(P68<=S68,N68<=Q68),D67,MIN(S68/P68,Q68/N68)*D67) -> 0 | K68: =D68*(K48/D48) -> 0 | M68: =D68*(M48/D48) -> 0 | N68: =+D67*(K48/D48) -> 0 | P68: =D67*(M48/D48) -> 0 | Q68: =K67 -> 0 | S68: =M67 -> 3776.122166 | Z68: =+'%Analysis'!A70 -> PlVit
A69: 4 | B69: Remaining | C69: =C67-C68 -> 0 | D69: =D67-D68 -> 0 | E69: 0 | F69: 1360.32 | G69: 576.94 | H69: 0 | I69: 6.3 | J69: 0 | K69: 0 | L69: 1142.590488 | M69: 3776.122166 | Z69: =+'%Analysis'!A71 -> Redart
A70: 5 | B70: Used | E70: =IF(AND(P70<=S70,N70<=Q70),E69,MIN(S70/P70,Q70/N70)*E69) -> 0 | K70: =E70*(K49/E49) -> 0 | M70: =E70*(M49/E49) -> 0 | N70: =E69*(K49/E49) -> 0 | P70: =E69*(M49/E49) -> 0 | Q70: =K69 -> 0 | S70: =M69 -> 3776.122166 | Z70: =+'%Analysis'!A72 -> Rutile
A71: 5 | B71: Remaining | C71: =C69-C70 -> 0 | D71: =D69-D70 -> 0 | E71: 0 | F71: 1360.32 | G71: 576.94 | H71: 0 | I71: 6.3 | J71: 0 | K71: 0 | L71: 1142.590488 | M71: 3776.122166 | V71: Used | Z71: =+'%Analysis'!A73 -> Silica
A72: 6 | B72: Used | F72: =IF((N72<=K71),F71,(F50/K50)*K71) -> 0 | K72: =F72*(K50/F50) -> 0 | N72: =F71*(K50/F50) -> 725.7404202 | Z72: =+'%Analysis'!A74 -> SiO2
A73: 6 | B73: Remaining | C73: =C71-C72 -> 0 | D73: 0 | E73: 0 | F73: 1360.32 | G73: 576.94 | H73: 0 | I73: 6.3 | J73: 0 | K73: 0 | L73: 1142.590488 | M73: 3776.122166 | Z73: =+'%Analysis'!A75 -> Spodumene
A74: 7 | B74: Used | E74: =IF(AND(O74<=R74,P74<=S74),E71,(MIN(R74/O74,S74/P74)*E71)) -> 0 | L74: =E74*(L51/E51) -> 0 | M74: =E74*(M51/E51) -> 0 | O74: =E71*(L51/E51) -> 0 | P74: =E71*(M51/E51) -> 0 | R74: =L71 -> 1142.590488 | S74: =M71 -> 3776.122166 | T74: eutectic | U74: available | V74: if not limited by | Z74: =+'%Analysis'!A76 -> SrCarb
A75: 7 | B75: Remaining | C75: =C73-C74 -> 0 | D75: 0 | E75: 0 | F75: 1360.32 | G75: 576.94 | H75: 0 | I75: 6.3 | J75: 0 | K75: 0 | L75: 1142.590488 | M75: 3776.122166 | R75: =L75 -> 1142.590488 | S75: =M75 -> 3776.122166 | T75: ratio | U75: ratio | V75: Al2O3 or SiO2 | Z75: =+'%Analysis'!A77 -> SrO
A76: 8 | B76: Used | F76: =IF(U76=0,0,IF(AND(O76<=R76,P76<=S76),V76,(MIN(R76/O76,S76/P76)*V76))) -> 0 | J76: =IF(U76=0,0,IF(AND(O76<R76,P76<S76),W76,(MIN(R76/O76,S76/P76)*W76))) -> 0 | L76: =J76*(L52/J52) -> 0 | M76: =J76*(M52/J52) -> 0 | O76: =V76*(L52/F52) -> 602.9526486 | P76: =V76*(M52/F52) -> 3735.365189 | R76: =R75 -> 1142.590488 | S76: =S75 -> 3776.122166 | T76: =F52/J52 -> 0.8222222222 | U76: =IF(OR(J61=0,F61=0),0,F75/J75) -> 0 | V76: =IF(U76<T76,F75,(J75*T76)) -> 1360.32 | W76: =IF(U76>T76,J75,F75/T76) -> 1654.443243 | Z76: =+'%Analysis'!A78 -> Superpax
A77: 8 | B77: Remaining | C77: 0 | D77: 0 | E77: 0 | F77: 1360.32 | G77: 576.94 | H77: 0 | I77: 6.3 | J77: =J75-J76 -> 0 | K77: =K75-K76 -> 0 | L77: =L75-L76 -> 1142.590488 | M77: =M75-M76 -> 3776.122166 | R77: =L77 -> 1142.590488 | S77: =M77 -> 3776.122166 | Z77: =+'%Analysis'!A79 -> Talc - NYTAL
A78: 9 | B78: Used | H78: =IF(AND(O78<=R78,P78<=S78),H77,MIN(R78/O78,S78/P78)*H77) -> 0 | L78: =H78*(L53/H53) -> 0 | M78: =H78*(M53/H53) -> 0 | O78: =H77*(L53/H53) -> 0 | P78: =H77*(M53/H53) -> 0 | R78: =R77 -> 1142.590488 | S78: =S77 -> 3776.122166 | Z78: =+'%Analysis'!A80 -> Talc - Texas
A79: 9 | B79: Remaining | C79: =C77-C78 -> 0 | D79: 0 | E79: 0 | F79: 1360.32 | G79: 576.94 | H79: 0 | I79: 6.3 | J79: =J77-J78 -> 0 | K79: =K77-K78 -> 0 | L79: =L77-L78 -> 1142.590488 | M79: =M77-M78 -> 3776.122166 | Z79: =+'%Analysis'!A81 -> TinOxide
A80: 10 | B80: Used | F80: =IF(AND(P80<=S80,O80<=R80),F79,MIN(S80/P80,R80/O80)*F79) -> 1360.32 | L80: =F80*(L54/F54) -> 862.9987097 | M80: =F80*(M54/F54) -> 3627.52 | O80: =F79*(L54/F54) -> 862.9987097 | P80: =F79*(M54/F54) -> 3627.52 | R80: =L79 -> 1142.590488 | S80: =M79 -> 3776.122166 | Z80: =+'%Analysis'!A82 -> TiO2
A81: 10 | B81: Remaining | C81: =C79-C80 -> 0 | D81: =D79-D80 -> 0 | E81: 0 | F81: 0 | G81: 576.94 | H81: 0 | I81: 6.3 | J81: 0 | K81: 0 | L81: 279.5917787 | M81: 148.6021655 | R81: =L81 -> 279.5917787 | S81: =M81 -> 148.6021655 | Z81: =+'%Analysis'!A83 -> Ultrox
A82: 11 | B82: Used | I82: =IF(J2=TRUE,IF(AND(O82<=R82,P82<=S82),I81,MIN(R82/O82,S82/P82)*I81),0) -> 6.3 | L82: =I82*(L55/I55) -> 1.329182493 | M82: =I82*(M55/I55) -> 10.22879415 | O82: =I81*(L55/I55) -> 1.329182493 | P82: =I81*(M55/I55) -> 10.22879415 | R82: =R81 -> 279.5917787 | S82: =S81 -> 148.6021655 | Z82: =+'%Analysis'!A84 -> Veegum
A83: 11 | B83: Remaining | C83: =C81-C82 -> 0 | D83: =D81-D82 -> 0 | E83: 0 | F83: 0 | G83: 576.94 | H83: 0 | I83: 0 | J83: 0 | K83: 0 | L83: 278.2625962 | M83: 138.3733714 | R83: =L83 -> 278.2625962 | S83: =M83 -> 138.3733714 | Z83: =+'%Analysis'!A85 -> VolAsh
A84: 12 | B84: Used | G84: =IF(M2=TRUE,IF(AND(O84<=R84,P84<=S84),G83,MIN(R84/O84,S84/P84)*G83),0) -> 0 | L84: =G84*(L56/G56) -> 0 | M84: =G84*(M56/G56) -> 0 | O84: =G83*(L56/G56) -> 492.5097561 | P84: =G83*(M56/G56) -> 1744.891707 | R84: =R83 -> 278.2625962 | S84: =S83 -> 138.3733714 | Z84: =+'%Analysis'!A86 -> Westex Talc
A85: 12 | B85: Remaining | C85: =C83-C84 -> 0 | D85: =D83-D84 -> 0 | E85: 0 | F85: 0 | G85: 576.94 | H85: 0 | I85: 0 | J85: 0 | K85: 0 | L85: 278.2625962 | M85: 138.3733714 | Z85: =+'%Analysis'!A87 -> Whiting
B86: Used in Eutectics | C86: =C61-C85 -> 307.74 | D86: 210.38 | E86: 0 | F86: 1360.32 | G86: 0 | H86: 0 | I86: 6.3 | J86: =J61-J85 -> 0 | K86: 452.92 | L86: =L61-L85 -> 967.4174038 | M86: =M61-M85 -> 4702.246629 | Z86: =+'%Analysis'!A88 -> Wollastonite
B87: MW | C87: 94.196 | D87: 61.979 | E87: 29.881 | F87: 56.077 | G87: 40.304 | H87: 153.326 | I87: 103.619 | J87: 81.379 | K87: 69.62 | L87: 101.961 | M87: 60.084 | Z87: =+'%Analysis'!A89 -> Yellow Ochre
B88: =SUM(C88:J88) -> 30.9802666 | C88: =C86/C87 -> 3.267017708 | D88: =D86/D87 -> 3.394375514 | E88: =E86/E87 -> 0 | F88: =F86/F87 -> 24.25807372 | G88: =IF(M2=TRUE,G86/G87,0) -> 0 | H88: =H86/H87 -> 0 | I88: =IF(J2=TRUE,I86/I87,0) -> 0.06079966029 | J88: =J86/J87 -> 0 | K88: =K86/K87 -> 6.505601839 | L88: =L86/L87 -> 9.488112158 | M88: =M86/M87 -> 78.26121145 | V88: =V76/W76 -> 0.8222222222 | Z88: =+'%Analysis'!A90 -> Zircopax
B89: Used in Eutectics | C89: =C88/$B$88 -> 0.1054547964 | D89: 0.1095657296 | E89: 0 | F89: 0.7830169453 | G89: 0 | H89: 0 | I89: 0.001962528634 | J89: 0 | K89: =K88/$B$88 -> 0.2099917965 | L89: =L88/$B$88 -> 0.3062630893 | M89: =M88/$B$88 -> 2.526163266 | Z89: =+'%Analysis'!A91 -> ZnO
B90: Excess | C90: =(C85/C87)/$B$88 -> 0 | D90: 0 | E90: 0 | F90: 0 | G90: 0.46205891 | H90: 0 | I90: 0 | J90: =(J85/J87)/$B$88 -> 0 | K90: =(K85/K87)/$B$88 -> 0 | L90: =(L85/L87)/$B$88 -> 0.08809182265 | M90: =(M85/M87)/$B$88 -> 0.07433759973 | Z90: =+'%Analysis'!A92 -> 0
B91: UMF | C91: =C61/C87 -> 3.267017708 | D91: 3.394375514 | E91: 0 | F91: 24.25807372 | G91: 14.31470822 | H91: 0 | I91: 0.06079966029 | J91: =J61/J87 -> 0 | K91: =K61/K87 -> 6.505601839 | L91: =L61/L87 -> 12.21722031 | M91: =M61/M87 -> 80.56421011 | Z91: =+'%Analysis'!A93 -> 0
B92: =SUM(C91:J91) -> 45.29497482 | C92: =C91/$B$92 -> 0.07212759739 | D92: 0.07493933991 | E92: 0 | F92: 0.5355577261 | G92: 0.3160330318 | H92: 0 | I92: 0.00134230476 | J92: 0 | K92: =K91/$B$92 -> 0.1436274524 | L92: =L91/$B$92 -> 0.2697257336 | M92: =M91/$B$92 -> 1.778656693 | Z92: =+'%Analysis'!A94 -> 0
Z93: =+'%Analysis'!A95 -> 0
C94: K2O | D94: Na2O | E94: Li2O | F94: CaO | G94: MgO | H94: BaO | I94: SrO | J94: ZnO | K94: Al2O3 | L94: SiO2 | M94: Fe2O3 | O94: B2O3 | P94: TiO2 | Z94: =+'%Analysis'!A96 -> 0
B95: Weight % | C95: =+C86/(SUM($C$86:$M$86)) -> 0.03843231506 | D95: 0.02627344655 | E95: 0 | F95: 0.1698844701 | G95: 0 | H95: 0 | I95: 0.0007867797 | J95: 0 | K95: =+L86/(SUM($C$86:$M$86)) -> 0.1208165674 | L95: =+M86/(SUM($C$86:$M$86)) -> 0.587243205 | M95: =+O86/(SUM($C$86:$M$86)) -> 0 | O95: =+P86/(SUM($C$86:$M$86)) -> 0 | P95: =+R86/(SUM($C$86:$M$86)) -> 0 | Z95: =+'%Analysis'!A97 -> 0
Z96: =+'%Analysis'!A98 -> 0
Z97: =+'%Analysis'!A99 -> 0
B98: Mineral | C98: Percent | F98: Tot % | H98: K2O | I98: Na2O | J98: Li2O | K98: CaO | L98: SrO | M98: MgO | O98: ZnO | P98: BaO | Q98: Al2O3 | R98: Fe2O3 | S98: B2O3 | T98: SiO2 | U98: TiO2 | V98: CO2 | W98: H2O | Z98: =+'%Analysis'!A100 -> 0
C99: Weight Totals | F99: 0.926725032 | H99: 408.9 | I99: 170.5 | J99: 0 | K99: 1904.387202 | L99: 0 | M99: 1.4 | O99: 0 | P99: 0 | Q99: 1124.7 | R99: 16.3 | S99: 280 | T99: 5482.7 | U99: 0 | V99: 1319.112798 | W99: 280 | Z99: =+'%Analysis'!A101 -> 0
Z100: =+'%Analysis'!A102 -> 0
Z101: =+'%Analysis'!A103 -> 0
Z102: =+'%Analysis'!A104 -> 0
Z103: =+'%Analysis'!A105 -> 0
Z104: =+'%Analysis'!A106 -> 0
Z105: =+'%Analysis'!A107 -> 0
Z106: =+'%Analysis'!A108 -> 0
Z107: =+'%Analysis'!A109 -> 0
Z108: =+'%Analysis'!A110 -> 0
Z109: =+'%Analysis'!A111 -> 0
Z110: =+'%Analysis'!A112 -> 0
Z111: =+'%Analysis'!A113 -> 0
Z112: =+'%Analysis'!A114 -> 0
Z113: =+'%Analysis'!A115 -> 0
Z114: =+'%Analysis'!A116 -> 0
Z115: =+'%Analysis'!A117 -> 0
Z116: =+'%Analysis'!A118 -> 0
Z117: =+'%Analysis'!A119 -> 0
Z118: =+'%Analysis'!A120 -> 0
Z119: =+'%Analysis'!A121 -> 0
Z120: =+'%Analysis'!A122 -> 0
Z121: =+'%Analysis'!A123 -> 0
Z122: =+'%Analysis'!A124 -> 0
Z123: =+'%Analysis'!A125 -> 0
Z124: =+'%Analysis'!A126 -> 0
Z125: =+'%Analysis'!A127 -> 0
Z126: =+'%Analysis'!A128 -> 0
Z127: =+'%Analysis'!A129 -> 0
Z128: =+'%Analysis'!A130 -> 0
Z129: =+'%Analysis'!A131 -> 0
Z130: =+'%Analysis'!A132 -> 0
Z131: =+'%Analysis'!A133 -> 0
Z132: =+'%Analysis'!A134 -> 0
Z133: =+'%Analysis'!A135 -> 0
Z134: =+'%Analysis'!A136 -> 0
B135: Mineral | C135: Percent | F135: Tot % | H135: K2O | I135: Na2O | J135: Li2O | K135: CaO | L135: SrO | M135: MgO | N135: ZnO | O135: BaO | P135: Al2O3 | Q135: Fe2O3 | R135: B2O3 | S135: SiO2 | T135: TiO2 | U135: CO2 | V135: H2O | Z135: =+'%Analysis'!A137 -> 0
B136: =B7 -> Dolomite | C136: 12 | H136: =IF(ISERROR(+$C136*+VLOOKUP($B136,'%Analysis'!$A$4:$S$204,4,0)),"",+$C136*+VLOOKUP($B136,'%Analysis'!$A$4:$S$204,4,0)) -> 0 | I136: =IF(ISERROR(+$C136*+VLOOKUP($B136,'%Analysis'!$A$4:$S$204,5,0)),"",+$C136*+VLOOKUP($B136,'%Analysis'!$A$4:$S$204,5,0)) -> 0 | J136: =IF(ISERROR(+$C136*+VLOOKUP($B136,'%Analysis'!$A$4:$S$204,6,0)),"",+$C136*+VLOOKUP($B136,'%Analysis'!$A$4:$S$204,6,0)) -> 0 | K136: =IF(ISERROR(+$C136*+VLOOKUP($B136,'%Analysis'!$A$4:$S$204,7,0)),"",+$C136*+VLOOKUP($B136,'%Analysis'!$A$4:$S$204,7,0)) -> 365.88 | L136: =IF(ISERROR(+$C136*+VLOOKUP($B136,'%Analysis'!$A$4:$S$204,8,0)),"",+$C136*+VLOOKUP($B136,'%Analysis'!$A$4:$S$204,8,0)) -> 0 | M136: =IF(ISERROR(+$C136*+VLOOKUP($B136,'%Analysis'!$A$4:$S$204,9,0)),"",+$C136*+VLOOKUP($B136,'%Analysis'!$A$4:$S$204,9,0)) -> 262.8 | N136: =IF(ISERROR(+$C136*+VLOOKUP($B136,'%Analysis'!$A$4:$S$204,10,0)),"",+$C136*+VLOOKUP($B136,'%Analysis'!$A$4:$S$204,10,0)) -> 0 | O136: =IF(ISERROR(+$C136*+VLOOKUP($B136,'%Analysis'!$A$4:$S$204,11,0)),"",+$C136*+VLOOKUP($B136,'%Analysis'!$A$4:$S$204,11,0)) -> 0 | P136: =IF(ISERROR(+$C136*+VLOOKUP($B136,'%Analysis'!$A$4:$S$204,12,0)),"",+$C136*+VLOOKUP($B136,'%Analysis'!$A$4:$S$204,12,0)) -> 0 | Q136: =IF(ISERROR(+$C136*+VLOOKUP($B136,'%Analysis'!$A$4:$S$204,13,0)),"",+$C136*+VLOOKUP($B136,'%Analysis'!$A$4:$S$204,13,0)) -> 0 | R136: =IF(ISERROR(+$C136*+VLOOKUP($B136,'%Analysis'!$A$4:$S$204,14,0)),"",+$C136*+VLOOKUP($B136,'%Analysis'!$A$4:$S$204,14,0)) -> 0 | S136: =IF(ISERROR(+$C136*+VLOOKUP($B136,'%Analysis'!$A$4:$S$204,15,0)),"",+$C136*+VLOOKUP($B136,'%Analysis'!$A$4:$S$204,15,0)) -> 0 | T136: =IF(ISERROR(+$C136*+VLOOKUP($B136,'%Analysis'!$A$4:$S$204,16,0)),"",+$C136*+VLOOKUP($B136,'%Analysis'!$A$4:$S$204,16,0)) -> 0 | U136: =IF(ISERROR(+$C136*+VLOOKUP($B136,'%Analysis'!$A$4:$S$204,17,0)),"",+$C136*+VLOOKUP($B136,'%Analysis'!$A$4:$S$204,17,0)) -> 571.32 | V136: =IF(ISERROR(+$C136*+VLOOKUP($B136,'%Analysis'!$A$4:$S$204,18,0)),"",+$C136*+VLOOKUP($B136,'%Analysis'!$A$4:$S$204,18,0)) -> 0 | Z136: =+'%Analysis'!A138 -> 0
B137: Gillespie Borate | C137: 14 | H137: =IF(ISERROR(+$C137*+VLOOKUP($B137,'%Analysis'!$A$4:$S$204,4,0)),"",+$C137*+VLOOKUP($B137,'%Analysis'!$A$4:$S$204,4,0)) -> 0 | I137: =IF(ISERROR(+$C137*+VLOOKUP($B137,'%Analysis'!$A$4:$S$204,5,0)),"",+$C137*+VLOOKUP($B137,'%Analysis'!$A$4:$S$204,5,0)) -> 52.78 | J137: =IF(ISERROR(+$C137*+VLOOKUP($B137,'%Analysis'!$A$4:$S$204,6,0)),"",+$C137*+VLOOKUP($B137,'%Analysis'!$A$4:$S$204,6,0)) -> 0 | K137: =IF(ISERROR(+$C137*+VLOOKUP($B137,'%Analysis'!$A$4:$S$204,7,0)),"",+$C137*+VLOOKUP($B137,'%Analysis'!$A$4:$S$204,7,0)) -> 322 | L137: =IF(ISERROR(+$C137*+VLOOKUP($B137,'%Analysis'!$A$4:$S$204,8,0)),"",+$C137*+VLOOKUP($B137,'%Analysis'!$A$4:$S$204,8,0)) -> 6.3 | M137: =IF(ISERROR(+$C137*+VLOOKUP($B137,'%Analysis'!$A$4:$S$204,9,0)),"",+$C137*+VLOOKUP($B137,'%Analysis'!$A$4:$S$204,9,0)) -> 54.6 | N137: =IF(ISERROR(+$C137*+VLOOKUP($B137,'%Analysis'!$A$4:$S$204,10,0)),"",+$C137*+VLOOKUP($B137,'%Analysis'!$A$4:$S$204,10,0)) -> 0 | O137: =IF(ISERROR(+$C137*+VLOOKUP($B137,'%Analysis'!$A$4:$S$204,11,0)),"",+$C137*+VLOOKUP($B137,'%Analysis'!$A$4:$S$204,11,0)) -> 0 | P137: =IF(ISERROR(+$C137*+VLOOKUP($B137,'%Analysis'!$A$4:$S$204,12,0)),"",+$C137*+VLOOKUP($B137,'%Analysis'!$A$4:$S$204,12,0)) -> 23.8 | Q137: =IF(ISERROR(+$C137*+VLOOKUP($B137,'%Analysis'!$A$4:$S$204,13,0)),"",+$C137*+VLOOKUP($B137,'%Analysis'!$A$4:$S$204,13,0)) -> 0 | R137: =IF(ISERROR(+$C137*+VLOOKUP($B137,'%Analysis'!$A$4:$S$204,14,0)),"",+$C137*+VLOOKUP($B137,'%Analysis'!$A$4:$S$204,14,0)) -> 343 | S137: =IF(ISERROR(+$C137*+VLOOKUP($B137,'%Analysis'!$A$4:$S$204,15,0)),"",+$C137*+VLOOKUP($B137,'%Analysis'!$A$4:$S$204,15,0)) -> 165.2 | T137: =IF(ISERROR(+$C137*+VLOOKUP($B137,'%Analysis'!$A$4:$S$204,16,0)),"",+$C137*+VLOOKUP($B137,'%Analysis'!$A$4:$S$204,16,0)) -> 0 | U137: =IF(ISERROR(+$C137*+VLOOKUP($B137,'%Analysis'!$A$4:$S$204,17,0)),"",+$C137*+VLOOKUP($B137,'%Analysis'!$A$4:$S$204,17,0)) -> 432.6 | V137: =IF(ISERROR(+$C137*+VLOOKUP($B137,'%Analysis'!$A$4:$S$204,18,0)),"",+$C137*+VLOOKUP($B137,'%Analysis'!$A$4:$S$204,18,0)) -> 0 | Z137: =+'%Analysis'!A139 -> 0
B138: Wollastonite | C138: 10 | H138: =IF(ISERROR(+$C138*+VLOOKUP($B138,'%Analysis'!$A$4:$S$204,4,0)),"",+$C138*+VLOOKUP($B138,'%Analysis'!$A$4:$S$204,4,0)) -> 0 | I138: =IF(ISERROR(+$C138*+VLOOKUP($B138,'%Analysis'!$A$4:$S$204,5,0)),"",+$C138*+VLOOKUP($B138,'%Analysis'!$A$4:$S$204,5,0)) -> 0 | J138: =IF(ISERROR(+$C138*+VLOOKUP($B138,'%Analysis'!$A$4:$S$204,6,0)),"",+$C138*+VLOOKUP($B138,'%Analysis'!$A$4:$S$204,6,0)) -> 0 | K138: =IF(ISERROR(+$C138*+VLOOKUP($B138,'%Analysis'!$A$4:$S$204,7,0)),"",+$C138*+VLOOKUP($B138,'%Analysis'!$A$4:$S$204,7,0)) -> 482.8 | L138: =IF(ISERROR(+$C138*+VLOOKUP($B138,'%Analysis'!$A$4:$S$204,8,0)),"",+$C138*+VLOOKUP($B138,'%Analysis'!$A$4:$S$204,8,0)) -> 0 | M138: =IF(ISERROR(+$C138*+VLOOKUP($B138,'%Analysis'!$A$4:$S$204,9,0)),"",+$C138*+VLOOKUP($B138,'%Analysis'!$A$4:$S$204,9,0)) -> 0 | N138: =IF(ISERROR(+$C138*+VLOOKUP($B138,'%Analysis'!$A$4:$S$204,10,0)),"",+$C138*+VLOOKUP($B138,'%Analysis'!$A$4:$S$204,10,0)) -> 0 | O138: =IF(ISERROR(+$C138*+VLOOKUP($B138,'%Analysis'!$A$4:$S$204,11,0)),"",+$C138*+VLOOKUP($B138,'%Analysis'!$A$4:$S$204,11,0)) -> 0 | P138: =IF(ISERROR(+$C138*+VLOOKUP($B138,'%Analysis'!$A$4:$S$204,12,0)),"",+$C138*+VLOOKUP($B138,'%Analysis'!$A$4:$S$204,12,0)) -> 0 | Q138: =IF(ISERROR(+$C138*+VLOOKUP($B138,'%Analysis'!$A$4:$S$204,13,0)),"",+$C138*+VLOOKUP($B138,'%Analysis'!$A$4:$S$204,13,0)) -> 0 | R138: =IF(ISERROR(+$C138*+VLOOKUP($B138,'%Analysis'!$A$4:$S$204,14,0)),"",+$C138*+VLOOKUP($B138,'%Analysis'!$A$4:$S$204,14,0)) -> 0 | S138: =IF(ISERROR(+$C138*+VLOOKUP($B138,'%Analysis'!$A$4:$S$204,15,0)),"",+$C138*+VLOOKUP($B138,'%Analysis'!$A$4:$S$204,15,0)) -> 517.2 | T138: =IF(ISERROR(+$C138*+VLOOKUP($B138,'%Analysis'!$A$4:$S$204,16,0)),"",+$C138*+VLOOKUP($B138,'%Analysis'!$A$4:$S$204,16,0)) -> 0 | U138: =IF(ISERROR(+$C138*+VLOOKUP($B138,'%Analysis'!$A$4:$S$204,17,0)),"",+$C138*+VLOOKUP($B138,'%Analysis'!$A$4:$S$204,17,0)) -> 0 | V138: =IF(ISERROR(+$C138*+VLOOKUP($B138,'%Analysis'!$A$4:$S$204,18,0)),"",+$C138*+VLOOKUP($B138,'%Analysis'!$A$4:$S$204,18,0)) -> 0 | Z138: =+'%Analysis'!A140 -> 0
B139: Ferro3124 | C139: 8 | H139: =IF(ISERROR(+$C139*+VLOOKUP($B139,'%Analysis'!$A$4:$S$204,4,0)),"",+$C139*+VLOOKUP($B139,'%Analysis'!$A$4:$S$204,4,0)) -> 5.44 | I139: =IF(ISERROR(+$C139*+VLOOKUP($B139,'%Analysis'!$A$4:$S$204,5,0)),"",+$C139*+VLOOKUP($B139,'%Analysis'!$A$4:$S$204,5,0)) -> 51.2 | J139: =IF(ISERROR(+$C139*+VLOOKUP($B139,'%Analysis'!$A$4:$S$204,6,0)),"",+$C139*+VLOOKUP($B139,'%Analysis'!$A$4:$S$204,6,0)) -> 0 | K139: =IF(ISERROR(+$C139*+VLOOKUP($B139,'%Analysis'!$A$4:$S$204,7,0)),"",+$C139*+VLOOKUP($B139,'%Analysis'!$A$4:$S$204,7,0)) -> 114.24 | L139: =IF(ISERROR(+$C139*+VLOOKUP($B139,'%Analysis'!$A$4:$S$204,8,0)),"",+$C139*+VLOOKUP($B139,'%Analysis'!$A$4:$S$204,8,0)) -> 0 | M139: =IF(ISERROR(+$C139*+VLOOKUP($B139,'%Analysis'!$A$4:$S$204,9,0)),"",+$C139*+VLOOKUP($B139,'%Analysis'!$A$4:$S$204,9,0)) -> 0 | N139: =IF(ISERROR(+$C139*+VLOOKUP($B139,'%Analysis'!$A$4:$S$204,10,0)),"",+$C139*+VLOOKUP($B139,'%Analysis'!$A$4:$S$204,10,0)) -> 0 | O139: =IF(ISERROR(+$C139*+VLOOKUP($B139,'%Analysis'!$A$4:$S$204,11,0)),"",+$C139*+VLOOKUP($B139,'%Analysis'!$A$4:$S$204,11,0)) -> 0 | P139: =IF(ISERROR(+$C139*+VLOOKUP($B139,'%Analysis'!$A$4:$S$204,12,0)),"",+$C139*+VLOOKUP($B139,'%Analysis'!$A$4:$S$204,12,0)) -> 80.08 | Q139: =IF(ISERROR(+$C139*+VLOOKUP($B139,'%Analysis'!$A$4:$S$204,13,0)),"",+$C139*+VLOOKUP($B139,'%Analysis'!$A$4:$S$204,13,0)) -> 0 | R139: =IF(ISERROR(+$C139*+VLOOKUP($B139,'%Analysis'!$A$4:$S$204,14,0)),"",+$C139*+VLOOKUP($B139,'%Analysis'!$A$4:$S$204,14,0)) -> 109.92 | S139: =IF(ISERROR(+$C139*+VLOOKUP($B139,'%Analysis'!$A$4:$S$204,15,0)),"",+$C139*+VLOOKUP($B139,'%Analysis'!$A$4:$S$204,15,0)) -> 439.52 | T139: =IF(ISERROR(+$C139*+VLOOKUP($B139,'%Analysis'!$A$4:$S$204,16,0)),"",+$C139*+VLOOKUP($B139,'%Analysis'!$A$4:$S$204,16,0)) -> 0 | U139: =IF(ISERROR(+$C139*+VLOOKUP($B139,'%Analysis'!$A$4:$S$204,17,0)),"",+$C139*+VLOOKUP($B139,'%Analysis'!$A$4:$S$204,17,0)) -> 0 | V139: =IF(ISERROR(+$C139*+VLOOKUP($B139,'%Analysis'!$A$4:$S$204,18,0)),"",+$C139*+VLOOKUP($B139,'%Analysis'!$A$4:$S$204,18,0)) -> 0 | Z139: =+'%Analysis'!A141 -> 0
B140: Cornwall | C140: 46 | H140: =IF(ISERROR(+$C140*+VLOOKUP($B140,'%Analysis'!$A$4:$S$204,4,0)),"",+$C140*+VLOOKUP($B140,'%Analysis'!$A$4:$S$204,4,0)) -> 299 | I140: =IF(ISERROR(+$C140*+VLOOKUP($B140,'%Analysis'!$A$4:$S$204,5,0)),"",+$C140*+VLOOKUP($B140,'%Analysis'!$A$4:$S$204,5,0)) -> 105.8 | J140: =IF(ISERROR(+$C140*+VLOOKUP($B140,'%Analysis'!$A$4:$S$204,6,0)),"",+$C140*+VLOOKUP($B140,'%Analysis'!$A$4:$S$204,6,0)) -> 0 | K140: =IF(ISERROR(+$C140*+VLOOKUP($B140,'%Analysis'!$A$4:$S$204,7,0)),"",+$C140*+VLOOKUP($B140,'%Analysis'!$A$4:$S$204,7,0)) -> 73.6 | L140: =IF(ISERROR(+$C140*+VLOOKUP($B140,'%Analysis'!$A$4:$S$204,8,0)),"",+$C140*+VLOOKUP($B140,'%Analysis'!$A$4:$S$204,8,0)) -> 0 | M140: =IF(ISERROR(+$C140*+VLOOKUP($B140,'%Analysis'!$A$4:$S$204,9,0)),"",+$C140*+VLOOKUP($B140,'%Analysis'!$A$4:$S$204,9,0)) -> 0 | N140: =IF(ISERROR(+$C140*+VLOOKUP($B140,'%Analysis'!$A$4:$S$204,10,0)),"",+$C140*+VLOOKUP($B140,'%Analysis'!$A$4:$S$204,10,0)) -> 0 | O140: =IF(ISERROR(+$C140*+VLOOKUP($B140,'%Analysis'!$A$4:$S$204,11,0)),"",+$C140*+VLOOKUP($B140,'%Analysis'!$A$4:$S$204,11,0)) -> 0 | P140: =IF(ISERROR(+$C140*+VLOOKUP($B140,'%Analysis'!$A$4:$S$204,12,0)),"",+$C140*+VLOOKUP($B140,'%Analysis'!$A$4:$S$204,12,0)) -> 768.2 | Q140: =IF(ISERROR(+$C140*+VLOOKUP($B140,'%Analysis'!$A$4:$S$204,13,0)),"",+$C140*+VLOOKUP($B140,'%Analysis'!$A$4:$S$204,13,0)) -> 9.2 | R140: =IF(ISERROR(+$C140*+VLOOKUP($B140,'%Analysis'!$A$4:$S$204,14,0)),"",+$C140*+VLOOKUP($B140,'%Analysis'!$A$4:$S$204,14,0)) -> 0 | S140: =IF(ISERROR(+$C140*+VLOOKUP($B140,'%Analysis'!$A$4:$S$204,15,0)),"",+$C140*+VLOOKUP($B140,'%Analysis'!$A$4:$S$204,15,0)) -> 3261.4 | T140: =IF(ISERROR(+$C140*+VLOOKUP($B140,'%Analysis'!$A$4:$S$204,16,0)),"",+$C140*+VLOOKUP($B140,'%Analysis'!$A$4:$S$204,16,0)) -> 23 | U140: =IF(ISERROR(+$C140*+VLOOKUP($B140,'%Analysis'!$A$4:$S$204,17,0)),"",+$C140*+VLOOKUP($B140,'%Analysis'!$A$4:$S$204,17,0)) -> 0 | V140: =IF(ISERROR(+$C140*+VLOOKUP($B140,'%Analysis'!$A$4:$S$204,18,0)),"",+$C140*+VLOOKUP($B140,'%Analysis'!$A$4:$S$204,18,0)) -> 0 | Z140: =+'%Analysis'!A142 -> 0
B141: EPK | C141: 10 | H141: =IF(ISERROR(+$C141*+VLOOKUP($B141,'%Analysis'!$A$4:$S$204,4,0)),"",+$C141*+VLOOKUP($B141,'%Analysis'!$A$4:$S$204,4,0)) -> 3.3 | I141: =IF(ISERROR(+$C141*+VLOOKUP($B141,'%Analysis'!$A$4:$S$204,5,0)),"",+$C141*+VLOOKUP($B141,'%Analysis'!$A$4:$S$204,5,0)) -> 0.6 | J141: =IF(ISERROR(+$C141*+VLOOKUP($B141,'%Analysis'!$A$4:$S$204,6,0)),"",+$C141*+VLOOKUP($B141,'%Analysis'!$A$4:$S$204,6,0)) -> 0 | K141: =IF(ISERROR(+$C141*+VLOOKUP($B141,'%Analysis'!$A$4:$S$204,7,0)),"",+$C141*+VLOOKUP($B141,'%Analysis'!$A$4:$S$204,7,0)) -> 1.8 | L141: =IF(ISERROR(+$C141*+VLOOKUP($B141,'%Analysis'!$A$4:$S$204,8,0)),"",+$C141*+VLOOKUP($B141,'%Analysis'!$A$4:$S$204,8,0)) -> 0 | M141: =IF(ISERROR(+$C141*+VLOOKUP($B141,'%Analysis'!$A$4:$S$204,9,0)),"",+$C141*+VLOOKUP($B141,'%Analysis'!$A$4:$S$204,9,0)) -> 1 | N141: =IF(ISERROR(+$C141*+VLOOKUP($B141,'%Analysis'!$A$4:$S$204,10,0)),"",+$C141*+VLOOKUP($B141,'%Analysis'!$A$4:$S$204,10,0)) -> 0 | O141: =IF(ISERROR(+$C141*+VLOOKUP($B141,'%Analysis'!$A$4:$S$204,11,0)),"",+$C141*+VLOOKUP($B141,'%Analysis'!$A$4:$S$204,11,0)) -> 0 | P141: =IF(ISERROR(+$C141*+VLOOKUP($B141,'%Analysis'!$A$4:$S$204,12,0)),"",+$C141*+VLOOKUP($B141,'%Analysis'!$A$4:$S$204,12,0)) -> 373.6 | Q141: =IF(ISERROR(+$C141*+VLOOKUP($B141,'%Analysis'!$A$4:$S$204,13,0)),"",+$C141*+VLOOKUP($B141,'%Analysis'!$A$4:$S$204,13,0)) -> 7.9 | R141: =IF(ISERROR(+$C141*+VLOOKUP($B141,'%Analysis'!$A$4:$S$204,14,0)),"",+$C141*+VLOOKUP($B141,'%Analysis'!$A$4:$S$204,14,0)) -> 0 | S141: =IF(ISERROR(+$C141*+VLOOKUP($B141,'%Analysis'!$A$4:$S$204,15,0)),"",+$C141*+VLOOKUP($B141,'%Analysis'!$A$4:$S$204,15,0)) -> 457.3 | T141: =IF(ISERROR(+$C141*+VLOOKUP($B141,'%Analysis'!$A$4:$S$204,16,0)),"",+$C141*+VLOOKUP($B141,'%Analysis'!$A$4:$S$204,16,0)) -> 3.7 | U141: =IF(ISERROR(+$C141*+VLOOKUP($B141,'%Analysis'!$A$4:$S$204,17,0)),"",+$C141*+VLOOKUP($B141,'%Analysis'!$A$4:$S$204,17,0)) -> 118 | V141: =IF(ISERROR(+$C141*+VLOOKUP($B141,'%Analysis'!$A$4:$S$204,18,0)),"",+$C141*+VLOOKUP($B141,'%Analysis'!$A$4:$S$204,18,0)) -> 14 | Z141: =+'%Analysis'!A143 -> 0
B142: 0 | C142: 0 | H142: =IF(ISERROR(+$C142*+VLOOKUP($B142,'%Analysis'!$A$4:$S$204,4,0)),"",+$C142*+VLOOKUP($B142,'%Analysis'!$A$4:$S$204,4,0)) ->  | I142: =IF(ISERROR(+$C142*+VLOOKUP($B142,'%Analysis'!$A$4:$S$204,5,0)),"",+$C142*+VLOOKUP($B142,'%Analysis'!$A$4:$S$204,5,0)) ->  | J142: =IF(ISERROR(+$C142*+VLOOKUP($B142,'%Analysis'!$A$4:$S$204,6,0)),"",+$C142*+VLOOKUP($B142,'%Analysis'!$A$4:$S$204,6,0)) ->  | K142: =IF(ISERROR(+$C142*+VLOOKUP($B142,'%Analysis'!$A$4:$S$204,7,0)),"",+$C142*+VLOOKUP($B142,'%Analysis'!$A$4:$S$204,7,0)) ->  | L142: =IF(ISERROR(+$C142*+VLOOKUP($B142,'%Analysis'!$A$4:$S$204,8,0)),"",+$C142*+VLOOKUP($B142,'%Analysis'!$A$4:$S$204,8,0)) ->  | M142: =IF(ISERROR(+$C142*+VLOOKUP($B142,'%Analysis'!$A$4:$S$204,9,0)),"",+$C142*+VLOOKUP($B142,'%Analysis'!$A$4:$S$204,9,0)) ->  | N142: =IF(ISERROR(+$C142*+VLOOKUP($B142,'%Analysis'!$A$4:$S$204,10,0)),"",+$C142*+VLOOKUP($B142,'%Analysis'!$A$4:$S$204,10,0)) ->  | O142: =IF(ISERROR(+$C142*+VLOOKUP($B142,'%Analysis'!$A$4:$S$204,11,0)),"",+$C142*+VLOOKUP($B142,'%Analysis'!$A$4:$S$204,11,0)) ->  | P142: =IF(ISERROR(+$C142*+VLOOKUP($B142,'%Analysis'!$A$4:$S$204,12,0)),"",+$C142*+VLOOKUP($B142,'%Analysis'!$A$4:$S$204,12,0)) ->  | Q142: =IF(ISERROR(+$C142*+VLOOKUP($B142,'%Analysis'!$A$4:$S$204,13,0)),"",+$C142*+VLOOKUP($B142,'%Analysis'!$A$4:$S$204,13,0)) ->  | R142: =IF(ISERROR(+$C142*+VLOOKUP($B142,'%Analysis'!$A$4:$S$204,14,0)),"",+$C142*+VLOOKUP($B142,'%Analysis'!$A$4:$S$204,14,0)) ->  | S142: =IF(ISERROR(+$C142*+VLOOKUP($B142,'%Analysis'!$A$4:$S$204,15,0)),"",+$C142*+VLOOKUP($B142,'%Analysis'!$A$4:$S$204,15,0)) ->  | T142: =IF(ISERROR(+$C142*+VLOOKUP($B142,'%Analysis'!$A$4:$S$204,16,0)),"",+$C142*+VLOOKUP($B142,'%Analysis'!$A$4:$S$204,16,0)) ->  | U142: =IF(ISERROR(+$C142*+VLOOKUP($B142,'%Analysis'!$A$4:$S$204,17,0)),"",+$C142*+VLOOKUP($B142,'%Analysis'!$A$4:$S$204,17,0)) ->  | V142: =IF(ISERROR(+$C142*+VLOOKUP($B142,'%Analysis'!$A$4:$S$204,18,0)),"",+$C142*+VLOOKUP($B142,'%Analysis'!$A$4:$S$204,18,0)) ->  | Z142: =+'%Analysis'!A144 -> 0
B143: MgCarb | C143: 6 | H143: =IF(ISERROR(+$C143*+VLOOKUP($B143,'%Analysis'!$A$4:$S$204,4,0)),"",+$C143*+VLOOKUP($B143,'%Analysis'!$A$4:$S$204,4,0)) -> 0 | I143: =IF(ISERROR(+$C143*+VLOOKUP($B143,'%Analysis'!$A$4:$S$204,5,0)),"",+$C143*+VLOOKUP($B143,'%Analysis'!$A$4:$S$204,5,0)) -> 0 | J143: =IF(ISERROR(+$C143*+VLOOKUP($B143,'%Analysis'!$A$4:$S$204,6,0)),"",+$C143*+VLOOKUP($B143,'%Analysis'!$A$4:$S$204,6,0)) -> 0 | K143: =IF(ISERROR(+$C143*+VLOOKUP($B143,'%Analysis'!$A$4:$S$204,7,0)),"",+$C143*+VLOOKUP($B143,'%Analysis'!$A$4:$S$204,7,0)) -> 0 | L143: =IF(ISERROR(+$C143*+VLOOKUP($B143,'%Analysis'!$A$4:$S$204,8,0)),"",+$C143*+VLOOKUP($B143,'%Analysis'!$A$4:$S$204,8,0)) -> 0 | M143: =IF(ISERROR(+$C143*+VLOOKUP($B143,'%Analysis'!$A$4:$S$204,9,0)),"",+$C143*+VLOOKUP($B143,'%Analysis'!$A$4:$S$204,9,0)) -> 258.54 | N143: =IF(ISERROR(+$C143*+VLOOKUP($B143,'%Analysis'!$A$4:$S$204,10,0)),"",+$C143*+VLOOKUP($B143,'%Analysis'!$A$4:$S$204,10,0)) -> 0 | O143: =IF(ISERROR(+$C143*+VLOOKUP($B143,'%Analysis'!$A$4:$S$204,11,0)),"",+$C143*+VLOOKUP($B143,'%Analysis'!$A$4:$S$204,11,0)) -> 0 | P143: =IF(ISERROR(+$C143*+VLOOKUP($B143,'%Analysis'!$A$4:$S$204,12,0)),"",+$C143*+VLOOKUP($B143,'%Analysis'!$A$4:$S$204,12,0)) -> 0 | Q143: =IF(ISERROR(+$C143*+VLOOKUP($B143,'%Analysis'!$A$4:$S$204,13,0)),"",+$C143*+VLOOKUP($B143,'%Analysis'!$A$4:$S$204,13,0)) -> 0 | R143: =IF(ISERROR(+$C143*+VLOOKUP($B143,'%Analysis'!$A$4:$S$204,14,0)),"",+$C143*+VLOOKUP($B143,'%Analysis'!$A$4:$S$204,14,0)) -> 0 | S143: =IF(ISERROR(+$C143*+VLOOKUP($B143,'%Analysis'!$A$4:$S$204,15,0)),"",+$C143*+VLOOKUP($B143,'%Analysis'!$A$4:$S$204,15,0)) -> 0 | T143: =IF(ISERROR(+$C143*+VLOOKUP($B143,'%Analysis'!$A$4:$S$204,16,0)),"",+$C143*+VLOOKUP($B143,'%Analysis'!$A$4:$S$204,16,0)) -> 0 | U143: =IF(ISERROR(+$C143*+VLOOKUP($B143,'%Analysis'!$A$4:$S$204,17,0)),"",+$C143*+VLOOKUP($B143,'%Analysis'!$A$4:$S$204,17,0)) -> 225.84 | V143: =IF(ISERROR(+$C143*+VLOOKUP($B143,'%Analysis'!$A$4:$S$204,18,0)),"",+$C143*+VLOOKUP($B143,'%Analysis'!$A$4:$S$204,18,0)) -> 115.56 | Z143: =+'%Analysis'!A145 -> 0
B144: 0 | C144: 0 | H144: =IF(ISERROR(+$C144*+VLOOKUP($B144,'%Analysis'!$A$4:$S$204,4,0)),"",+$C144*+VLOOKUP($B144,'%Analysis'!$A$4:$S$204,4,0)) ->  | I144: =IF(ISERROR(+$C144*+VLOOKUP($B144,'%Analysis'!$A$4:$S$204,5,0)),"",+$C144*+VLOOKUP($B144,'%Analysis'!$A$4:$S$204,5,0)) ->  | J144: =IF(ISERROR(+$C144*+VLOOKUP($B144,'%Analysis'!$A$4:$S$204,6,0)),"",+$C144*+VLOOKUP($B144,'%Analysis'!$A$4:$S$204,6,0)) ->  | K144: =IF(ISERROR(+$C144*+VLOOKUP($B144,'%Analysis'!$A$4:$S$204,7,0)),"",+$C144*+VLOOKUP($B144,'%Analysis'!$A$4:$S$204,7,0)) ->  | L144: =IF(ISERROR(+$C144*+VLOOKUP($B144,'%Analysis'!$A$4:$S$204,8,0)),"",+$C144*+VLOOKUP($B144,'%Analysis'!$A$4:$S$204,8,0)) ->  | M144: =IF(ISERROR(+$C144*+VLOOKUP($B144,'%Analysis'!$A$4:$S$204,9,0)),"",+$C144*+VLOOKUP($B144,'%Analysis'!$A$4:$S$204,9,0)) ->  | N144: =IF(ISERROR(+$C144*+VLOOKUP($B144,'%Analysis'!$A$4:$S$204,10,0)),"",+$C144*+VLOOKUP($B144,'%Analysis'!$A$4:$S$204,10,0)) ->  | O144: =IF(ISERROR(+$C144*+VLOOKUP($B144,'%Analysis'!$A$4:$S$204,11,0)),"",+$C144*+VLOOKUP($B144,'%Analysis'!$A$4:$S$204,11,0)) ->  | P144: =IF(ISERROR(+$C144*+VLOOKUP($B144,'%Analysis'!$A$4:$S$204,12,0)),"",+$C144*+VLOOKUP($B144,'%Analysis'!$A$4:$S$204,12,0)) ->  | Q144: =IF(ISERROR(+$C144*+VLOOKUP($B144,'%Analysis'!$A$4:$S$204,13,0)),"",+$C144*+VLOOKUP($B144,'%Analysis'!$A$4:$S$204,13,0)) ->  | R144: =IF(ISERROR(+$C144*+VLOOKUP($B144,'%Analysis'!$A$4:$S$204,14,0)),"",+$C144*+VLOOKUP($B144,'%Analysis'!$A$4:$S$204,14,0)) ->  | S144: =IF(ISERROR(+$C144*+VLOOKUP($B144,'%Analysis'!$A$4:$S$204,15,0)),"",+$C144*+VLOOKUP($B144,'%Analysis'!$A$4:$S$204,15,0)) ->  | T144: =IF(ISERROR(+$C144*+VLOOKUP($B144,'%Analysis'!$A$4:$S$204,16,0)),"",+$C144*+VLOOKUP($B144,'%Analysis'!$A$4:$S$204,16,0)) ->  | U144: =IF(ISERROR(+$C144*+VLOOKUP($B144,'%Analysis'!$A$4:$S$204,17,0)),"",+$C144*+VLOOKUP($B144,'%Analysis'!$A$4:$S$204,17,0)) ->  | V144: =IF(ISERROR(+$C144*+VLOOKUP($B144,'%Analysis'!$A$4:$S$204,18,0)),"",+$C144*+VLOOKUP($B144,'%Analysis'!$A$4:$S$204,18,0)) ->  | Z144: =+'%Analysis'!A146 -> 0
B145: 0 | C145: 0 | H145: =IF(ISERROR(+$C145*+VLOOKUP($B145,'%Analysis'!$A$4:$S$204,4,0)),"",+$C145*+VLOOKUP($B145,'%Analysis'!$A$4:$S$204,4,0)) ->  | I145: =IF(ISERROR(+$C145*+VLOOKUP($B145,'%Analysis'!$A$4:$S$204,5,0)),"",+$C145*+VLOOKUP($B145,'%Analysis'!$A$4:$S$204,5,0)) ->  | J145: =IF(ISERROR(+$C145*+VLOOKUP($B145,'%Analysis'!$A$4:$S$204,6,0)),"",+$C145*+VLOOKUP($B145,'%Analysis'!$A$4:$S$204,6,0)) ->  | K145: =IF(ISERROR(+$C145*+VLOOKUP($B145,'%Analysis'!$A$4:$S$204,7,0)),"",+$C145*+VLOOKUP($B145,'%Analysis'!$A$4:$S$204,7,0)) ->  | L145: =IF(ISERROR(+$C145*+VLOOKUP($B145,'%Analysis'!$A$4:$S$204,8,0)),"",+$C145*+VLOOKUP($B145,'%Analysis'!$A$4:$S$204,8,0)) ->  | M145: =IF(ISERROR(+$C145*+VLOOKUP($B145,'%Analysis'!$A$4:$S$204,9,0)),"",+$C145*+VLOOKUP($B145,'%Analysis'!$A$4:$S$204,9,0)) ->  | N145: =IF(ISERROR(+$C145*+VLOOKUP($B145,'%Analysis'!$A$4:$S$204,10,0)),"",+$C145*+VLOOKUP($B145,'%Analysis'!$A$4:$S$204,10,0)) ->  | O145: =IF(ISERROR(+$C145*+VLOOKUP($B145,'%Analysis'!$A$4:$S$204,11,0)),"",+$C145*+VLOOKUP($B145,'%Analysis'!$A$4:$S$204,11,0)) ->  | P145: =IF(ISERROR(+$C145*+VLOOKUP($B145,'%Analysis'!$A$4:$S$204,12,0)),"",+$C145*+VLOOKUP($B145,'%Analysis'!$A$4:$S$204,12,0)) ->  | Q145: =IF(ISERROR(+$C145*+VLOOKUP($B145,'%Analysis'!$A$4:$S$204,13,0)),"",+$C145*+VLOOKUP($B145,'%Analysis'!$A$4:$S$204,13,0)) ->  | R145: =IF(ISERROR(+$C145*+VLOOKUP($B145,'%Analysis'!$A$4:$S$204,14,0)),"",+$C145*+VLOOKUP($B145,'%Analysis'!$A$4:$S$204,14,0)) ->  | S145: =IF(ISERROR(+$C145*+VLOOKUP($B145,'%Analysis'!$A$4:$S$204,15,0)),"",+$C145*+VLOOKUP($B145,'%Analysis'!$A$4:$S$204,15,0)) ->  | T145: =IF(ISERROR(+$C145*+VLOOKUP($B145,'%Analysis'!$A$4:$S$204,16,0)),"",+$C145*+VLOOKUP($B145,'%Analysis'!$A$4:$S$204,16,0)) ->  | U145: =IF(ISERROR(+$C145*+VLOOKUP($B145,'%Analysis'!$A$4:$S$204,17,0)),"",+$C145*+VLOOKUP($B145,'%Analysis'!$A$4:$S$204,17,0)) ->  | V145: =IF(ISERROR(+$C145*+VLOOKUP($B145,'%Analysis'!$A$4:$S$204,18,0)),"",+$C145*+VLOOKUP($B145,'%Analysis'!$A$4:$S$204,18,0)) ->  | Z145: =+'%Analysis'!A147 -> 0
B146: 0 | C146: 0 | H146: =IF(ISERROR(+$C146*+VLOOKUP($B146,'%Analysis'!$A$4:$S$204,4,0)),"",+$C146*+VLOOKUP($B146,'%Analysis'!$A$4:$S$204,4,0)) ->  | I146: =IF(ISERROR(+$C146*+VLOOKUP($B146,'%Analysis'!$A$4:$S$204,5,0)),"",+$C146*+VLOOKUP($B146,'%Analysis'!$A$4:$S$204,5,0)) ->  | J146: =IF(ISERROR(+$C146*+VLOOKUP($B146,'%Analysis'!$A$4:$S$204,6,0)),"",+$C146*+VLOOKUP($B146,'%Analysis'!$A$4:$S$204,6,0)) ->  | K146: =IF(ISERROR(+$C146*+VLOOKUP($B146,'%Analysis'!$A$4:$S$204,7,0)),"",+$C146*+VLOOKUP($B146,'%Analysis'!$A$4:$S$204,7,0)) ->  | L146: =IF(ISERROR(+$C146*+VLOOKUP($B146,'%Analysis'!$A$4:$S$204,8,0)),"",+$C146*+VLOOKUP($B146,'%Analysis'!$A$4:$S$204,8,0)) ->  | M146: =IF(ISERROR(+$C146*+VLOOKUP($B146,'%Analysis'!$A$4:$S$204,9,0)),"",+$C146*+VLOOKUP($B146,'%Analysis'!$A$4:$S$204,9,0)) ->  | N146: =IF(ISERROR(+$C146*+VLOOKUP($B146,'%Analysis'!$A$4:$S$204,10,0)),"",+$C146*+VLOOKUP($B146,'%Analysis'!$A$4:$S$204,10,0)) ->  | O146: =IF(ISERROR(+$C146*+VLOOKUP($B146,'%Analysis'!$A$4:$S$204,11,0)),"",+$C146*+VLOOKUP($B146,'%Analysis'!$A$4:$S$204,11,0)) ->  | P146: =IF(ISERROR(+$C146*+VLOOKUP($B146,'%Analysis'!$A$4:$S$204,12,0)),"",+$C146*+VLOOKUP($B146,'%Analysis'!$A$4:$S$204,12,0)) ->  | Q146: =IF(ISERROR(+$C146*+VLOOKUP($B146,'%Analysis'!$A$4:$S$204,13,0)),"",+$C146*+VLOOKUP($B146,'%Analysis'!$A$4:$S$204,13,0)) ->  | R146: =IF(ISERROR(+$C146*+VLOOKUP($B146,'%Analysis'!$A$4:$S$204,14,0)),"",+$C146*+VLOOKUP($B146,'%Analysis'!$A$4:$S$204,14,0)) ->  | S146: =IF(ISERROR(+$C146*+VLOOKUP($B146,'%Analysis'!$A$4:$S$204,15,0)),"",+$C146*+VLOOKUP($B146,'%Analysis'!$A$4:$S$204,15,0)) ->  | T146: =IF(ISERROR(+$C146*+VLOOKUP($B146,'%Analysis'!$A$4:$S$204,16,0)),"",+$C146*+VLOOKUP($B146,'%Analysis'!$A$4:$S$204,16,0)) ->  | U146: =IF(ISERROR(+$C146*+VLOOKUP($B146,'%Analysis'!$A$4:$S$204,17,0)),"",+$C146*+VLOOKUP($B146,'%Analysis'!$A$4:$S$204,17,0)) ->  | V146: =IF(ISERROR(+$C146*+VLOOKUP($B146,'%Analysis'!$A$4:$S$204,18,0)),"",+$C146*+VLOOKUP($B146,'%Analysis'!$A$4:$S$204,18,0)) ->  | Z146: =+'%Analysis'!A148 -> 0
B147: 0 | C147: 0 | H147: =IF(ISERROR(+$C147*+VLOOKUP($B147,'%Analysis'!$A$4:$S$204,4,0)),"",+$C147*+VLOOKUP($B147,'%Analysis'!$A$4:$S$204,4,0)) ->  | I147: =IF(ISERROR(+$C147*+VLOOKUP($B147,'%Analysis'!$A$4:$S$204,5,0)),"",+$C147*+VLOOKUP($B147,'%Analysis'!$A$4:$S$204,5,0)) ->  | J147: =IF(ISERROR(+$C147*+VLOOKUP($B147,'%Analysis'!$A$4:$S$204,6,0)),"",+$C147*+VLOOKUP($B147,'%Analysis'!$A$4:$S$204,6,0)) ->  | K147: =IF(ISERROR(+$C147*+VLOOKUP($B147,'%Analysis'!$A$4:$S$204,7,0)),"",+$C147*+VLOOKUP($B147,'%Analysis'!$A$4:$S$204,7,0)) ->  | L147: =IF(ISERROR(+$C147*+VLOOKUP($B147,'%Analysis'!$A$4:$S$204,8,0)),"",+$C147*+VLOOKUP($B147,'%Analysis'!$A$4:$S$204,8,0)) ->  | M147: =IF(ISERROR(+$C147*+VLOOKUP($B147,'%Analysis'!$A$4:$S$204,9,0)),"",+$C147*+VLOOKUP($B147,'%Analysis'!$A$4:$S$204,9,0)) ->  | N147: =IF(ISERROR(+$C147*+VLOOKUP($B147,'%Analysis'!$A$4:$S$204,10,0)),"",+$C147*+VLOOKUP($B147,'%Analysis'!$A$4:$S$204,10,0)) ->  | O147: =IF(ISERROR(+$C147*+VLOOKUP($B147,'%Analysis'!$A$4:$S$204,11,0)),"",+$C147*+VLOOKUP($B147,'%Analysis'!$A$4:$S$204,11,0)) ->  | P147: =IF(ISERROR(+$C147*+VLOOKUP($B147,'%Analysis'!$A$4:$S$204,12,0)),"",+$C147*+VLOOKUP($B147,'%Analysis'!$A$4:$S$204,12,0)) ->  | Q147: =IF(ISERROR(+$C147*+VLOOKUP($B147,'%Analysis'!$A$4:$S$204,13,0)),"",+$C147*+VLOOKUP($B147,'%Analysis'!$A$4:$S$204,13,0)) ->  | R147: =IF(ISERROR(+$C147*+VLOOKUP($B147,'%Analysis'!$A$4:$S$204,14,0)),"",+$C147*+VLOOKUP($B147,'%Analysis'!$A$4:$S$204,14,0)) ->  | S147: =IF(ISERROR(+$C147*+VLOOKUP($B147,'%Analysis'!$A$4:$S$204,15,0)),"",+$C147*+VLOOKUP($B147,'%Analysis'!$A$4:$S$204,15,0)) ->  | T147: =IF(ISERROR(+$C147*+VLOOKUP($B147,'%Analysis'!$A$4:$S$204,16,0)),"",+$C147*+VLOOKUP($B147,'%Analysis'!$A$4:$S$204,16,0)) ->  | U147: =IF(ISERROR(+$C147*+VLOOKUP($B147,'%Analysis'!$A$4:$S$204,17,0)),"",+$C147*+VLOOKUP($B147,'%Analysis'!$A$4:$S$204,17,0)) ->  | V147: =IF(ISERROR(+$C147*+VLOOKUP($B147,'%Analysis'!$A$4:$S$204,18,0)),"",+$C147*+VLOOKUP($B147,'%Analysis'!$A$4:$S$204,18,0)) ->  | Z147: =+'%Analysis'!A149 -> 0
B148: 0 | C148: 106 | H148: =IF(ISERROR(+$C148*+VLOOKUP($B148,'%Analysis'!$A$4:$S$204,4,0)),"",+$C148*+VLOOKUP($B148,'%Analysis'!$A$4:$S$204,4,0)) ->  | I148: =IF(ISERROR(+$C148*+VLOOKUP($B148,'%Analysis'!$A$4:$S$204,5,0)),"",+$C148*+VLOOKUP($B148,'%Analysis'!$A$4:$S$204,5,0)) ->  | J148: =IF(ISERROR(+$C148*+VLOOKUP($B148,'%Analysis'!$A$4:$S$204,6,0)),"",+$C148*+VLOOKUP($B148,'%Analysis'!$A$4:$S$204,6,0)) ->  | K148: =IF(ISERROR(+$C148*+VLOOKUP($B148,'%Analysis'!$A$4:$S$204,7,0)),"",+$C148*+VLOOKUP($B148,'%Analysis'!$A$4:$S$204,7,0)) ->  | L148: =IF(ISERROR(+$C148*+VLOOKUP($B148,'%Analysis'!$A$4:$S$204,8,0)),"",+$C148*+VLOOKUP($B148,'%Analysis'!$A$4:$S$204,8,0)) ->  | M148: =IF(ISERROR(+$C148*+VLOOKUP($B148,'%Analysis'!$A$4:$S$204,9,0)),"",+$C148*+VLOOKUP($B148,'%Analysis'!$A$4:$S$204,9,0)) ->  | N148: =IF(ISERROR(+$C148*+VLOOKUP($B148,'%Analysis'!$A$4:$S$204,10,0)),"",+$C148*+VLOOKUP($B148,'%Analysis'!$A$4:$S$204,10,0)) ->  | O148: =IF(ISERROR(+$C148*+VLOOKUP($B148,'%Analysis'!$A$4:$S$204,11,0)),"",+$C148*+VLOOKUP($B148,'%Analysis'!$A$4:$S$204,11,0)) ->  | P148: =IF(ISERROR(+$C148*+VLOOKUP($B148,'%Analysis'!$A$4:$S$204,12,0)),"",+$C148*+VLOOKUP($B148,'%Analysis'!$A$4:$S$204,12,0)) ->  | Q148: =IF(ISERROR(+$C148*+VLOOKUP($B148,'%Analysis'!$A$4:$S$204,13,0)),"",+$C148*+VLOOKUP($B148,'%Analysis'!$A$4:$S$204,13,0)) ->  | R148: =IF(ISERROR(+$C148*+VLOOKUP($B148,'%Analysis'!$A$4:$S$204,14,0)),"",+$C148*+VLOOKUP($B148,'%Analysis'!$A$4:$S$204,14,0)) ->  | S148: =IF(ISERROR(+$C148*+VLOOKUP($B148,'%Analysis'!$A$4:$S$204,15,0)),"",+$C148*+VLOOKUP($B148,'%Analysis'!$A$4:$S$204,15,0)) ->  | T148: =IF(ISERROR(+$C148*+VLOOKUP($B148,'%Analysis'!$A$4:$S$204,16,0)),"",+$C148*+VLOOKUP($B148,'%Analysis'!$A$4:$S$204,16,0)) ->  | U148: =IF(ISERROR(+$C148*+VLOOKUP($B148,'%Analysis'!$A$4:$S$204,17,0)),"",+$C148*+VLOOKUP($B148,'%Analysis'!$A$4:$S$204,17,0)) ->  | V148: =IF(ISERROR(+$C148*+VLOOKUP($B148,'%Analysis'!$A$4:$S$204,18,0)),"",+$C148*+VLOOKUP($B148,'%Analysis'!$A$4:$S$204,18,0)) ->  | Z148: =+'%Analysis'!A150 -> 0
H149: =IF(ISERROR(+$C149*+VLOOKUP($B149,'%Analysis'!$A$4:$S$204,4,0)),"",+$C149*+VLOOKUP($B149,'%Analysis'!$A$4:$S$204,4,0)) ->  | I149: =IF(ISERROR(+$C149*+VLOOKUP($B149,'%Analysis'!$A$4:$S$204,5,0)),"",+$C149*+VLOOKUP($B149,'%Analysis'!$A$4:$S$204,5,0)) ->  | J149: =IF(ISERROR(+$C149*+VLOOKUP($B149,'%Analysis'!$A$4:$S$204,6,0)),"",+$C149*+VLOOKUP($B149,'%Analysis'!$A$4:$S$204,6,0)) ->  | K149: =IF(ISERROR(+$C149*+VLOOKUP($B149,'%Analysis'!$A$4:$S$204,7,0)),"",+$C149*+VLOOKUP($B149,'%Analysis'!$A$4:$S$204,7,0)) ->  | L149: =IF(ISERROR(+$C149*+VLOOKUP($B149,'%Analysis'!$A$4:$S$204,8,0)),"",+$C149*+VLOOKUP($B149,'%Analysis'!$A$4:$S$204,8,0)) ->  | M149: =IF(ISERROR(+$C149*+VLOOKUP($B149,'%Analysis'!$A$4:$S$204,9,0)),"",+$C149*+VLOOKUP($B149,'%Analysis'!$A$4:$S$204,9,0)) ->  | N149: =IF(ISERROR(+$C149*+VLOOKUP($B149,'%Analysis'!$A$4:$S$204,10,0)),"",+$C149*+VLOOKUP($B149,'%Analysis'!$A$4:$S$204,10,0)) ->  | O149: =IF(ISERROR(+$C149*+VLOOKUP($B149,'%Analysis'!$A$4:$S$204,11,0)),"",+$C149*+VLOOKUP($B149,'%Analysis'!$A$4:$S$204,11,0)) ->  | P149: =IF(ISERROR(+$C149*+VLOOKUP($B149,'%Analysis'!$A$4:$S$204,12,0)),"",+$C149*+VLOOKUP($B149,'%Analysis'!$A$4:$S$204,12,0)) ->  | Q149: =IF(ISERROR(+$C149*+VLOOKUP($B149,'%Analysis'!$A$4:$S$204,13,0)),"",+$C149*+VLOOKUP($B149,'%Analysis'!$A$4:$S$204,13,0)) ->  | R149: =IF(ISERROR(+$C149*+VLOOKUP($B149,'%Analysis'!$A$4:$S$204,14,0)),"",+$C149*+VLOOKUP($B149,'%Analysis'!$A$4:$S$204,14,0)) ->  | S149: =IF(ISERROR(+$C149*+VLOOKUP($B149,'%Analysis'!$A$4:$S$204,15,0)),"",+$C149*+VLOOKUP($B149,'%Analysis'!$A$4:$S$204,15,0)) ->  | T149: =IF(ISERROR(+$C149*+VLOOKUP($B149,'%Analysis'!$A$4:$S$204,16,0)),"",+$C149*+VLOOKUP($B149,'%Analysis'!$A$4:$S$204,16,0)) ->  | U149: =IF(ISERROR(+$C149*+VLOOKUP($B149,'%Analysis'!$A$4:$S$204,17,0)),"",+$C149*+VLOOKUP($B149,'%Analysis'!$A$4:$S$204,17,0)) ->  | V149: =IF(ISERROR(+$C149*+VLOOKUP($B149,'%Analysis'!$A$4:$S$204,18,0)),"",+$C149*+VLOOKUP($B149,'%Analysis'!$A$4:$S$204,18,0)) ->  | Z149: =+'%Analysis'!A151 -> 0
H150: =IF(ISERROR(+$C150*+VLOOKUP($B150,'%Analysis'!$A$4:$S$204,4,0)),"",+$C150*+VLOOKUP($B150,'%Analysis'!$A$4:$S$204,4,0)) ->  | I150: =IF(ISERROR(+$C150*+VLOOKUP($B150,'%Analysis'!$A$4:$S$204,5,0)),"",+$C150*+VLOOKUP($B150,'%Analysis'!$A$4:$S$204,5,0)) ->  | J150: =IF(ISERROR(+$C150*+VLOOKUP($B150,'%Analysis'!$A$4:$S$204,6,0)),"",+$C150*+VLOOKUP($B150,'%Analysis'!$A$4:$S$204,6,0)) ->  | K150: =IF(ISERROR(+$C150*+VLOOKUP($B150,'%Analysis'!$A$4:$S$204,7,0)),"",+$C150*+VLOOKUP($B150,'%Analysis'!$A$4:$S$204,7,0)) ->  | L150: =IF(ISERROR(+$C150*+VLOOKUP($B150,'%Analysis'!$A$4:$S$204,8,0)),"",+$C150*+VLOOKUP($B150,'%Analysis'!$A$4:$S$204,8,0)) ->  | M150: =IF(ISERROR(+$C150*+VLOOKUP($B150,'%Analysis'!$A$4:$S$204,9,0)),"",+$C150*+VLOOKUP($B150,'%Analysis'!$A$4:$S$204,9,0)) ->  | N150: =IF(ISERROR(+$C150*+VLOOKUP($B150,'%Analysis'!$A$4:$S$204,10,0)),"",+$C150*+VLOOKUP($B150,'%Analysis'!$A$4:$S$204,10,0)) ->  | O150: =IF(ISERROR(+$C150*+VLOOKUP($B150,'%Analysis'!$A$4:$S$204,11,0)),"",+$C150*+VLOOKUP($B150,'%Analysis'!$A$4:$S$204,11,0)) ->  | P150: =IF(ISERROR(+$C150*+VLOOKUP($B150,'%Analysis'!$A$4:$S$204,12,0)),"",+$C150*+VLOOKUP($B150,'%Analysis'!$A$4:$S$204,12,0)) ->  | Q150: =IF(ISERROR(+$C150*+VLOOKUP($B150,'%Analysis'!$A$4:$S$204,13,0)),"",+$C150*+VLOOKUP($B150,'%Analysis'!$A$4:$S$204,13,0)) ->  | R150: =IF(ISERROR(+$C150*+VLOOKUP($B150,'%Analysis'!$A$4:$S$204,14,0)),"",+$C150*+VLOOKUP($B150,'%Analysis'!$A$4:$S$204,14,0)) ->  | S150: =IF(ISERROR(+$C150*+VLOOKUP($B150,'%Analysis'!$A$4:$S$204,15,0)),"",+$C150*+VLOOKUP($B150,'%Analysis'!$A$4:$S$204,15,0)) ->  | T150: =IF(ISERROR(+$C150*+VLOOKUP($B150,'%Analysis'!$A$4:$S$204,16,0)),"",+$C150*+VLOOKUP($B150,'%Analysis'!$A$4:$S$204,16,0)) ->  | U150: =IF(ISERROR(+$C150*+VLOOKUP($B150,'%Analysis'!$A$4:$S$204,17,0)),"",+$C150*+VLOOKUP($B150,'%Analysis'!$A$4:$S$204,17,0)) ->  | V150: =IF(ISERROR(+$C150*+VLOOKUP($B150,'%Analysis'!$A$4:$S$204,18,0)),"",+$C150*+VLOOKUP($B150,'%Analysis'!$A$4:$S$204,18,0)) ->  | Z150: =+'%Analysis'!A152 -> 0
Z151: =+'%Analysis'!A153 -> 0
Z152: =+'%Analysis'!A154 -> 0
C153: Weight Totals | F153: =384.248/414.63 -> 0.926725032 | H153: =SUM(H136:H152) -> 307.74 | I153: =SUM(I136:I152) -> 210.38 | J153: 0 | K153: 1360.32 | L153: 6.3 | M153: 576.94 | N153: 0 | O153: 0 | P153: 1245.68 | Q153: 17.1 | R153: 452.92 | S153: 4840.62 | T153: 26.7 | U153: 1347.76 | V153: 129.56 | Z153: =+'%Analysis'!A155 -> 0
C154: Mol Weights | H154: 94.196 | I154: 61.979 | J154: 29.881 | K154: 56.077 | L154: 103.619 | M154: 40.304 | N154: 81.379 | O154: 153.326 | P154: 101.961 | Q154: 159.688 | R154: 69.62 | S154: 60.084 | T154: 79.866 | U154: 44.01 | V154: 18.015 | Z154: =+'%Analysis'!A156 -> 0
C155: Gram Equivalents | F155: =SUM(I155:V155) -> 179.5721169 | H155: =H153/H154 -> 3.267017708 | I155: =I153/I154 -> 3.394375514 | J155: =J153/J154 -> 0 | K155: =K153/K154 -> 24.25807372 | L155: =L153/L154 -> 0.06079966029 | M155: 14.31470822 | N155: 0 | O155: 0 | P155: 12.21722031 | Q155: 0.1070838134 | R155: 6.505601839 | S155: 80.56421011 | T155: 0.3343099692 | U155: 30.6239491 | V155: 7.191784624
C156: Total Flux Equivs | H156: =SUM(H155:O155) -> 45.29497482
C157: Formula | H157: =H155/$H$156 -> 0.07212759739 | I157: 0.07493933991 | J157: 0 | K157: 0.5355577261 | L157: 0.00134230476 | M157: 0.3160330318 | N157: 0 | O157: 0 | P157: 0.2697257336 | Q157: 0.002364143348 | R157: 0.1436274524 | S157: 1.778656693 | T157: 0.007380729773 | U157: 0.6761003671 | V157: 0.1587766557
G159: TOTAL | H159: K2O | I159: Na2O | J159: Li2O | K159: CaO | L159: SrO | M159: MgO | N159: ZnO | O159: BaO | P159: Al2O3 | Q159: Fe2O3 | R159: B2O3 | S159: SiO2 | T159: TiO2 | U159: CO2 | V159: H2O
E160: | | F160: Fired | G160: =+H153+I153+J153+K153+L153+M153+N153+O153+P153+Q153+R153+S153+T153 -> 9044.7 | H160: =+H153 -> 307.74 | I160: =+I153 -> 210.38 | J160: 0 | K160: 1360.32 | L160: 6.3 | M160: 576.94 | N160: 0 | O160: 0 | P160: 1245.68 | Q160: 17.1 | R160: 452.92 | S160: 4840.62 | T160: 26.7
E161: | | F161: Wt % | G161: =G160/$G$160 -> 1 | H161: =H160/$G$160 -> 0.03402434575 | I161: 0.02326003074 | J161: 0 | K161: 0.1503996816 | L161: 0.0006965405154 | M161: 0.06378763254 | N161: 0 | O161: 0 | P161: 0.1377248554 | Q161: 0.00189060997 | R161: 0.05007573496 | S161: 0.5351885635 | T161: 0.002952005042
E162: |
E163: |
E164: |

Sheet Recipe to Formula (2)
B2: EuCal | D2: version 1.91 | J2: TRUE | M2: FALSE
D3: Recipe to Formula | F3: Formula - Standard Molecular Unity | Z3: =+'%Analysis'!A5 -> Al2O3
E4: Batch | F4: K2O | G4: =C92 ->  | H4: CaO | I4: =F92 ->  | J4: Al2O3 | K4: =L92 ->  | L4: SiO2 | M4: =M92 ->  | Z4: =+'%Analysis'!A6 -> Albany Slip
B5: Recipe | E5: Size | F5: Na2O | G5: =D92 ->  | H5: MgO | I5: =G92 ->  | J5: B2O3 | K5: =+K92 ->  | L5: SiO2/Al2O3 | M5: =M4/K4 ->  | Z5: =+'%Analysis'!A7 -> Alumina Hydrate
B6: Mineral | C6: % | D6: Fit 100% | E6: 100 | F6: Li2O | G6: =E92 ->  | H6: SrO | I6: =I92 ->  | J6: Fe2O3 | K6: =Q155/$H$156 ->  | Z6: =+'%Analysis'!A8 -> B2O3
D7: =IF(C7>0,C7/SUM($C$7:$C$18)*100,"") ->  | E7: =IF(C7>0,D7*$E$6*0.01,"") ->  | F7: R2O | G7: =SUM(G4:G6) ->  | H7: ZnO | I7: =J92 ->  | Z7: =+'%Analysis'!A9 -> BaCarb
E8: =IF(C8>0,D8*$E$6*0.01,"") ->  | F8: RO | G8: =SUM(I4:I8) ->  | H8: BaO | I8: =H92 ->  | Z8: =+'%Analysis'!A10 -> BaO
F9: Formula - Eutectics Only | Z9: =+'%Analysis'!A11 -> Barnard Slip
F10: K2O | G10: =C89 ->  | H10: CaO | I10: =F89 ->  | J10: Al2O3 | K10: =L89 ->  | L10: SiO2 | M10: =M89 ->  | Z10: =+'%Analysis'!A12 -> Bentone MA
F11: Na2O | G11: =D89 ->  | H11: MgO | I11: =G89 ->  | J11: B2O3 | K11: =K89 ->  | L11: SiO2/Al2O3 | M11: =M10/K10 ->  | Z11: =+'%Analysis'!A13 -> Bentonite
F12: Li2O | G12: =E89 ->  | H12: SrO | I12: =I89 ->  | Z12: =+'%Analysis'!A14 -> BoneAsh
F13: R2O | G13: =SUM(G10:G12) ->  | H13: ZnO | I13: =J89 ->  | Z13: =+'%Analysis'!A15 -> Borax
F14: RO | G14: =SUM(I10:I14) ->  | H14: BaO | I14: =H89 ->  | Z14: =+'%Analysis'!A16 -> CaO
F15: Oxides Excess to the Eutectics | Z15: =+'%Analysis'!A17 -> ChromeOxide
F16: K2O | G16: Na2O | H16: Li2O | I16: CaO | J16: MgO | K16: BaO | L16: SrO | M16: ZnO | Z16: =+'%Analysis'!A18 -> CMC Gum
F17: =C90 ->  | Z17: =+'%Analysis'!A19 -> CoCarb
F18: Al2O3 | G18: SiO2 | L18: B2O3 | M18: Fe2O3 | Z18: =+'%Analysis'!A20 -> Coleman
C19: =SUM(C7:C18) -> 0 | D19: =SUM(D7:D18) -> 0 | E19: =SUM(E7:E18) -> 0 | F19: =L90 ->  | G19: =M90 ->  | L19: =+K90 ->  | M19: =(Q153/Q154)/$B$88 ->  | Z19: =+'%Analysis'!A21 -> CoOxide
Z20: =+'%Analysis'!A22 -> Corn Old
Z21: =+'%Analysis'!A23 -> Cornwall
Z22: =+'%Analysis'!A24 -> Cu2O
Z23: =+'%Analysis'!A25 -> CuCarb
Z24: =+'%Analysis'!A26 -> Custer
Z25: =+'%Analysis'!A27 -> Custer - Old
Z26: =+'%Analysis'!A28 -> Dolomite
Z27: =+'%Analysis'!A29 -> EPK
C28: The Eutectics | Z28: =+'%Analysis'!A30 -> EPK - Calcined
B29: # | C29: K2O | D29: Na2O | E29: Li2O | F29: CaO | G29: MgO | H29: BaO | I29: SrO | J29: ZnO | K29: B2O3 | L29: Al2O3 | M29: SiO2 | N29: MP°C | Z29: =+'%Analysis'!A31 -> Fe2O3
B30: 1 | C30: 1 | K30: 2.119 | M30: 2.853 | N30: 630 | Z30: =+'%Analysis'!A32 -> Ferro3110
B31: 2 | C31: 1 | L31: 0.0972 | M31: 3.4243 | N31: 695 | Z31: =+'%Analysis'!A33 -> Ferro3124
B32: 3 | D32: 1 | L32: 0.2922 | M32: 2.44 | N32: 732 | Z32: =+'%Analysis'!A34 -> Ferro3134
B33: 4 | D33: 1 | K33: 1.3 | M33: 1.73 | N33: 790 | Z33: =+'%Analysis'!A35 -> Ferro3195
B34: 5 | E34: 1 | K34: 0.7 | M34: 0.3 | N34: 802 | Z34: =+'%Analysis'!A36 -> Flint
B35: 6 | F35: 1 | K35: 1.51 | M35: 0 | N35: 990 | Z35: =+'%Analysis'!A37 -> G-200
B36: 7 | E36: 1 | L36: 0.228 | M36: 1.6838 | N36: 1026 | O36: CaO/ZnO | P36: ZnO/CaO | Z36: =+'%Analysis'!A38 -> G200 HP
B37: 8 | F37: 0.544 | J37: 0.456 | L37: 0.1326 | M37: 1.3943 | N37: 1030 | O37: =+F37/J37 -> 1.192982456 | P37: =+J37/F37 -> 0.8382352941 | Z37: =+'%Analysis'!A39 -> Gerstley Borate
B38: 9 | H38: 1 | L38: 0.4058 | M38: 4.009 | N38: 1122 | Z38: =+'%Analysis'!A40 -> Gerstley Borate - 1999
B39: 10 | F39: 1 | L39: 0.3489 | M39: 2.4888 | N39: 1165 | Z39: =+'%Analysis'!A41 -> Gillespie Borate
B40: 11 | I40: 1 | L40: 0.2144 | M40: 2.8 | N40: 1176 | Z40: =+'%Analysis'!A42 -> Goldart
B41: 12 | G41: 1 | L41: 0.3374 | M41: 2.0287 | N41: 1350 | Z41: =+'%Analysis'!A43 -> Grolleg
Z42: =+'%Analysis'!A44 -> K2CO3
C43: The Eutectics by Weight | Z43: =+'%Analysis'!A45 -> K2O
B44: # | C44: K2O | D44: Na2O | E44: Li2O | F44: CaO | G44: MgO | H44: BaO | I44: SrO | J44: ZnO | K44: B2O3 | L44: Al2O3 | M44: SiO2 | N44: MP°C | Z44: =+'%Analysis'!A46 -> Kaolin
B45: 1 | C45: 22.8 | K45: 35.7 | M45: 41.5 | N45: 630 | O45: =SUM(C45:M45) -> 100 | Z45: =+'%Analysis'!A47 -> KFeld
B46: 2 | C46: 30.4 | L46: 3.2 | M46: 66.4 | N46: 695 | O46: 100 | Z46: =+'%Analysis'!A48 -> Kingman
B47: 3 | D47: 26 | L47: 12.5 | M47: 61.5 | N47: 732 | O47: 100 | Z47: =+'%Analysis'!A49 -> KonaF-4
B48: 4 | D48: 24.2 | K48: 35.2 | M48: 40.6 | N48: 790 | O48: 100 | Z48: =+'%Analysis'!A50 -> Leucite
B49: 5 | E49: 30.9 | K49: 50.4 | M49: 18.7 | N49: 802 | O49: 100 | Z49: =+'%Analysis'!A51 -> Li2O
B50: 6 | F50: 65.21 | K50: 34.79 | N50: 990 | O50: 100 | Z50: =+'%Analysis'!A52 -> LiCarb
B51: 7 | E51: 19.366 | L51: 15.067 | M51: 65.567 | N51: 1026 | O51: 100 | Z51: =+'%Analysis'!A53 -> LiSilicate
B52: 8 | F52: 18.5 | J52: 22.5 | L52: 8.2 | M52: 50.8 | N52: 1030 | O52: 100 | Z52: =+'%Analysis'!A54 -> Macaloid
B53: 9 | H53: 35.2 | L53: 9.5 | M53: 55.3 | N53: 1122 | O53: 100 | Z53: =+'%Analysis'!A55 -> MgCarb
B54: 10 | F54: 23.25 | L54: 14.75 | M54: 62 | N54: 1165 | O54: 100 | Z54: =+'%Analysis'!A56 -> MgO
B55: 11 | I55: 35.278 | L55: 7.443 | M55: 57.278 | N55: 1176 | O55: 99.999 | Z55: =+'%Analysis'!A57 -> Mahavir Feldspar
B56: 12 | G56: 20.5 | L56: 17.5 | M56: 62 | N56: 1350 | O56: 100 | Z56: =+'%Analysis'!A58 -> Minspar 200
Z57: =+'%Analysis'!A59 -> MnCarb
Z58: =+'%Analysis'!A60 -> MnO2
C59: WHAT'S LEFT AFTER EACH EUTECTIC - BY WEIGHT | O59: NEEDED | R59: AVAILABLE | T59: Ratios | V59: Possible | X59: AVAILABLE | Z59: =+'%Analysis'!A61 -> Na2CO3
A60: # | C60: K2O | D60: Na2O | E60: Li2O | F60: CaO | G60: MgO | H60: BaO | I60: SrO | J60: ZnO | K60: B2O3 | L60: Al2O3 | M60: SiO2 | N60: B2O3 | O60: Al2O3 | P60: SiO2 | Q60: B2O3 | R60: Al2O3 | S60: SiO2 | T60: CaO/ | U60: ZnO | V60: CaO | W60: ZnO | X60: CaO | Y60: ZnO | Z60: =+'%Analysis'!A62 -> Na2O
A61: Start | C61: =+H153 -> 0 | D61: =+I153 -> 0 | E61: =+J153 -> 0 | F61: =+K153 -> 0 | G61: =+M153 -> 0 | H61: =+O153 -> 0 | I61: =+L153 -> 0 | J61: =+N153 -> 0 | K61: =+R153 -> 0 | L61: =+P153 -> 0 | M61: =+S153 -> 0 | Z61: =+'%Analysis'!A63 -> NaFeld
A62: 1 | B62: Used | C62: =IF(AND(N62<=Q62,P62<=S62),C61,MIN(Q62/N62,S62/P62)*C61) -> 0 | K62: =C62*(K45/C45) -> 0 | M62: =C62*(M45/C45) -> 0 | N62: =(K45/C45)*C61 -> 0 | P62: =(M45/C45)*C61 -> 0 | Q62: =+K61 -> 0 | S62: =M61 -> 0 | Z62: =+'%Analysis'!A64 -> NephelineSyenite
A63: 1 | B63: Remaining | C63: =C61-C62 -> 0 | D63: =D61-D62 -> 0 | E63: 0 | F63: 0 | G63: 0 | H63: 0 | I63: 0 | J63: 0 | K63: 0 | L63: 0 | M63: 0 | Z63: =+'%Analysis'!A65 -> NiCarb
A64: 2 | B64: Used | C64: =IF(AND(O64<=R64,P64<=S64),C63,MIN(R64/O64,S64/P64)*C63) -> 0 | L64: =(L46/C46)*C64 -> 0 | M64: =(M46/C46)*C64 -> 0 | O64: =(L46/C46)*C63 -> 0 | P64: =(M46/C46)*C63 -> 0 | Q64: =+K63 -> 0 | R64: =L63 -> 0 | S64: =M63 -> 0 | Z64: =+'%Analysis'!A66 -> OldHick
A65: 2 | B65: Remaining | C65: =C63-C64 -> 0 | D65: =D63-D64 -> 0 | E65: 0 | F65: 0 | G65: 0 | H65: 0 | I65: 0 | J65: 0 | K65: 0 | L65: 0 | M65: 0 | Q65: =+K64 -> 0 | Z65: =+'%Analysis'!A67 -> OM4
A66: 3 | B66: Used | D66: =IF(AND(P66<=S66,O66<=R66),D65,MIN(S66/P66,R66/O66)*D65) -> 0 | L66: =D66*(L47/D47) -> 0 | M66: =D66*(M47/D47) -> 0 | O66: =D65*(L47/D47) -> 0 | P66: =D65*(M47/D47) -> 0 | Q66: =+K65 -> 0 | R66: =L65 -> 0 | S66: =M65 -> 0 | Z66: =+'%Analysis'!A68 -> P2O5
A67: 3 | B67: Remaining | C67: =C65-C66 -> 0 | D67: =D65-D66 -> 0 | E67: 0 | F67: 0 | G67: 0 | H67: 0 | I67: 0 | J67: 0 | K67: 0 | L67: 0 | M67: 0 | Z67: =+'%Analysis'!A69 -> Petalite
A68: 4 | B68: Used | D68: =IF(AND(P68<=S68,N68<=Q68),D67,MIN(S68/P68,Q68/N68)*D67) -> 0 | K68: =D68*(K48/D48) -> 0 | M68: =D68*(M48/D48) -> 0 | N68: =+D67*(K48/D48) -> 0 | P68: =D67*(M48/D48) -> 0 | Q68: =K67 -> 0 | S68: =M67 -> 0 | Z68: =+'%Analysis'!A70 -> PlVit
A69: 4 | B69: Remaining | C69: =C67-C68 -> 0 | D69: =D67-D68 -> 0 | E69: 0 | F69: 0 | G69: 0 | H69: 0 | I69: 0 | J69: 0 | K69: 0 | L69: 0 | M69: 0 | Z69: =+'%Analysis'!A71 -> Redart
A70: 5 | B70: Used | E70: =IF(AND(P70<=S70,N70<=Q70),E69,MIN(S70/P70,Q70/N70)*E69) -> 0 | K70: =E70*(K49/E49) -> 0 | M70: =E70*(M49/E49) -> 0 | N70: =E69*(K49/E49) -> 0 | P70: =E69*(M49/E49) -> 0 | Q70: =K69 -> 0 | S70: =M69 -> 0 | Z70: =+'%Analysis'!A72 -> Rutile
A71: 5 | B71: Remaining | C71: =C69-C70 -> 0 | D71: =D69-D70 -> 0 | E71: 0 | F71: 0 | G71: 0 | H71: 0 | I71: 0 | J71: 0 | K71: 0 | L71: 0 | M71: 0 | V71: Used | Z71: =+'%Analysis'!A73 -> Silica
A72: 6 | B72: Used | F72: =IF((N72<=K71),F71,(F50/K50)*K71) -> 0 | K72: =F72*(K50/F50) -> 0 | N72: =F71*(K50/F50) -> 0 | Z72: =+'%Analysis'!A74 -> SiO2
A73: 6 | B73: Remaining | C73: =C71-C72 -> 0 | D73: 0 | E73: 0 | F73: 0 | G73: 0 | H73: 0 | I73: 0 | J73: 0 | K73: 0 | L73: 0 | M73: 0 | Z73: =+'%Analysis'!A75 -> Spodumene
A74: 7 | B74: Used | E74: =IF(AND(O74<=R74,P74<=S74),E71,(MIN(R74/O74,S74/P74)*E71)) -> 0 | L74: =E74*(L51/E51) -> 0 | M74: =E74*(M51/E51) -> 0 | O74: =E71*(L51/E51) -> 0 | P74: =E71*(M51/E51) -> 0 | R74: =L71 -> 0 | S74: =M71 -> 0 | T74: eutectic | U74: available | V74: if not limited by | Z74: =+'%Analysis'!A76 -> SrCarb
A75: 7 | B75: Remaining | C75: =C73-C74 -> 0 | D75: 0 | E75: 0 | F75: 0 | G75: 0 | H75: 0 | I75: 0 | J75: 0 | K75: 0 | L75: 0 | M75: 0 | R75: =L75 -> 0 | S75: =M75 -> 0 | T75: ratio | U75: ratio | V75: Al2O3 or SiO2 | Z75: =+'%Analysis'!A77 -> SrO
A76: 8 | B76: Used | F76: =IF(U76=0,0,IF(AND(O76<=R76,P76<=S76),V76,(MIN(R76/O76,S76/P76)*V76))) -> 0 | J76: =IF(U76=0,0,IF(AND(O76<R76,P76<S76),W76,(MIN(R76/O76,S76/P76)*W76))) -> 0 | L76: =J76*(L52/J52) -> 0 | M76: =J76*(M52/J52) -> 0 | O76: =V76*(L52/F52) -> 0 | P76: =V76*(M52/F52) -> 0 | R76: =R75 -> 0 | S76: =S75 -> 0 | T76: =F52/J52 -> 0.8222222222 | U76: =IF(OR(J61=0,F61=0),0,F75/J75) -> 0 | V76: =IF(U76<T76,F75,(J75*T76)) -> 0 | W76: =IF(U76>T76,J75,F75/T76) -> 0 | Z76: =+'%Analysis'!A78 -> Superpax
A77: 8 | B77: Remaining | C77: 0 | D77: 0 | E77: 0 | F77: 0 | G77: 0 | H77: 0 | I77: 0 | J77: =J75-J76 -> 0 | K77: =K75-K76 -> 0 | L77: =L75-L76 -> 0 | M77: =M75-M76 -> 0 | R77: =L77 -> 0 | S77: =M77 -> 0 | Z77: =+'%Analysis'!A79 -> Talc - NYTAL
A78: 9 | B78: Used | H78: =IF(AND(O78<=R78,P78<=S78),H77,MIN(R78/O78,S78/P78)*H77) -> 0 | L78: =H78*(L53/H53) -> 0 | M78: =H78*(M53/H53) -> 0 | O78: =H77*(L53/H53) -> 0 | P78: =H77*(M53/H53) -> 0 | R78: =R77 -> 0 | S78: =S77 -> 0 | Z78: =+'%Analysis'!A80 -> Talc - Texas
A79: 9 | B79: Remaining | C79: =C77-C78 -> 0 | D79: 0 | E79: 0 | F79: 0 | G79: 0 | H79: 0 | I79: 0 | J79: =J77-J78 -> 0 | K79: =K77-K78 -> 0 | L79: =L77-L78 -> 0 | M79: =M77-M78 -> 0 | Z79: =+'%Analysis'!A81 -> TinOxide
A80: 10 | B80: Used | F80: =IF(AND(P80<=S80,O80<=R80),F79,MIN(S80/P80,R80/O80)*F79) -> 0 | L80: =F80*(L54/F54) -> 0 | M80: =F80*(M54/F54) -> 0 | O80: =F79*(L54/F54) -> 0 | P80: =F79*(M54/F54) -> 0 | R80: =L79 -> 0 | S80: =M79 -> 0 | Z80: =+'%Analysis'!A82 -> TiO2
A81: 10 | B81: Remaining | C81: =C79-C80 -> 0 | D81: =D79-D80 -> 0 | E81: 0 | F81: 0 | G81: 0 | H81: 0 | I81: 0 | J81: 0 | K81: 0 | L81: 0 | M81: 0 | R81: =L81 -> 0 | S81: =M81 -> 0 | Z81: =+'%Analysis'!A83 -> Ultrox
A82: 11 | B82: Used | I82: =IF(J2=TRUE,IF(AND(O82<=R82,P82<=S82),I81,MIN(R82/O82,S82/P82)*I81),0) -> 0 | L82: =I82*(L55/I55) -> 0 | M82: =I82*(M55/I55) -> 0 | O82: =I81*(L55/I55) -> 0 | P82: =I81*(M55/I55) -> 0 | R82: =R81 -> 0 | S82: =S81 -> 0 | Z82: =+'%Analysis'!A84 -> Veegum
A83: 11 | B83: Remaining | C83: =C81-C82 -> 0 | D83: =D81-D82 -> 0 | E83: 0 | F83: 0 | G83: 0 | H83: 0 | I83: 0 | J83: 0 | K83: 0 | L83: 0 | M83: 0 | R83: =L83 -> 0 | S83: =M83 -> 0 | Z83: =+'%Analysis'!A85 -> VolAsh
A84: 12 | B84: Used | G84: =IF(M2=TRUE,IF(AND(O84<=R84,P84<=S84),G83,MIN(R84/O84,S84/P84)*G83),0) -> 0 | L84: =G84*(L56/G56) -> 0 | M84: =G84*(M56/G56) -> 0 | O84: =G83*(L56/G56) -> 0 | P84: =G83*(M56/G56) -> 0 | R84: =R83 -> 0 | S84: =S83 -> 0 | Z84: =+'%Analysis'!A86 -> Westex Talc
A85: 12 | B85: Remaining | C85: =C83-C84 -> 0 | D85: =D83-D84 -> 0 | E85: 0 | F85: 0 | G85: 0 | H85: 0 | I85: 0 | J85: 0 | K85: 0 | L85: 0 | M85: 0 | Z85: =+'%Analysis'!A87 -> Whiting
B86: Used in Eutectics | C86: =C61-C85 -> 0 | D86: 0 | E86: 0 | F86: 0 | G86: 0 | H86: 0 | I86: 0 | J86: =J61-J85 -> 0 | K86: 0 | L86: =L61-L85 -> 0 | M86: =M61-M85 -> 0 | Z86: =+'%Analysis'!A88 -> Wollastonite
B87: MW | C87: 94.196 | D87: 61.979 | E87: 29.881 | F87: 56.077 | G87: 40.304 | H87: 153.326 | I87: 103.619 | J87: 81.379 | K87: 69.62 | L87: 101.961 | M87: 60.084 | Z87: =+'%Analysis'!A89 -> Yellow Ochre
B88: =SUM(C88:J88) -> 0 | C88: =C86/C87 -> 0 | D88: =D86/D87 -> 0 | E88: =E86/E87 -> 0 | F88: =F86/F87 -> 0 | G88: =IF(M2=TRUE,G86/G87,0) -> 0 | H88: =H86/H87 -> 0 | I88: =IF(J2=TRUE,I86/I87,0) -> 0 | J88: =J86/J87 -> 0 | K88: =K86/K87 -> 0 | L88: =L86/L87 -> 0 | M88: =M86/M87 -> 0 | V88: =V76/W76 ->  | Z88: =+'%Analysis'!A90 -> Zircopax
B89: Used in Eutectics | C89: =C88/$B$88 ->  | K89: =K88/$B$88 ->  | L89: =L88/$B$88 ->  | M89: =M88/$B$88 ->  | Z89: =+'%Analysis'!A91 -> ZnO
B90: Excess | C90: =(C85/C87)/$B$88 ->  | J90: =(J85/J87)/$B$88 ->  | K90: =(K85/K87)/$B$88 ->  | L90: =(L85/L87)/$B$88 ->  | M90: =(M85/M87)/$B$88 ->  | Z90: =+'%Analysis'!A92 -> 0
B91: UMF | C91: =C61/C87 -> 0 | D91: 0 | E91: 0 | F91: 0 | G91: 0 | H91: 0 | I91: 0 | J91: =J61/J87 -> 0 | K91: =K61/K87 -> 0 | L91: =L61/L87 -> 0 | M91: =M61/M87 -> 0 | Z91: =+'%Analysis'!A93 -> 0
B92: =SUM(C91:J91) -> 0 | C92: =C91/$B$92 ->  | K92: =K91/$B$92 ->  | L92: =L91/$B$92 ->  | M92: =M91/$B$92 ->  | Z92: =+'%Analysis'!A94 -> 0
Z93: =+'%Analysis'!A95 -> 0
C94: K2O | D94: Na2O | E94: Li2O | F94: CaO | G94: MgO | H94: BaO | I94: SrO | J94: ZnO | K94: Al2O3 | L94: SiO2 | M94: Fe2O3 | O94: B2O3 | P94: TiO2 | Z94: =+'%Analysis'!A96 -> 0
B95: Weight % | C95: =+C86/(SUM($C$86:$M$86)) ->  | K95: =+L86/(SUM($C$86:$M$86)) ->  | L95: =+M86/(SUM($C$86:$M$86)) ->  | M95: =+O86/(SUM($C$86:$M$86)) ->  | O95: =+P86/(SUM($C$86:$M$86)) ->  | P95: =+R86/(SUM($C$86:$M$86)) ->  | Z95: =+'%Analysis'!A97 -> 0
Z96: =+'%Analysis'!A98 -> 0
Z97: =+'%Analysis'!A99 -> 0
B98: Mineral | C98: Percent | F98: Tot % | H98: K2O | I98: Na2O | J98: Li2O | K98: CaO | L98: SrO | M98: MgO | O98: ZnO | P98: BaO | Q98: Al2O3 | R98: Fe2O3 | S98: B2O3 | T98: SiO2 | U98: TiO2 | V98: CO2 | W98: H2O | Z98: =+'%Analysis'!A100 -> 0
C99: Weight Totals | F99: 0.926725032 | H99: 408.9 | I99: 170.5 | J99: 0 | K99: 1904.387202 | L99: 0 | M99: 1.4 | O99: 0 | P99: 0 | Q99: 1124.7 | R99: 16.3 | S99: 280 | T99: 5482.7 | U99: 0 | V99: 1319.112798 | W99: 280 | Z99: =+'%Analysis'!A101 -> 0
Z100: =+'%Analysis'!A102 -> 0
Z101: =+'%Analysis'!A103 -> 0
Z102: =+'%Analysis'!A104 -> 0
Z103: =+'%Analysis'!A105 -> 0
Z104: =+'%Analysis'!A106 -> 0
Z105: =+'%Analysis'!A107 -> 0
Z106: =+'%Analysis'!A108 -> 0
Z107: =+'%Analysis'!A109 -> 0
Z108: =+'%Analysis'!A110 -> 0
Z109: =+'%Analysis'!A111 -> 0
Z110: =+'%Analysis'!A112 -> 0
Z111: =+'%Analysis'!A113 -> 0
Z112: =+'%Analysis'!A114 -> 0
Z113: =+'%Analysis'!A115 -> 0
Z114: =+'%Analysis'!A116 -> 0
Z115: =+'%Analysis'!A117 -> 0
Z116: =+'%Analysis'!A118 -> 0
Z117: =+'%Analysis'!A119 -> 0
Z118: =+'%Analysis'!A120 -> 0
Z119: =+'%Analysis'!A121 -> 0
Z120: =+'%Analysis'!A122 -> 0
Z121: =+'%Analysis'!A123 -> 0
Z122: =+'%Analysis'!A124 -> 0
Z123: =+'%Analysis'!A125 -> 0
Z124: =+'%Analysis'!A126 -> 0
Z125: =+'%Analysis'!A127 -> 0
Z126: =+'%Analysis'!A128 -> 0
Z127: =+'%Analysis'!A129 -> 0
Z128: =+'%Analysis'!A130 -> 0
Z129: =+'%Analysis'!A131 -> 0
Z130: =+'%Analysis'!A132 -> 0
Z131: =+'%Analysis'!A133 -> 0
Z132: =+'%Analysis'!A134 -> 0
Z133: =+'%Analysis'!A135 -> 0
Z134: =+'%Analysis'!A136 -> 0
B135: Mineral | C135: Percent | F135: Tot % | H135: K2O | I135: Na2O | J135: Li2O | K135: CaO | L135: SrO | M135: MgO | N135: ZnO | O135: BaO | P135: Al2O3 | Q135: Fe2O3 | R135: B2O3 | S135: SiO2 | T135: TiO2 | U135: CO2 | V135: H2O | Z135: =+'%Analysis'!A137 -> 0
B136: =B7 -> 0 | C136: 0 | H136: =IF(ISERROR(+$C136*+VLOOKUP($B136,'%Analysis'!$A$4:$S$204,4,0)),"",+$C136*+VLOOKUP($B136,'%Analysis'!$A$4:$S$204,4,0)) ->  | I136: =IF(ISERROR(+$C136*+VLOOKUP($B136,'%Analysis'!$A$4:$S$204,5,0)),"",+$C136*+VLOOKUP($B136,'%Analysis'!$A$4:$S$204,5,0)) ->  | J136: =IF(ISERROR(+$C136*+VLOOKUP($B136,'%Analysis'!$A$4:$S$204,6,0)),"",+$C136*+VLOOKUP($B136,'%Analysis'!$A$4:$S$204,6,0)) ->  | K136: =IF(ISERROR(+$C136*+VLOOKUP($B136,'%Analysis'!$A$4:$S$204,7,0)),"",+$C136*+VLOOKUP($B136,'%Analysis'!$A$4:$S$204,7,0)) ->  | L136: =IF(ISERROR(+$C136*+VLOOKUP($B136,'%Analysis'!$A$4:$S$204,8,0)),"",+$C136*+VLOOKUP($B136,'%Analysis'!$A$4:$S$204,8,0)) ->  | M136: =IF(ISERROR(+$C136*+VLOOKUP($B136,'%Analysis'!$A$4:$S$204,9,0)),"",+$C136*+VLOOKUP($B136,'%Analysis'!$A$4:$S$204,9,0)) ->  | N136: =IF(ISERROR(+$C136*+VLOOKUP($B136,'%Analysis'!$A$4:$S$204,10,0)),"",+$C136*+VLOOKUP($B136,'%Analysis'!$A$4:$S$204,10,0)) ->  | O136: =IF(ISERROR(+$C136*+VLOOKUP($B136,'%Analysis'!$A$4:$S$204,11,0)),"",+$C136*+VLOOKUP($B136,'%Analysis'!$A$4:$S$204,11,0)) ->  | P136: =IF(ISERROR(+$C136*+VLOOKUP($B136,'%Analysis'!$A$4:$S$204,12,0)),"",+$C136*+VLOOKUP($B136,'%Analysis'!$A$4:$S$204,12,0)) ->  | Q136: =IF(ISERROR(+$C136*+VLOOKUP($B136,'%Analysis'!$A$4:$S$204,13,0)),"",+$C136*+VLOOKUP($B136,'%Analysis'!$A$4:$S$204,13,0)) ->  | R136: =IF(ISERROR(+$C136*+VLOOKUP($B136,'%Analysis'!$A$4:$S$204,14,0)),"",+$C136*+VLOOKUP($B136,'%Analysis'!$A$4:$S$204,14,0)) ->  | S136: =IF(ISERROR(+$C136*+VLOOKUP($B136,'%Analysis'!$A$4:$S$204,15,0)),"",+$C136*+VLOOKUP($B136,'%Analysis'!$A$4:$S$204,15,0)) ->  | T136: =IF(ISERROR(+$C136*+VLOOKUP($B136,'%Analysis'!$A$4:$S$204,16,0)),"",+$C136*+VLOOKUP($B136,'%Analysis'!$A$4:$S$204,16,0)) ->  | U136: =IF(ISERROR(+$C136*+VLOOKUP($B136,'%Analysis'!$A$4:$S$204,17,0)),"",+$C136*+VLOOKUP($B136,'%Analysis'!$A$4:$S$204,17,0)) ->  | V136: =IF(ISERROR(+$C136*+VLOOKUP($B136,'%Analysis'!$A$4:$S$204,18,0)),"",+$C136*+VLOOKUP($B136,'%Analysis'!$A$4:$S$204,18,0)) ->  | Z136: =+'%Analysis'!A138 -> 0
B137: 0 | C137: 0 | H137: =IF(ISERROR(+$C137*+VLOOKUP($B137,'%Analysis'!$A$4:$S$204,4,0)),"",+$C137*+VLOOKUP($B137,'%Analysis'!$A$4:$S$204,4,0)) ->  | I137: =IF(ISERROR(+$C137*+VLOOKUP($B137,'%Analysis'!$A$4:$S$204,5,0)),"",+$C137*+VLOOKUP($B137,'%Analysis'!$A$4:$S$204,5,0)) ->  | J137: =IF(ISERROR(+$C137*+VLOOKUP($B137,'%Analysis'!$A$4:$S$204,6,0)),"",+$C137*+VLOOKUP($B137,'%Analysis'!$A$4:$S$204,6,0)) ->  | K137: =IF(ISERROR(+$C137*+VLOOKUP($B137,'%Analysis'!$A$4:$S$204,7,0)),"",+$C137*+VLOOKUP($B137,'%Analysis'!$A$4:$S$204,7,0)) ->  | L137: =IF(ISERROR(+$C137*+VLOOKUP($B137,'%Analysis'!$A$4:$S$204,8,0)),"",+$C137*+VLOOKUP($B137,'%Analysis'!$A$4:$S$204,8,0)) ->  | M137: =IF(ISERROR(+$C137*+VLOOKUP($B137,'%Analysis'!$A$4:$S$204,9,0)),"",+$C137*+VLOOKUP($B137,'%Analysis'!$A$4:$S$204,9,0)) ->  | N137: =IF(ISERROR(+$C137*+VLOOKUP($B137,'%Analysis'!$A$4:$S$204,10,0)),"",+$C137*+VLOOKUP($B137,'%Analysis'!$A$4:$S$204,10,0)) ->  | O137: =IF(ISERROR(+$C137*+VLOOKUP($B137,'%Analysis'!$A$4:$S$204,11,0)),"",+$C137*+VLOOKUP($B137,'%Analysis'!$A$4:$S$204,11,0)) ->  | P137: =IF(ISERROR(+$C137*+VLOOKUP($B137,'%Analysis'!$A$4:$S$204,12,0)),"",+$C137*+VLOOKUP($B137,'%Analysis'!$A$4:$S$204,12,0)) ->  | Q137: =IF(ISERROR(+$C137*+VLOOKUP($B137,'%Analysis'!$A$4:$S$204,13,0)),"",+$C137*+VLOOKUP($B137,'%Analysis'!$A$4:$S$204,13,0)) ->  | R137: =IF(ISERROR(+$C137*+VLOOKUP($B137,'%Analysis'!$A$4:$S$204,14,0)),"",+$C137*+VLOOKUP($B137,'%Analysis'!$A$4:$S$204,14,0)) ->  | S137: =IF(ISERROR(+$C137*+VLOOKUP($B137,'%Analysis'!$A$4:$S$204,15,0)),"",+$C137*+VLOOKUP($B137,'%Analysis'!$A$4:$S$204,15,0)) ->  | T137: =IF(ISERROR(+$C137*+VLOOKUP($B137,'%Analysis'!$A$4:$S$204,16,0)),"",+$C137*+VLOOKUP($B137,'%Analysis'!$A$4:$S$204,16,0)) ->  | U137: =IF(ISERROR(+$C137*+VLOOKUP($B137,'%Analysis'!$A$4:$S$204,17,0)),"",+$C137*+VLOOKUP($B137,'%Analysis'!$A$4:$S$204,17,0)) ->  | V137: =IF(ISERROR(+$C137*+VLOOKUP($B137,'%Analysis'!$A$4:$S$204,18,0)),"",+$C137*+VLOOKUP($B137,'%Analysis'!$A$4:$S$204,18,0)) ->  | Z137: =+'%Analysis'!A139 -> 0
B138: 0 | C138: 0 | H138: =IF(ISERROR(+$C138*+VLOOKUP($B138,'%Analysis'!$A$4:$S$204,4,0)),"",+$C138*+VLOOKUP($B138,'%Analysis'!$A$4:$S$204,4,0)) ->  | I138: =IF(ISERROR(+$C138*+VLOOKUP($B138,'%Analysis'!$A$4:$S$204,5,0)),"",+$C138*+VLOOKUP($B138,'%Analysis'!$A$4:$S$204,5,0)) ->  | J138: =IF(ISERROR(+$C138*+VLOOKUP($B138,'%Analysis'!$A$4:$S$204,6,0)),"",+$C138*+VLOOKUP($B138,'%Analysis'!$A$4:$S$204,6,0)) ->  | K138: =IF(ISERROR(+$C138*+VLOOKUP($B138,'%Analysis'!$A$4:$S$204,7,0)),"",+$C138*+VLOOKUP($B138,'%Analysis'!$A$4:$S$204,7,0)) ->  | L138: =IF(ISERROR(+$C138*+VLOOKUP($B138,'%Analysis'!$A$4:$S$204,8,0)),"",+$C138*+VLOOKUP($B138,'%Analysis'!$A$4:$S$204,8,0)) ->  | M138: =IF(ISERROR(+$C138*+VLOOKUP($B138,'%Analysis'!$A$4:$S$204,9,0)),"",+$C138*+VLOOKUP($B138,'%Analysis'!$A$4:$S$204,9,0)) ->  | N138: =IF(ISERROR(+$C138*+VLOOKUP($B138,'%Analysis'!$A$4:$S$204,10,0)),"",+$C138*+VLOOKUP($B138,'%Analysis'!$A$4:$S$204,10,0)) ->  | O138: =IF(ISERROR(+$C138*+VLOOKUP($B138,'%Analysis'!$A$4:$S$204,11,0)),"",+$C138*+VLOOKUP($B138,'%Analysis'!$A$4:$S$204,11,0)) ->  | P138: =IF(ISERROR(+$C138*+VLOOKUP($B138,'%Analysis'!$A$4:$S$204,12,0)),"",+$C138*+VLOOKUP($B138,'%Analysis'!$A$4:$S$204,12,0)) ->  | Q138: =IF(ISERROR(+$C138*+VLOOKUP($B138,'%Analysis'!$A$4:$S$204,13,0)),"",+$C138*+VLOOKUP($B138,'%Analysis'!$A$4:$S$204,13,0)) ->  | R138: =IF(ISERROR(+$C138*+VLOOKUP($B138,'%Analysis'!$A$4:$S$204,14,0)),"",+$C138*+VLOOKUP($B138,'%Analysis'!$A$4:$S$204,14,0)) ->  | S138: =IF(ISERROR(+$C138*+VLOOKUP($B138,'%Analysis'!$A$4:$S$204,15,0)),"",+$C138*+VLOOKUP($B138,'%Analysis'!$A$4:$S$204,15,0)) ->  | T138: =IF(ISERROR(+$C138*+VLOOKUP($B138,'%Analysis'!$A$4:$S$204,16,0)),"",+$C138*+VLOOKUP($B138,'%Analysis'!$A$4:$S$204,16,0)) ->  | U138: =IF(ISERROR(+$C138*+VLOOKUP($B138,'%Analysis'!$A$4:$S$204,17,0)),"",+$C138*+VLOOKUP($B138,'%Analysis'!$A$4:$S$204,17,0)) ->  | V138: =IF(ISERROR(+$C138*+VLOOKUP($B138,'%Analysis'!$A$4:$S$204,18,0)),"",+$C138*+VLOOKUP($B138,'%Analysis'!$A$4:$S$204,18,0)) ->  | Z138: =+'%Analysis'!A140 -> 0
B139: 0 | C139: 0 | H139: =IF(ISERROR(+$C139*+VLOOKUP($B139,'%Analysis'!$A$4:$S$204,4,0)),"",+$C139*+VLOOKUP($B139,'%Analysis'!$A$4:$S$204,4,0)) ->  | I139: =IF(ISERROR(+$C139*+VLOOKUP($B139,'%Analysis'!$A$4:$S$204,5,0)),"",+$C139*+VLOOKUP($B139,'%Analysis'!$A$4:$S$204,5,0)) ->  | J139: =IF(ISERROR(+$C139*+VLOOKUP($B139,'%Analysis'!$A$4:$S$204,6,0)),"",+$C139*+VLOOKUP($B139,'%Analysis'!$A$4:$S$204,6,0)) ->  | K139: =IF(ISERROR(+$C139*+VLOOKUP($B139,'%Analysis'!$A$4:$S$204,7,0)),"",+$C139*+VLOOKUP($B139,'%Analysis'!$A$4:$S$204,7,0)) ->  | L139: =IF(ISERROR(+$C139*+VLOOKUP($B139,'%Analysis'!$A$4:$S$204,8,0)),"",+$C139*+VLOOKUP($B139,'%Analysis'!$A$4:$S$204,8,0)) ->  | M139: =IF(ISERROR(+$C139*+VLOOKUP($B139,'%Analysis'!$A$4:$S$204,9,0)),"",+$C139*+VLOOKUP($B139,'%Analysis'!$A$4:$S$204,9,0)) ->  | N139: =IF(ISERROR(+$C139*+VLOOKUP($B139,'%Analysis'!$A$4:$S$204,10,0)),"",+$C139*+VLOOKUP($B139,'%Analysis'!$A$4:$S$204,10,0)) ->  | O139: =IF(ISERROR(+$C139*+VLOOKUP($B139,'%Analysis'!$A$4:$S$204,11,0)),"",+$C139*+VLOOKUP($B139,'%Analysis'!$A$4:$S$204,11,0)) ->  | P139: =IF(ISERROR(+$C139*+VLOOKUP($B139,'%Analysis'!$A$4:$S$204,12,0)),"",+$C139*+VLOOKUP($B139,'%Analysis'!$A$4:$S$204,12,0)) ->  | Q139: =IF(ISERROR(+$C139*+VLOOKUP($B139,'%Analysis'!$A$4:$S$204,13,0)),"",+$C139*+VLOOKUP($B139,'%Analysis'!$A$4:$S$204,13,0)) ->  | R139: =IF(ISERROR(+$C139*+VLOOKUP($B139,'%Analysis'!$A$4:$S$204,14,0)),"",+$C139*+VLOOKUP($B139,'%Analysis'!$A$4:$S$204,14,0)) ->  | S139: =IF(ISERROR(+$C139*+VLOOKUP($B139,'%Analysis'!$A$4:$S$204,15,0)),"",+$C139*+VLOOKUP($B139,'%Analysis'!$A$4:$S$204,15,0)) ->  | T139: =IF(ISERROR(+$C139*+VLOOKUP($B139,'%Analysis'!$A$4:$S$204,16,0)),"",+$C139*+VLOOKUP($B139,'%Analysis'!$A$4:$S$204,16,0)) ->  | U139: =IF(ISERROR(+$C139*+VLOOKUP($B139,'%Analysis'!$A$4:$S$204,17,0)),"",+$C139*+VLOOKUP($B139,'%Analysis'!$A$4:$S$204,17,0)) ->  | V139: =IF(ISERROR(+$C139*+VLOOKUP($B139,'%Analysis'!$A$4:$S$204,18,0)),"",+$C139*+VLOOKUP($B139,'%Analysis'!$A$4:$S$204,18,0)) ->  | Z139: =+'%Analysis'!A141 -> 0
B140: 0 | C140: 0 | H140: =IF(ISERROR(+$C140*+VLOOKUP($B140,'%Analysis'!$A$4:$S$204,4,0)),"",+$C140*+VLOOKUP($B140,'%Analysis'!$A$4:$S$204,4,0)) ->  | I140: =IF(ISERROR(+$C140*+VLOOKUP($B140,'%Analysis'!$A$4:$S$204,5,0)),"",+$C140*+VLOOKUP($B140,'%Analysis'!$A$4:$S$204,5,0)) ->  | J140: =IF(ISERROR(+$C140*+VLOOKUP($B140,'%Analysis'!$A$4:$S$204,6,0)),"",+$C140*+VLOOKUP($B140,'%Analysis'!$A$4:$S$204,6,0)) ->  | K140: =IF(ISERROR(+$C140*+VLOOKUP($B140,'%Analysis'!$A$4:$S$204,7,0)),"",+$C140*+VLOOKUP($B140,'%Analysis'!$A$4:$S$204,7,0)) ->  | L140: =IF(ISERROR(+$C140*+VLOOKUP($B140,'%Analysis'!$A$4:$S$204,8,0)),"",+$C140*+VLOOKUP($B140,'%Analysis'!$A$4:$S$204,8,0)) ->  | M140: =IF(ISERROR(+$C140*+VLOOKUP($B140,'%Analysis'!$A$4:$S$204,9,0)),"",+$C140*+VLOOKUP($B140,'%Analysis'!$A$4:$S$204,9,0)) ->  | N140: =IF(ISERROR(+$C140*+VLOOKUP($B140,'%Analysis'!$A$4:$S$204,10,0)),"",+$C140*+VLOOKUP($B140,'%Analysis'!$A$4:$S$204,10,0)) ->  | O140: =IF(ISERROR(+$C140*+VLOOKUP($B140,'%Analysis'!$A$4:$S$204,11,0)),"",+$C140*+VLOOKUP($B140,'%Analysis'!$A$4:$S$204,11,0)) ->  | P140: =IF(ISERROR(+$C140*+VLOOKUP($B140,'%Analysis'!$A$4:$S$204,12,0)),"",+$C140*+VLOOKUP($B140,'%Analysis'!$A$4:$S$204,12,0)) ->  | Q140: =IF(ISERROR(+$C140*+VLOOKUP($B140,'%Analysis'!$A$4:$S$204,13,0)),"",+$C140*+VLOOKUP($B140,'%Analysis'!$A$4:$S$204,13,0)) ->  | R140: =IF(ISERROR(+$C140*+VLOOKUP($B140,'%Analysis'!$A$4:$S$204,14,0)),"",+$C140*+VLOOKUP($B140,'%Analysis'!$A$4:$S$204,14,0)) ->  | S140: =IF(ISERROR(+$C140*+VLOOKUP($B140,'%Analysis'!$A$4:$S$204,15,0)),"",+$C140*+VLOOKUP($B140,'%Analysis'!$A$4:$S$204,15,0)) ->  | T140: =IF(ISERROR(+$C140*+VLOOKUP($B140,'%Analysis'!$A$4:$S$204,16,0)),"",+$C140*+VLOOKUP($B140,'%Analysis'!$A$4:$S$204,16,0)) ->  | U140: =IF(ISERROR(+$C140*+VLOOKUP($B140,'%Analysis'!$A$4:$S$204,17,0)),"",+$C140*+VLOOKUP($B140,'%Analysis'!$A$4:$S$204,17,0)) ->  | V140: =IF(ISERROR(+$C140*+VLOOKUP($B140,'%Analysis'!$A$4:$S$204,18,0)),"",+$C140*+VLOOKUP($B140,'%Analysis'!$A$4:$S$204,18,0)) ->  | Z140: =+'%Analysis'!A142 -> 0
B141: 0 | C141: 0 | H141: =IF(ISERROR(+$C141*+VLOOKUP($B141,'%Analysis'!$A$4:$S$204,4,0)),"",+$C141*+VLOOKUP($B141,'%Analysis'!$A$4:$S$204,4,0)) ->  | I141: =IF(ISERROR(+$C141*+VLOOKUP($B141,'%Analysis'!$A$4:$S$204,5,0)),"",+$C141*+VLOOKUP($B141,'%Analysis'!$A$4:$S$204,5,0)) ->  | J141: =IF(ISERROR(+$C141*+VLOOKUP($B141,'%Analysis'!$A$4:$S$204,6,0)),"",+$C141*+VLOOKUP($B141,'%Analysis'!$A$4:$S$204,6,0)) ->  | K141: =IF(ISERROR(+$C141*+VLOOKUP($B141,'%Analysis'!$A$4:$S$204,7,0)),"",+$C141*+VLOOKUP($B141,'%Analysis'!$A$4:$S$204,7,0)) ->  | L141: =IF(ISERROR(+$C141*+VLOOKUP($B141,'%Analysis'!$A$4:$S$204,8,0)),"",+$C141*+VLOOKUP($B141,'%Analysis'!$A$4:$S$204,8,0)) ->  | M141: =IF(ISERROR(+$C141*+VLOOKUP($B141,'%Analysis'!$A$4:$S$204,9,0)),"",+$C141*+VLOOKUP($B141,'%Analysis'!$A$4:$S$204,9,0)) ->  | N141: =IF(ISERROR(+$C141*+VLOOKUP($B141,'%Analysis'!$A$4:$S$204,10,0)),"",+$C141*+VLOOKUP($B141,'%Analysis'!$A$4:$S$204,10,0)) ->  | O141: =IF(ISERROR(+$C141*+VLOOKUP($B141,'%Analysis'!$A$4:$S$204,11,0)),"",+$C141*+VLOOKUP($B141,'%Analysis'!$A$4:$S$204,11,0)) ->  | P141: =IF(ISERROR(+$C141*+VLOOKUP($B141,'%Analysis'!$A$4:$S$204,12,0)),"",+$C141*+VLOOKUP($B141,'%Analysis'!$A$4:$S$204,12,0)) ->  | Q141: =IF(ISERROR(+$C141*+VLOOKUP($B141,'%Analysis'!$A$4:$S$204,13,0)),"",+$C141*+VLOOKUP($B141,'%Analysis'!$A$4:$S$204,13,0)) ->  | R141: =IF(ISERROR(+$C141*+VLOOKUP($B141,'%Analysis'!$A$4:$S$204,14,0)),"",+$C141*+VLOOKUP($B141,'%Analysis'!$A$4:$S$204,14,0)) ->  | S141: =IF(ISERROR(+$C141*+VLOOKUP($B141,'%Analysis'!$A$4:$S$204,15,0)),"",+$C141*+VLOOKUP($B141,'%Analysis'!$A$4:$S$204,15,0)) ->  | T141: =IF(ISERROR(+$C141*+VLOOKUP($B141,'%Analysis'!$A$4:$S$204,16,0)),"",+$C141*+VLOOKUP($B141,'%Analysis'!$A$4:$S$204,16,0)) ->  | U141: =IF(ISERROR(+$C141*+VLOOKUP($B141,'%Analysis'!$A$4:$S$204,17,0)),"",+$C141*+VLOOKUP($B141,'%Analysis'!$A$4:$S$204,17,0)) ->  | V141: =IF(ISERROR(+$C141*+VLOOKUP($B141,'%Analysis'!$A$4:$S$204,18,0)),"",+$C141*+VLOOKUP($B141,'%Analysis'!$A$4:$S$204,18,0)) ->  | Z141: =+'%Analysis'!A143 -> 0
B142: 0 | C142: 0 | H142: =IF(ISERROR(+$C142*+VLOOKUP($B142,'%Analysis'!$A$4:$S$204,4,0)),"",+$C142*+VLOOKUP($B142,'%Analysis'!$A$4:$S$204,4,0)) ->  | I142: =IF(ISERROR(+$C142*+VLOOKUP($B142,'%Analysis'!$A$4:$S$204,5,0)),"",+$C142*+VLOOKUP($B142,'%Analysis'!$A$4:$S$204,5,0)) ->  | J142: =IF(ISERROR(+$C142*+VLOOKUP($B142,'%Analysis'!$A$4:$S$204,6,0)),"",+$C142*+VLOOKUP($B142,'%Analysis'!$A$4:$S$204,6,0)) ->  | K142: =IF(ISERROR(+$C142*+VLOOKUP($B142,'%Analysis'!$A$4:$S$204,7,0)),"",+$C142*+VLOOKUP($B142,'%Analysis'!$A$4:$S$204,7,0)) ->  | L142: =IF(ISERROR(+$C142*+VLOOKUP($B142,'%Analysis'!$A$4:$S$204,8,0)),"",+$C142*+VLOOKUP($B142,'%Analysis'!$A$4:$S$204,8,0)) ->  | M142: =IF(ISERROR(+$C142*+VLOOKUP($B142,'%Analysis'!$A$4:$S$204,9,0)),"",+$C142*+VLOOKUP($B142,'%Analysis'!$A$4:$S$204,9,0)) ->  | N142: =IF(ISERROR(+$C142*+VLOOKUP($B142,'%Analysis'!$A$4:$S$204,10,0)),"",+$C142*+VLOOKUP($B142,'%Analysis'!$A$4:$S$204,10,0)) ->  | O142: =IF(ISERROR(+$C142*+VLOOKUP($B142,'%Analysis'!$A$4:$S$204,11,0)),"",+$C142*+VLOOKUP($B142,'%Analysis'!$A$4:$S$204,11,0)) ->  | P142: =IF(ISERROR(+$C142*+VLOOKUP($B142,'%Analysis'!$A$4:$S$204,12,0)),"",+$C142*+VLOOKUP($B142,'%Analysis'!$A$4:$S$204,12,0)) ->  | Q142: =IF(ISERROR(+$C142*+VLOOKUP($B142,'%Analysis'!$A$4:$S$204,13,0)),"",+$C142*+VLOOKUP($B142,'%Analysis'!$A$4:$S$204,13,0)) ->  | R142: =IF(ISERROR(+$C142*+VLOOKUP($B142,'%Analysis'!$A$4:$S$204,14,0)),"",+$C142*+VLOOKUP($B142,'%Analysis'!$A$4:$S$204,14,0)) ->  | S142: =IF(ISERROR(+$C142*+VLOOKUP($B142,'%Analysis'!$A$4:$S$204,15,0)),"",+$C142*+VLOOKUP($B142,'%Analysis'!$A$4:$S$204,15,0)) ->  | T142: =IF(ISERROR(+$C142*+VLOOKUP($B142,'%Analysis'!$A$4:$S$204,16,0)),"",+$C142*+VLOOKUP($B142,'%Analysis'!$A$4:$S$204,16,0)) ->  | U142: =IF(ISERROR(+$C142*+VLOOKUP($B142,'%Analysis'!$A$4:$S$204,17,0)),"",+$C142*+VLOOKUP($B142,'%Analysis'!$A$4:$S$204,17,0)) ->  | V142: =IF(ISERROR(+$C142*+VLOOKUP($B142,'%Analysis'!$A$4:$S$204,18,0)),"",+$C142*+VLOOKUP($B142,'%Analysis'!$A$4:$S$204,18,0)) ->  | Z142: =+'%Analysis'!A144 -> 0
B143: 0 | C143: 0 | H143: =IF(ISERROR(+$C143*+VLOOKUP($B143,'%Analysis'!$A$4:$S$204,4,0)),"",+$C143*+VLOOKUP($B143,'%Analysis'!$A$4:$S$204,4,0)) ->  | I143: =IF(ISERROR(+$C143*+VLOOKUP($B143,'%Analysis'!$A$4:$S$204,5,0)),"",+$C143*+VLOOKUP($B143,'%Analysis'!$A$4:$S$204,5,0)) ->  | J143: =IF(ISERROR(+$C143*+VLOOKUP($B143,'%Analysis'!$A$4:$S$204,6,0)),"",+$C143*+VLOOKUP($B143,'%Analysis'!$A$4:$S$204,6,0)) ->  | K143: =IF(ISERROR(+$C143*+VLOOKUP($B143,'%Analysis'!$A$4:$S$204,7,0)),"",+$C143*+VLOOKUP($B143,'%Analysis'!$A$4:$S$204,7,0)) ->  | L143: =IF(ISERROR(+$C143*+VLOOKUP($B143,'%Analysis'!$A$4:$S$204,8,0)),"",+$C143*+VLOOKUP($B143,'%Analysis'!$A$4:$S$204,8,0)) ->  | M143: =IF(ISERROR(+$C143*+VLOOKUP($B143,'%Analysis'!$A$4:$S$204,9,0)),"",+$C143*+VLOOKUP($B143,'%Analysis'!$A$4:$S$204,9,0)) ->  | N143: =IF(ISERROR(+$C143*+VLOOKUP($B143,'%Analysis'!$A$4:$S$204,10,0)),"",+$C143*+VLOOKUP($B143,'%Analysis'!$A$4:$S$204,10,0)) ->  | O143: =IF(ISERROR(+$C143*+VLOOKUP($B143,'%Analysis'!$A$4:$S$204,11,0)),"",+$C143*+VLOOKUP($B143,'%Analysis'!$A$4:$S$204,11,0)) ->  | P143: =IF(ISERROR(+$C143*+VLOOKUP($B143,'%Analysis'!$A$4:$S$204,12,0)),"",+$C143*+VLOOKUP($B143,'%Analysis'!$A$4:$S$204,12,0)) ->  | Q143: =IF(ISERROR(+$C143*+VLOOKUP($B143,'%Analysis'!$A$4:$S$204,13,0)),"",+$C143*+VLOOKUP($B143,'%Analysis'!$A$4:$S$204,13,0)) ->  | R143: =IF(ISERROR(+$C143*+VLOOKUP($B143,'%Analysis'!$A$4:$S$204,14,0)),"",+$C143*+VLOOKUP($B143,'%Analysis'!$A$4:$S$204,14,0)) ->  | S143: =IF(ISERROR(+$C143*+VLOOKUP($B143,'%Analysis'!$A$4:$S$204,15,0)),"",+$C143*+VLOOKUP($B143,'%Analysis'!$A$4:$S$204,15,0)) ->  | T143: =IF(ISERROR(+$C143*+VLOOKUP($B143,'%Analysis'!$A$4:$S$204,16,0)),"",+$C143*+VLOOKUP($B143,'%Analysis'!$A$4:$S$204,16,0)) ->  | U143: =IF(ISERROR(+$C143*+VLOOKUP($B143,'%Analysis'!$A$4:$S$204,17,0)),"",+$C143*+VLOOKUP($B143,'%Analysis'!$A$4:$S$204,17,0)) ->  | V143: =IF(ISERROR(+$C143*+VLOOKUP($B143,'%Analysis'!$A$4:$S$204,18,0)),"",+$C143*+VLOOKUP($B143,'%Analysis'!$A$4:$S$204,18,0)) ->  | Z143: =+'%Analysis'!A145 -> 0
B144: 0 | C144: 0 | H144: =IF(ISERROR(+$C144*+VLOOKUP($B144,'%Analysis'!$A$4:$S$204,4,0)),"",+$C144*+VLOOKUP($B144,'%Analysis'!$A$4:$S$204,4,0)) ->  | I144: =IF(ISERROR(+$C144*+VLOOKUP($B144,'%Analysis'!$A$4:$S$204,5,0)),"",+$C144*+VLOOKUP($B144,'%Analysis'!$A$4:$S$204,5,0)) ->  | J144: =IF(ISERROR(+$C144*+VLOOKUP($B144,'%Analysis'!$A$4:$S$204,6,0)),"",+$C144*+VLOOKUP($B144,'%Analysis'!$A$4:$S$204,6,0)) ->  | K144: =IF(ISERROR(+$C144*+VLOOKUP($B144,'%Analysis'!$A$4:$S$204,7,0)),"",+$C144*+VLOOKUP($B144,'%Analysis'!$A$4:$S$204,7,0)) ->  | L144: =IF(ISERROR(+$C144*+VLOOKUP($B144,'%Analysis'!$A$4:$S$204,8,0)),"",+$C144*+VLOOKUP($B144,'%Analysis'!$A$4:$S$204,8,0)) ->  | M144: =IF(ISERROR(+$C144*+VLOOKUP($B144,'%Analysis'!$A$4:$S$204,9,0)),"",+$C144*+VLOOKUP($B144,'%Analysis'!$A$4:$S$204,9,0)) ->  | N144: =IF(ISERROR(+$C144*+VLOOKUP($B144,'%Analysis'!$A$4:$S$204,10,0)),"",+$C144*+VLOOKUP($B144,'%Analysis'!$A$4:$S$204,10,0)) ->  | O144: =IF(ISERROR(+$C144*+VLOOKUP($B144,'%Analysis'!$A$4:$S$204,11,0)),"",+$C144*+VLOOKUP($B144,'%Analysis'!$A$4:$S$204,11,0)) ->  | P144: =IF(ISERROR(+$C144*+VLOOKUP($B144,'%Analysis'!$A$4:$S$204,12,0)),"",+$C144*+VLOOKUP($B144,'%Analysis'!$A$4:$S$204,12,0)) ->  | Q144: =IF(ISERROR(+$C144*+VLOOKUP($B144,'%Analysis'!$A$4:$S$204,13,0)),"",+$C144*+VLOOKUP($B144,'%Analysis'!$A$4:$S$204,13,0)) ->  | R144: =IF(ISERROR(+$C144*+VLOOKUP($B144,'%Analysis'!$A$4:$S$204,14,0)),"",+$C144*+VLOOKUP($B144,'%Analysis'!$A$4:$S$204,14,0)) ->  | S144: =IF(ISERROR(+$C144*+VLOOKUP($B144,'%Analysis'!$A$4:$S$204,15,0)),"",+$C144*+VLOOKUP($B144,'%Analysis'!$A$4:$S$204,15,0)) ->  | T144: =IF(ISERROR(+$C144*+VLOOKUP($B144,'%Analysis'!$A$4:$S$204,16,0)),"",+$C144*+VLOOKUP($B144,'%Analysis'!$A$4:$S$204,16,0)) ->  | U144: =IF(ISERROR(+$C144*+VLOOKUP($B144,'%Analysis'!$A$4:$S$204,17,0)),"",+$C144*+VLOOKUP($B144,'%Analysis'!$A$4:$S$204,17,0)) ->  | V144: =IF(ISERROR(+$C144*+VLOOKUP($B144,'%Analysis'!$A$4:$S$204,18,0)),"",+$C144*+VLOOKUP($B144,'%Analysis'!$A$4:$S$204,18,0)) ->  | Z144: =+'%Analysis'!A146 -> 0
B145: 0 | C145: 0 | H145: =IF(ISERROR(+$C145*+VLOOKUP($B145,'%Analysis'!$A$4:$S$204,4,0)),"",+$C145*+VLOOKUP($B145,'%Analysis'!$A$4:$S$204,4,0)) ->  | I145: =IF(ISERROR(+$C145*+VLOOKUP($B145,'%Analysis'!$A$4:$S$204,5,0)),"",+$C145*+VLOOKUP($B145,'%Analysis'!$A$4:$S$204,5,0)) ->  | J145: =IF(ISERROR(+$C145*+VLOOKUP($B145,'%Analysis'!$A$4:$S$204,6,0)),"",+$C145*+VLOOKUP($B145,'%Analysis'!$A$4:$S$204,6,0)) ->  | K145: =IF(ISERROR(+$C145*+VLOOKUP($B145,'%Analysis'!$A$4:$S$204,7,0)),"",+$C145*+VLOOKUP($B145,'%Analysis'!$A$4:$S$204,7,0)) ->  | L145: =IF(ISERROR(+$C145*+VLOOKUP($B145,'%Analysis'!$A$4:$S$204,8,0)),"",+$C145*+VLOOKUP($B145,'%Analysis'!$A$4:$S$204,8,0)) ->  | M145: =IF(ISERROR(+$C145*+VLOOKUP($B145,'%Analysis'!$A$4:$S$204,9,0)),"",+$C145*+VLOOKUP($B145,'%Analysis'!$A$4:$S$204,9,0)) ->  | N145: =IF(ISERROR(+$C145*+VLOOKUP($B145,'%Analysis'!$A$4:$S$204,10,0)),"",+$C145*+VLOOKUP($B145,'%Analysis'!$A$4:$S$204,10,0)) ->  | O145: =IF(ISERROR(+$C145*+VLOOKUP($B145,'%Analysis'!$A$4:$S$204,11,0)),"",+$C145*+VLOOKUP($B145,'%Analysis'!$A$4:$S$204,11,0)) ->  | P145: =IF(ISERROR(+$C145*+VLOOKUP($B145,'%Analysis'!$A$4:$S$204,12,0)),"",+$C145*+VLOOKUP($B145,'%Analysis'!$A$4:$S$204,12,0)) ->  | Q145: =IF(ISERROR(+$C145*+VLOOKUP($B145,'%Analysis'!$A$4:$S$204,13,0)),"",+$C145*+VLOOKUP($B145,'%Analysis'!$A$4:$S$204,13,0)) ->  | R145: =IF(ISERROR(+$C145*+VLOOKUP($B145,'%Analysis'!$A$4:$S$204,14,0)),"",+$C145*+VLOOKUP($B145,'%Analysis'!$A$4:$S$204,14,0)) ->  | S145: =IF(ISERROR(+$C145*+VLOOKUP($B145,'%Analysis'!$A$4:$S$204,15,0)),"",+$C145*+VLOOKUP($B145,'%Analysis'!$A$4:$S$204,15,0)) ->  | T145: =IF(ISERROR(+$C145*+VLOOKUP($B145,'%Analysis'!$A$4:$S$204,16,0)),"",+$C145*+VLOOKUP($B145,'%Analysis'!$A$4:$S$204,16,0)) ->  | U145: =IF(ISERROR(+$C145*+VLOOKUP($B145,'%Analysis'!$A$4:$S$204,17,0)),"",+$C145*+VLOOKUP($B145,'%Analysis'!$A$4:$S$204,17,0)) ->  | V145: =IF(ISERROR(+$C145*+VLOOKUP($B145,'%Analysis'!$A$4:$S$204,18,0)),"",+$C145*+VLOOKUP($B145,'%Analysis'!$A$4:$S$204,18,0)) ->  | Z145: =+'%Analysis'!A147 -> 0
B146: 0 | C146: 0 | H146: =IF(ISERROR(+$C146*+VLOOKUP($B146,'%Analysis'!$A$4:$S$204,4,0)),"",+$C146*+VLOOKUP($B146,'%Analysis'!$A$4:$S$204,4,0)) ->  | I146: =IF(ISERROR(+$C146*+VLOOKUP($B146,'%Analysis'!$A$4:$S$204,5,0)),"",+$C146*+VLOOKUP($B146,'%Analysis'!$A$4:$S$204,5,0)) ->  | J146: =IF(ISERROR(+$C146*+VLOOKUP($B146,'%Analysis'!$A$4:$S$204,6,0)),"",+$C146*+VLOOKUP($B146,'%Analysis'!$A$4:$S$204,6,0)) ->  | K146: =IF(ISERROR(+$C146*+VLOOKUP($B146,'%Analysis'!$A$4:$S$204,7,0)),"",+$C146*+VLOOKUP($B146,'%Analysis'!$A$4:$S$204,7,0)) ->  | L146: =IF(ISERROR(+$C146*+VLOOKUP($B146,'%Analysis'!$A$4:$S$204,8,0)),"",+$C146*+VLOOKUP($B146,'%Analysis'!$A$4:$S$204,8,0)) ->  | M146: =IF(ISERROR(+$C146*+VLOOKUP($B146,'%Analysis'!$A$4:$S$204,9,0)),"",+$C146*+VLOOKUP($B146,'%Analysis'!$A$4:$S$204,9,0)) ->  | N146: =IF(ISERROR(+$C146*+VLOOKUP($B146,'%Analysis'!$A$4:$S$204,10,0)),"",+$C146*+VLOOKUP($B146,'%Analysis'!$A$4:$S$204,10,0)) ->  | O146: =IF(ISERROR(+$C146*+VLOOKUP($B146,'%Analysis'!$A$4:$S$204,11,0)),"",+$C146*+VLOOKUP($B146,'%Analysis'!$A$4:$S$204,11,0)) ->  | P146: =IF(ISERROR(+$C146*+VLOOKUP($B146,'%Analysis'!$A$4:$S$204,12,0)),"",+$C146*+VLOOKUP($B146,'%Analysis'!$A$4:$S$204,12,0)) ->  | Q146: =IF(ISERROR(+$C146*+VLOOKUP($B146,'%Analysis'!$A$4:$S$204,13,0)),"",+$C146*+VLOOKUP($B146,'%Analysis'!$A$4:$S$204,13,0)) ->  | R146: =IF(ISERROR(+$C146*+VLOOKUP($B146,'%Analysis'!$A$4:$S$204,14,0)),"",+$C146*+VLOOKUP($B146,'%Analysis'!$A$4:$S$204,14,0)) ->  | S146: =IF(ISERROR(+$C146*+VLOOKUP($B146,'%Analysis'!$A$4:$S$204,15,0)),"",+$C146*+VLOOKUP($B146,'%Analysis'!$A$4:$S$204,15,0)) ->  | T146: =IF(ISERROR(+$C146*+VLOOKUP($B146,'%Analysis'!$A$4:$S$204,16,0)),"",+$C146*+VLOOKUP($B146,'%Analysis'!$A$4:$S$204,16,0)) ->  | U146: =IF(ISERROR(+$C146*+VLOOKUP($B146,'%Analysis'!$A$4:$S$204,17,0)),"",+$C146*+VLOOKUP($B146,'%Analysis'!$A$4:$S$204,17,0)) ->  | V146: =IF(ISERROR(+$C146*+VLOOKUP($B146,'%Analysis'!$A$4:$S$204,18,0)),"",+$C146*+VLOOKUP($B146,'%Analysis'!$A$4:$S$204,18,0)) ->  | Z146: =+'%Analysis'!A148 -> 0
B147: 0 | C147: 0 | H147: =IF(ISERROR(+$C147*+VLOOKUP($B147,'%Analysis'!$A$4:$S$204,4,0)),"",+$C147*+VLOOKUP($B147,'%Analysis'!$A$4:$S$204,4,0)) ->  | I147: =IF(ISERROR(+$C147*+VLOOKUP($B147,'%Analysis'!$A$4:$S$204,5,0)),"",+$C147*+VLOOKUP($B147,'%Analysis'!$A$4:$S$204,5,0)) ->  | J147: =IF(ISERROR(+$C147*+VLOOKUP($B147,'%Analysis'!$A$4:$S$204,6,0)),"",+$C147*+VLOOKUP($B147,'%Analysis'!$A$4:$S$204,6,0)) ->  | K147: =IF(ISERROR(+$C147*+VLOOKUP($B147,'%Analysis'!$A$4:$S$204,7,0)),"",+$C147*+VLOOKUP($B147,'%Analysis'!$A$4:$S$204,7,0)) ->  | L147: =IF(ISERROR(+$C147*+VLOOKUP($B147,'%Analysis'!$A$4:$S$204,8,0)),"",+$C147*+VLOOKUP($B147,'%Analysis'!$A$4:$S$204,8,0)) ->  | M147: =IF(ISERROR(+$C147*+VLOOKUP($B147,'%Analysis'!$A$4:$S$204,9,0)),"",+$C147*+VLOOKUP($B147,'%Analysis'!$A$4:$S$204,9,0)) ->  | N147: =IF(ISERROR(+$C147*+VLOOKUP($B147,'%Analysis'!$A$4:$S$204,10,0)),"",+$C147*+VLOOKUP($B147,'%Analysis'!$A$4:$S$204,10,0)) ->  | O147: =IF(ISERROR(+$C147*+VLOOKUP($B147,'%Analysis'!$A$4:$S$204,11,0)),"",+$C147*+VLOOKUP($B147,'%Analysis'!$A$4:$S$204,11,0)) ->  | P147: =IF(ISERROR(+$C147*+VLOOKUP($B147,'%Analysis'!$A$4:$S$204,12,0)),"",+$C147*+VLOOKUP($B147,'%Analysis'!$A$4:$S$204,12,0)) ->  | Q147: =IF(ISERROR(+$C147*+VLOOKUP($B147,'%Analysis'!$A$4:$S$204,13,0)),"",+$C147*+VLOOKUP($B147,'%Analysis'!$A$4:$S$204,13,0)) ->  | R147: =IF(ISERROR(+$C147*+VLOOKUP($B147,'%Analysis'!$A$4:$S$204,14,0)),"",+$C147*+VLOOKUP($B147,'%Analysis'!$A$4:$S$204,14,0)) ->  | S147: =IF(ISERROR(+$C147*+VLOOKUP($B147,'%Analysis'!$A$4:$S$204,15,0)),"",+$C147*+VLOOKUP($B147,'%Analysis'!$A$4:$S$204,15,0)) ->  | T147: =IF(ISERROR(+$C147*+VLOOKUP($B147,'%Analysis'!$A$4:$S$204,16,0)),"",+$C147*+VLOOKUP($B147,'%Analysis'!$A$4:$S$204,16,0)) ->  | U147: =IF(ISERROR(+$C147*+VLOOKUP($B147,'%Analysis'!$A$4:$S$204,17,0)),"",+$C147*+VLOOKUP($B147,'%Analysis'!$A$4:$S$204,17,0)) ->  | V147: =IF(ISERROR(+$C147*+VLOOKUP($B147,'%Analysis'!$A$4:$S$204,18,0)),"",+$C147*+VLOOKUP($B147,'%Analysis'!$A$4:$S$204,18,0)) ->  | Z147: =+'%Analysis'!A149 -> 0
B148: 0 | C148: 0 | H148: =IF(ISERROR(+$C148*+VLOOKUP($B148,'%Analysis'!$A$4:$S$204,4,0)),"",+$C148*+VLOOKUP($B148,'%Analysis'!$A$4:$S$204,4,0)) ->  | I148: =IF(ISERROR(+$C148*+VLOOKUP($B148,'%Analysis'!$A$4:$S$204,5,0)),"",+$C148*+VLOOKUP($B148,'%Analysis'!$A$4:$S$204,5,0)) ->  | J148: =IF(ISERROR(+$C148*+VLOOKUP($B148,'%Analysis'!$A$4:$S$204,6,0)),"",+$C148*+VLOOKUP($B148,'%Analysis'!$A$4:$S$204,6,0)) ->  | K148: =IF(ISERROR(+$C148*+VLOOKUP($B148,'%Analysis'!$A$4:$S$204,7,0)),"",+$C148*+VLOOKUP($B148,'%Analysis'!$A$4:$S$204,7,0)) ->  | L148: =IF(ISERROR(+$C148*+VLOOKUP($B148,'%Analysis'!$A$4:$S$204,8,0)),"",+$C148*+VLOOKUP($B148,'%Analysis'!$A$4:$S$204,8,0)) ->  | M148: =IF(ISERROR(+$C148*+VLOOKUP($B148,'%Analysis'!$A$4:$S$204,9,0)),"",+$C148*+VLOOKUP($B148,'%Analysis'!$A$4:$S$204,9,0)) ->  | N148: =IF(ISERROR(+$C148*+VLOOKUP($B148,'%Analysis'!$A$4:$S$204,10,0)),"",+$C148*+VLOOKUP($B148,'%Analysis'!$A$4:$S$204,10,0)) ->  | O148: =IF(ISERROR(+$C148*+VLOOKUP($B148,'%Analysis'!$A$4:$S$204,11,0)),"",+$C148*+VLOOKUP($B148,'%Analysis'!$A$4:$S$204,11,0)) ->  | P148: =IF(ISERROR(+$C148*+VLOOKUP($B148,'%Analysis'!$A$4:$S$204,12,0)),"",+$C148*+VLOOKUP($B148,'%Analysis'!$A$4:$S$204,12,0)) ->  | Q148: =IF(ISERROR(+$C148*+VLOOKUP($B148,'%Analysis'!$A$4:$S$204,13,0)),"",+$C148*+VLOOKUP($B148,'%Analysis'!$A$4:$S$204,13,0)) ->  | R148: =IF(ISERROR(+$C148*+VLOOKUP($B148,'%Analysis'!$A$4:$S$204,14,0)),"",+$C148*+VLOOKUP($B148,'%Analysis'!$A$4:$S$204,14,0)) ->  | S148: =IF(ISERROR(+$C148*+VLOOKUP($B148,'%Analysis'!$A$4:$S$204,15,0)),"",+$C148*+VLOOKUP($B148,'%Analysis'!$A$4:$S$204,15,0)) ->  | T148: =IF(ISERROR(+$C148*+VLOOKUP($B148,'%Analysis'!$A$4:$S$204,16,0)),"",+$C148*+VLOOKUP($B148,'%Analysis'!$A$4:$S$204,16,0)) ->  | U148: =IF(ISERROR(+$C148*+VLOOKUP($B148,'%Analysis'!$A$4:$S$204,17,0)),"",+$C148*+VLOOKUP($B148,'%Analysis'!$A$4:$S$204,17,0)) ->  | V148: =IF(ISERROR(+$C148*+VLOOKUP($B148,'%Analysis'!$A$4:$S$204,18,0)),"",+$C148*+VLOOKUP($B148,'%Analysis'!$A$4:$S$204,18,0)) ->  | Z148: =+'%Analysis'!A150 -> 0
H149: =IF(ISERROR(+$C149*+VLOOKUP($B149,'%Analysis'!$A$4:$S$204,4,0)),"",+$C149*+VLOOKUP($B149,'%Analysis'!$A$4:$S$204,4,0)) ->  | I149: =IF(ISERROR(+$C149*+VLOOKUP($B149,'%Analysis'!$A$4:$S$204,5,0)),"",+$C149*+VLOOKUP($B149,'%Analysis'!$A$4:$S$204,5,0)) ->  | J149: =IF(ISERROR(+$C149*+VLOOKUP($B149,'%Analysis'!$A$4:$S$204,6,0)),"",+$C149*+VLOOKUP($B149,'%Analysis'!$A$4:$S$204,6,0)) ->  | K149: =IF(ISERROR(+$C149*+VLOOKUP($B149,'%Analysis'!$A$4:$S$204,7,0)),"",+$C149*+VLOOKUP($B149,'%Analysis'!$A$4:$S$204,7,0)) ->  | L149: =IF(ISERROR(+$C149*+VLOOKUP($B149,'%Analysis'!$A$4:$S$204,8,0)),"",+$C149*+VLOOKUP($B149,'%Analysis'!$A$4:$S$204,8,0)) ->  | M149: =IF(ISERROR(+$C149*+VLOOKUP($B149,'%Analysis'!$A$4:$S$204,9,0)),"",+$C149*+VLOOKUP($B149,'%Analysis'!$A$4:$S$204,9,0)) ->  | N149: =IF(ISERROR(+$C149*+VLOOKUP($B149,'%Analysis'!$A$4:$S$204,10,0)),"",+$C149*+VLOOKUP($B149,'%Analysis'!$A$4:$S$204,10,0)) ->  | O149: =IF(ISERROR(+$C149*+VLOOKUP($B149,'%Analysis'!$A$4:$S$204,11,0)),"",+$C149*+VLOOKUP($B149,'%Analysis'!$A$4:$S$204,11,0)) ->  | P149: =IF(ISERROR(+$C149*+VLOOKUP($B149,'%Analysis'!$A$4:$S$204,12,0)),"",+$C149*+VLOOKUP($B149,'%Analysis'!$A$4:$S$204,12,0)) ->  | Q149: =IF(ISERROR(+$C149*+VLOOKUP($B149,'%Analysis'!$A$4:$S$204,13,0)),"",+$C149*+VLOOKUP($B149,'%Analysis'!$A$4:$S$204,13,0)) ->  | R149: =IF(ISERROR(+$C149*+VLOOKUP($B149,'%Analysis'!$A$4:$S$204,14,0)),"",+$C149*+VLOOKUP($B149,'%Analysis'!$A$4:$S$204,14,0)) ->  | S149: =IF(ISERROR(+$C149*+VLOOKUP($B149,'%Analysis'!$A$4:$S$204,15,0)),"",+$C149*+VLOOKUP($B149,'%Analysis'!$A$4:$S$204,15,0)) ->  | T149: =IF(ISERROR(+$C149*+VLOOKUP($B149,'%Analysis'!$A$4:$S$204,16,0)),"",+$C149*+VLOOKUP($B149,'%Analysis'!$A$4:$S$204,16,0)) ->  | U149: =IF(ISERROR(+$C149*+VLOOKUP($B149,'%Analysis'!$A$4:$S$204,17,0)),"",+$C149*+VLOOKUP($B149,'%Analysis'!$A$4:$S$204,17,0)) ->  | V149: =IF(ISERROR(+$C149*+VLOOKUP($B149,'%Analysis'!$A$4:$S$204,18,0)),"",+$C149*+VLOOKUP($B149,'%Analysis'!$A$4:$S$204,18,0)) ->  | Z149: =+'%Analysis'!A151 -> 0
H150: =IF(ISERROR(+$C150*+VLOOKUP($B150,'%Analysis'!$A$4:$S$204,4,0)),"",+$C150*+VLOOKUP($B150,'%Analysis'!$A$4:$S$204,4,0)) ->  | I150: =IF(ISERROR(+$C150*+VLOOKUP($B150,'%Analysis'!$A$4:$S$204,5,0)),"",+$C150*+VLOOKUP($B150,'%Analysis'!$A$4:$S$204,5,0)) ->  | J150: =IF(ISERROR(+$C150*+VLOOKUP($B150,'%Analysis'!$A$4:$S$204,6,0)),"",+$C150*+VLOOKUP($B150,'%Analysis'!$A$4:$S$204,6,0)) ->  | K150: =IF(ISERROR(+$C150*+VLOOKUP($B150,'%Analysis'!$A$4:$S$204,7,0)),"",+$C150*+VLOOKUP($B150,'%Analysis'!$A$4:$S$204,7,0)) ->  | L150: =IF(ISERROR(+$C150*+VLOOKUP($B150,'%Analysis'!$A$4:$S$204,8,0)),"",+$C150*+VLOOKUP($B150,'%Analysis'!$A$4:$S$204,8,0)) ->  | M150: =IF(ISERROR(+$C150*+VLOOKUP($B150,'%Analysis'!$A$4:$S$204,9,0)),"",+$C150*+VLOOKUP($B150,'%Analysis'!$A$4:$S$204,9,0)) ->  | N150: =IF(ISERROR(+$C150*+VLOOKUP($B150,'%Analysis'!$A$4:$S$204,10,0)),"",+$C150*+VLOOKUP($B150,'%Analysis'!$A$4:$S$204,10,0)) ->  | O150: =IF(ISERROR(+$C150*+VLOOKUP($B150,'%Analysis'!$A$4:$S$204,11,0)),"",+$C150*+VLOOKUP($B150,'%Analysis'!$A$4:$S$204,11,0)) ->  | P150: =IF(ISERROR(+$C150*+VLOOKUP($B150,'%Analysis'!$A$4:$S$204,12,0)),"",+$C150*+VLOOKUP($B150,'%Analysis'!$A$4:$S$204,12,0)) ->  | Q150: =IF(ISERROR(+$C150*+VLOOKUP($B150,'%Analysis'!$A$4:$S$204,13,0)),"",+$C150*+VLOOKUP($B150,'%Analysis'!$A$4:$S$204,13,0)) ->  | R150: =IF(ISERROR(+$C150*+VLOOKUP($B150,'%Analysis'!$A$4:$S$204,14,0)),"",+$C150*+VLOOKUP($B150,'%Analysis'!$A$4:$S$204,14,0)) ->  | S150: =IF(ISERROR(+$C150*+VLOOKUP($B150,'%Analysis'!$A$4:$S$204,15,0)),"",+$C150*+VLOOKUP($B150,'%Analysis'!$A$4:$S$204,15,0)) ->  | T150: =IF(ISERROR(+$C150*+VLOOKUP($B150,'%Analysis'!$A$4:$S$204,16,0)),"",+$C150*+VLOOKUP($B150,'%Analysis'!$A$4:$S$204,16,0)) ->  | U150: =IF(ISERROR(+$C150*+VLOOKUP($B150,'%Analysis'!$A$4:$S$204,17,0)),"",+$C150*+VLOOKUP($B150,'%Analysis'!$A$4:$S$204,17,0)) ->  | V150: =IF(ISERROR(+$C150*+VLOOKUP($B150,'%Analysis'!$A$4:$S$204,18,0)),"",+$C150*+VLOOKUP($B150,'%Analysis'!$A$4:$S$204,18,0)) ->  | Z150: =+'%Analysis'!A152 -> 0
Z151: =+'%Analysis'!A153 -> 0
Z152: =+'%Analysis'!A154 -> 0
C153: Weight Totals | F153: =384.248/414.63 -> 0.926725032 | H153: =SUM(H136:H152) -> 0 | I153: =SUM(I136:I152) -> 0 | J153: 0 | K153: 0 | L153: 0 | M153: 0 | N153: 0 | O153: 0 | P153: 0 | Q153: 0 | R153: 0 | S153: 0 | T153: 0 | U153: 0 | V153: 0 | Z153: =+'%Analysis'!A155 -> 0
C154: Mol Weights | H154: 94.196 | I154: 61.979 | J154: 29.881 | K154: 56.077 | L154: 103.619 | M154: 40.304 | N154: 81.379 | O154: 153.326 | P154: 101.961 | Q154: 159.688 | R154: 69.62 | S154: 60.084 | T154: 79.866 | U154: 44.01 | V154: 18.015 | Z154: =+'%Analysis'!A156 -> 0
C155: Gram Equivalents | F155: =SUM(I155:V155) -> 0 | H155: =H153/H154 -> 0 | I155: =I153/I154 -> 0 | J155: =J153/J154 -> 0 | K155: =K153/K154 -> 0 | L155: =L153/L154 -> 0 | M155: 0 | N155: 0 | O155: 0 | P155: 0 | Q155: 0 | R155: 0 | S155: 0 | T155: 0 | U155: 0 | V155: 0
C156: Total Flux Equivs | H156: =SUM(H155:O155) -> 0
C157: Formula | H157: =H155/$H$156 -> 
G159: TOTAL | H159: K2O | I159: Na2O | J159: Li2O | K159: CaO | L159: SrO | M159: MgO | N159: ZnO | O159: BaO | P159: Al2O3 | Q159: Fe2O3 | R159: B2O3 | S159: SiO2 | T159: TiO2 | U159: CO2 | V159: H2O
E160: | | F160: Fired | G160: =+H153+I153+J153+K153+L153+M153+N153+O153+P153+Q153+R153+S153+T153 -> 0 | H160: =+H153 -> 0 | I160: =+I153 -> 0 | J160: 0 | K160: 0 | L160: 0 | M160: 0 | N160: 0 | O160: 0 | P160: 0 | Q160: 0 | R160: 0 | S160: 0 | T160: 0
E161: | | F161: Wt % | G161: =G160/$G$160 ->  | H161: =H160/$G$160 -> 
E162: |
E163: |
E164: |

Sheet Recipe to Formula (3)
B2: EuCal | D2: version 1.91 | J2: TRUE | M2: FALSE
D3: Recipe to Formula | F3: Formula - Standard Molecular Unity | Z3: =+'%Analysis'!A5 -> Al2O3
E4: Batch | F4: K2O | G4: =C92 ->  | H4: CaO | I4: =F92 ->  | J4: Al2O3 | K4: =L92 ->  | L4: SiO2 | M4: =M92 ->  | Z4: =+'%Analysis'!A6 -> Albany Slip
B5: Recipe | E5: Size | F5: Na2O | G5: =D92 ->  | H5: MgO | I5: =G92 ->  | J5: B2O3 | K5: =+K92 ->  | L5: SiO2/Al2O3 | M5: =M4/K4 ->  | Z5: =+'%Analysis'!A7 -> Alumina Hydrate
B6: Mineral | C6: % | D6: Fit 100% | E6: 100 | F6: Li2O | G6: =E92 ->  | H6: SrO | I6: =I92 ->  | J6: Fe2O3 | K6: =Q155/$H$156 ->  | Z6: =+'%Analysis'!A8 -> B2O3
D7: =IF(C7>0,C7/SUM($C$7:$C$18)*100,"") ->  | E7: =IF(C7>0,D7*$E$6*0.01,"") ->  | F7: R2O | G7: =SUM(G4:G6) ->  | H7: ZnO | I7: =J92 ->  | Z7: =+'%Analysis'!A9 -> BaCarb
E8: =IF(C8>0,D8*$E$6*0.01,"") ->  | F8: RO | G8: =SUM(I4:I8) ->  | H8: BaO | I8: =H92 ->  | Z8: =+'%Analysis'!A10 -> BaO
F9: Formula - Eutectics Only | Z9: =+'%Analysis'!A11 -> Barnard Slip
F10: K2O | G10: =C89 ->  | H10: CaO | I10: =F89 ->  | J10: Al2O3 | K10: =L89 ->  | L10: SiO2 | M10: =M89 ->  | Z10: =+'%Analysis'!A12 -> Bentone MA
F11: Na2O | G11: =D89 ->  | H11: MgO | I11: =G89 ->  | J11: B2O3 | K11: =K89 ->  | L11: SiO2/Al2O3 | M11: =M10/K10 ->  | Z11: =+'%Analysis'!A13 -> Bentonite
F12: Li2O | G12: =E89 ->  | H12: SrO | I12: =I89 ->  | Z12: =+'%Analysis'!A14 -> BoneAsh
F13: R2O | G13: =SUM(G10:G12) ->  | H13: ZnO | I13: =J89 ->  | Z13: =+'%Analysis'!A15 -> Borax
F14: RO | G14: =SUM(I10:I14) ->  | H14: BaO | I14: =H89 ->  | Z14: =+'%Analysis'!A16 -> CaO
F15: Oxides Excess to the Eutectics | Z15: =+'%Analysis'!A17 -> ChromeOxide
F16: K2O | G16: Na2O | H16: Li2O | I16: CaO | J16: MgO | K16: BaO | L16: SrO | M16: ZnO | Z16: =+'%Analysis'!A18 -> CMC Gum
F17: =C90 ->  | Z17: =+'%Analysis'!A19 -> CoCarb
F18: Al2O3 | G18: SiO2 | L18: B2O3 | M18: Fe2O3 | Z18: =+'%Analysis'!A20 -> Coleman
C19: =SUM(C7:C18) -> 0 | D19: =SUM(D7:D18) -> 0 | E19: =SUM(E7:E18) -> 0 | F19: =L90 ->  | G19: =M90 ->  | L19: =+K90 ->  | M19: =(Q153/Q154)/$B$88 ->  | Z19: =+'%Analysis'!A21 -> CoOxide
Z20: =+'%Analysis'!A22 -> Corn Old
Z21: =+'%Analysis'!A23 -> Cornwall
Z22: =+'%Analysis'!A24 -> Cu2O
Z23: =+'%Analysis'!A25 -> CuCarb
Z24: =+'%Analysis'!A26 -> Custer
Z25: =+'%Analysis'!A27 -> Custer - Old
Z26: =+'%Analysis'!A28 -> Dolomite
Z27: =+'%Analysis'!A29 -> EPK
C28: The Eutectics | Z28: =+'%Analysis'!A30 -> EPK - Calcined
B29: # | C29: K2O | D29: Na2O | E29: Li2O | F29: CaO | G29: MgO | H29: BaO | I29: SrO | J29: ZnO | K29: B2O3 | L29: Al2O3 | M29: SiO2 | N29: MP°C | Z29: =+'%Analysis'!A31 -> Fe2O3
B30: 1 | C30: 1 | K30: 2.119 | M30: 2.853 | N30: 630 | Z30: =+'%Analysis'!A32 -> Ferro3110
B31: 2 | C31: 1 | L31: 0.0972 | M31: 3.4243 | N31: 695 | Z31: =+'%Analysis'!A33 -> Ferro3124
B32: 3 | D32: 1 | L32: 0.2922 | M32: 2.44 | N32: 732 | Z32: =+'%Analysis'!A34 -> Ferro3134
B33: 4 | D33: 1 | K33: 1.3 | M33: 1.73 | N33: 790 | Z33: =+'%Analysis'!A35 -> Ferro3195
B34: 5 | E34: 1 | K34: 0.7 | M34: 0.3 | N34: 802 | Z34: =+'%Analysis'!A36 -> Flint
B35: 6 | F35: 1 | K35: 1.51 | M35: 0 | N35: 990 | Z35: =+'%Analysis'!A37 -> G-200
B36: 7 | E36: 1 | L36: 0.228 | M36: 1.6838 | N36: 1026 | O36: CaO/ZnO | P36: ZnO/CaO | Z36: =+'%Analysis'!A38 -> G200 HP
B37: 8 | F37: 0.544 | J37: 0.456 | L37: 0.1326 | M37: 1.3943 | N37: 1030 | O37: =+F37/J37 -> 1.192982456 | P37: =+J37/F37 -> 0.8382352941 | Z37: =+'%Analysis'!A39 -> Gerstley Borate
B38: 9 | H38: 1 | L38: 0.4058 | M38: 4.009 | N38: 1122 | Z38: =+'%Analysis'!A40 -> Gerstley Borate - 1999
B39: 10 | F39: 1 | L39: 0.3489 | M39: 2.4888 | N39: 1165 | Z39: =+'%Analysis'!A41 -> Gillespie Borate
B40: 11 | I40: 1 | L40: 0.2144 | M40: 2.8 | N40: 1176 | Z40: =+'%Analysis'!A42 -> Goldart
B41: 12 | G41: 1 | L41: 0.3374 | M41: 2.0287 | N41: 1350 | Z41: =+'%Analysis'!A43 -> Grolleg
Z42: =+'%Analysis'!A44 -> K2CO3
C43: The Eutectics by Weight | Z43: =+'%Analysis'!A45 -> K2O
B44: # | C44: K2O | D44: Na2O | E44: Li2O | F44: CaO | G44: MgO | H44: BaO | I44: SrO | J44: ZnO | K44: B2O3 | L44: Al2O3 | M44: SiO2 | N44: MP°C | Z44: =+'%Analysis'!A46 -> Kaolin
B45: 1 | C45: 22.8 | K45: 35.7 | M45: 41.5 | N45: 630 | O45: =SUM(C45:M45) -> 100 | Z45: =+'%Analysis'!A47 -> KFeld
B46: 2 | C46: 30.4 | L46: 3.2 | M46: 66.4 | N46: 695 | O46: 100 | Z46: =+'%Analysis'!A48 -> Kingman
B47: 3 | D47: 26 | L47: 12.5 | M47: 61.5 | N47: 732 | O47: 100 | Z47: =+'%Analysis'!A49 -> KonaF-4
B48: 4 | D48: 24.2 | K48: 35.2 | M48: 40.6 | N48: 790 | O48: 100 | Z48: =+'%Analysis'!A50 -> Leucite
B49: 5 | E49: 30.9 | K49: 50.4 | M49: 18.7 | N49: 802 | O49: 100 | Z49: =+'%Analysis'!A51 -> Li2O
B50: 6 | F50: 65.21 | K50: 34.79 | N50: 990 | O50: 100 | Z50: =+'%Analysis'!A52 -> LiCarb
B51: 7 | E51: 19.366 | L51: 15.067 | M51: 65.567 | N51: 1026 | O51: 100 | Z51: =+'%Analysis'!A53 -> LiSilicate
B52: 8 | F52: 18.5 | J52: 22.5 | L52: 8.2 | M52: 50.8 | N52: 1030 | O52: 100 | Z52: =+'%Analysis'!A54 -> Macaloid
B53: 9 | H53: 35.2 | L53: 9.5 | M53: 55.3 | N53: 1122 | O53: 100 | Z53: =+'%Analysis'!A55 -> MgCarb
B54: 10 | F54: 23.25 | L54: 14.75 | M54: 62 | N54: 1165 | O54: 100 | Z54: =+'%Analysis'!A56 -> MgO
B55: 11 | I55: 35.278 | L55: 7.443 | M55: 57.278 | N55: 1176 | O55: 99.999 | Z55: =+'%Analysis'!A57 -> Mahavir Feldspar
B56: 12 | G56: 20.5 | L56: 17.5 | M56: 62 | N56: 1350 | O56: 100 | Z56: =+'%Analysis'!A58 -> Minspar 200
Z57: =+'%Analysis'!A59 -> MnCarb
Z58: =+'%Analysis'!A60 -> MnO2
C59: WHAT'S LEFT AFTER EACH EUTECTIC - BY WEIGHT | O59: NEEDED | R59: AVAILABLE | T59: Ratios | V59: Possible | X59: AVAILABLE | Z59: =+'%Analysis'!A61 -> Na2CO3
A60: # | C60: K2O | D60: Na2O | E60: Li2O | F60: CaO | G60: MgO | H60: BaO | I60: SrO | J60: ZnO | K60: B2O3 | L60: Al2O3 | M60: SiO2 | N60: B2O3 | O60: Al2O3 | P60: SiO2 | Q60: B2O3 | R60: Al2O3 | S60: SiO2 | T60: CaO/ | U60: ZnO | V60: CaO | W60: ZnO | X60: CaO | Y60: ZnO | Z60: =+'%Analysis'!A62 -> Na2O
A61: Start | C61: =+H153 -> 0 | D61: =+I153 -> 0 | E61: =+J153 -> 0 | F61: =+K153 -> 0 | G61: =+M153 -> 0 | H61: =+O153 -> 0 | I61: =+L153 -> 0 | J61: =+N153 -> 0 | K61: =+R153 -> 0 | L61: =+P153 -> 0 | M61: =+S153 -> 0 | Z61: =+'%Analysis'!A63 -> NaFeld
A62: 1 | B62: Used | C62: =IF(AND(N62<=Q62,P62<=S62),C61,MIN(Q62/N62,S62/P62)*C61) -> 0 | K62: =C62*(K45/C45) -> 0 | M62: =C62*(M45/C45) -> 0 | N62: =(K45/C45)*C61 -> 0 | P62: =(M45/C45)*C61 -> 0 | Q62: =+K61 -> 0 | S62: =M61 -> 0 | Z62: =+'%Analysis'!A64 -> NephelineSyenite
A63: 1 | B63: Remaining | C63: =C61-C62 -> 0 | D63: =D61-D62 -> 0 | E63: 0 | F63: 0 | G63: 0 | H63: 0 | I63: 0 | J63: 0 | K63: 0 | L63: 0 | M63: 0 | Z63: =+'%Analysis'!A65 -> NiCarb
A64: 2 | B64: Used | C64: =IF(AND(O64<=R64,P64<=S64),C63,MIN(R64/O64,S64/P64)*C63) -> 0 | L64: =(L46/C46)*C64 -> 0 | M64: =(M46/C46)*C64 -> 0 | O64: =(L46/C46)*C63 -> 0 | P64: =(M46/C46)*C63 -> 0 | Q64: =+K63 -> 0 | R64: =L63 -> 0 | S64: =M63 -> 0 | Z64: =+'%Analysis'!A66 -> OldHick
A65: 2 | B65: Remaining | C65: =C63-C64 -> 0 | D65: =D63-D64 -> 0 | E65: 0 | F65: 0 | G65: 0 | H65: 0 | I65: 0 | J65: 0 | K65: 0 | L65: 0 | M65: 0 | Q65: =+K64 -> 0 | Z65: =+'%Analysis'!A67 -> OM4
A66: 3 | B66: Used | D66: =IF(AND(P66<=S66,O66<=R66),D65,MIN(S66/P66,R66/O66)*D65) -> 0 | L66: =D66*(L47/D47) -> 0 | M66: =D66*(M47/D47) -> 0 | O66: =D65*(L47/D47) -> 0 | P66: =D65*(M47/D47) -> 0 | Q66: =+K65 -> 0 | R66: =L65 -> 0 | S66: =M65 -> 0 | Z66: =+'%Analysis'!A68 -> P2O5
A67: 3 | B67: Remaining | C67: =C65-C66 -> 0 | D67: =D65-D66 -> 0 | E67: 0 | F67: 0 | G67: 0 | H67: 0 | I67: 0 | J67: 0 | K67: 0 | L67: 0 | M67: 0 | Z67: =+'%Analysis'!A69 -> Petalite
A68: 4 | B68: Used | D68: =IF(AND(P68<=S68,N68<=Q68),D67,MIN(S68/P68,Q68/N68)*D67) -> 0 | K68: =D68*(K48/D48) -> 0 | M68: =D68*(M48/D48) -> 0 | N68: =+D67*(K48/D48) -> 0 | P68: =D67*(M48/D48) -> 0 | Q68: =K67 -> 0 | S68: =M67 -> 0 | Z68: =+'%Analysis'!A70 -> PlVit
A69: 4 | B69: Remaining | C69: =C67-C68 -> 0 | D69: =D67-D68 -> 0 | E69: 0 | F69: 0 | G69: 0 | H69: 0 | I69: 0 | J69: 0 | K69: 0 | L69: 0 | M69: 0 | Z69: =+'%Analysis'!A71 -> Redart
A70: 5 | B70: Used | E70: =IF(AND(P70<=S70,N70<=Q70),E69,MIN(S70/P70,Q70/N70)*E69) -> 0 | K70: =E70*(K49/E49) -> 0 | M70: =E70*(M49/E49) -> 0 | N70: =E69*(K49/E49) -> 0 | P70: =E69*(M49/E49) -> 0 | Q70: =K69 -> 0 | S70: =M69 -> 0 | Z70: =+'%Analysis'!A72 -> Rutile
A71: 5 | B71: Remaining | C71: =C69-C70 -> 0 | D71: =D69-D70 -> 0 | E71: 0 | F71: 0 | G71: 0 | H71: 0 | I71: 0 | J71: 0 | K71: 0 | L71: 0 | M71: 0 | V71: Used | Z71: =+'%Analysis'!A73 -> Silica
A72: 6 | B72: Used | F72: =IF((N72<=K71),F71,(F50/K50)*K71) -> 0 | K72: =F72*(K50/F50) -> 0 | N72: =F71*(K50/F50) -> 0 | Z72: =+'%Analysis'!A74 -> SiO2
A73: 6 | B73: Remaining | C73: =C71-C72 -> 0 | D73: 0 | E73: 0 | F73: 0 | G73: 0 | H73: 0 | I73: 0 | J73: 0 | K73: 0 | L73: 0 | M73: 0 | Z73: =+'%Analysis'!A75 -> Spodumene
A74: 7 | B74: Used | E74: =IF(AND(O74<=R74,P74<=S74),E71,(MIN(R74/O74,S74/P74)*E71)) -> 0 | L74: =E74*(L51/E51) -> 0 | M74: =E74*(M51/E51) -> 0 | O74: =E71*(L51/E51) -> 0 | P74: =E71*(M51/E51) -> 0 | R74: =L71 -> 0 | S74: =M71 -> 0 | T74: eutectic | U74: available | V74: if not limited by | Z74: =+'%Analysis'!A76 -> SrCarb
A75: 7 | B75: Remaining | C75: =C73-C74 -> 0 | D75: 0 | E75: 0 | F75: 0 | G75: 0 | H75: 0 | I75: 0 | J75: 0 | K75: 0 | L75: 0 | M75: 0 | R75: =L75 -> 0 | S75: =M75 -> 0 | T75: ratio | U75: ratio | V75: Al2O3 or SiO2 | Z75: =+'%Analysis'!A77 -> SrO
A76: 8 | B76: Used | F76: =IF(U76=0,0,IF(AND(O76<=R76,P76<=S76),V76,(MIN(R76/O76,S76/P76)*V76))) -> 0 | J76: =IF(U76=0,0,IF(AND(O76<R76,P76<S76),W76,(MIN(R76/O76,S76/P76)*W76))) -> 0 | L76: =J76*(L52/J52) -> 0 | M76: =J76*(M52/J52) -> 0 | O76: =V76*(L52/F52) -> 0 | P76: =V76*(M52/F52) -> 0 | R76: =R75 -> 0 | S76: =S75 -> 0 | T76: =F52/J52 -> 0.8222222222 | U76: =IF(OR(J61=0,F61=0),0,F75/J75) -> 0 | V76: =IF(U76<T76,F75,(J75*T76)) -> 0 | W76: =IF(U76>T76,J75,F75/T76) -> 0 | Z76: =+'%Analysis'!A78 -> Superpax
A77: 8 | B77: Remaining | C77: 0 | D77: 0 | E77: 0 | F77: 0 | G77: 0 | H77: 0 | I77: 0 | J77: =J75-J76 -> 0 | K77: =K75-K76 -> 0 | L77: =L75-L76 -> 0 | M77: =M75-M76 -> 0 | R77: =L77 -> 0 | S77: =M77 -> 0 | Z77: =+'%Analysis'!A79 -> Talc - NYTAL
A78: 9 | B78: Used | H78: =IF(AND(O78<=R78,P78<=S78),H77,MIN(R78/O78,S78/P78)*H77) -> 0 | L78: =H78*(L53/H53) -> 0 | M78: =H78*(M53/H53) -> 0 | O78: =H77*(L53/H53) -> 0 | P78: =H77*(M53/H53) -> 0 | R78: =R77 -> 0 | S78: =S77 -> 0 | Z78: =+'%Analysis'!A80 -> Talc - Texas
A79: 9 | B79: Remaining | C79: =C77-C78 -> 0 | D79: 0 | E79: 0 | F79: 0 | G79: 0 | H79: 0 | I79: 0 | J79: =J77-J78 -> 0 | K79: =K77-K78 -> 0 | L79: =L77-L78 -> 0 | M79: =M77-M78 -> 0 | Z79: =+'%Analysis'!A81 -> TinOxide
A80: 10 | B80: Used | F80: =IF(AND(P80<=S80,O80<=R80),F79,MIN(S80/P80,R80/O80)*F79) -> 0 | L80: =F80*(L54/F54) -> 0 | M80: =F80*(M54/F54) -> 0 | O80: =F79*(L54/F54) -> 0 | P80: =F79*(M54/F54) -> 0 | R80: =L79 -> 0 | S80: =M79 -> 0 | Z80: =+'%Analysis'!A82 -> TiO2
A81: 10 | B81: Remaining | C81: =C79-C80 -> 0 | D81: =D79-D80 -> 0 | E81: 0 | F81: 0 | G81: 0 | H81: 0 | I81: 0 | J81: 0 | K81: 0 | L81: 0 | M81: 0 | R81: =L81 -> 0 | S81: =M81 -> 0 | Z81: =+'%Analysis'!A83 -> Ultrox
A82: 11 | B82: Used | I82: =IF(J2=TRUE,IF(AND(O82<=R82,P82<=S82),I81,MIN(R82/O82,S82/P82)*I81),0) -> 0 | L82: =I82*(L55/I55) -> 0 | M82: =I82*(M55/I55) -> 0 | O82: =I81*(L55/I55) -> 0 | P82: =I81*(M55/I55) -> 0 | R82: =R81 -> 0 | S82: =S81 -> 0 | Z82: =+'%Analysis'!A84 -> Veegum
A83: 11 | B83: Remaining | C83: =C81-C82 -> 0 | D83: =D81-D82 -> 0 | E83: 0 | F83: 0 | G83: 0 | H83: 0 | I83: 0 | J83: 0 | K83: 0 | L83: 0 | M83: 0 | R83: =L83 -> 0 | S83: =M83 -> 0 | Z83: =+'%Analysis'!A85 -> VolAsh
A84: 12 | B84: Used | G84: =IF(M2=TRUE,IF(AND(O84<=R84,P84<=S84),G83,MIN(R84/O84,S84/P84)*G83),0) -> 0 | L84: =G84*(L56/G56) -> 0 | M84: =G84*(M56/G56) -> 0 | O84: =G83*(L56/G56) -> 0 | P84: =G83*(M56/G56) -> 0 | R84: =R83 -> 0 | S84: =S83 -> 0 | Z84: =+'%Analysis'!A86 -> Westex Talc
A85: 12 | B85: Remaining | C85: =C83-C84 -> 0 | D85: =D83-D84 -> 0 | E85: 0 | F85: 0 | G85: 0 | H85: 0 | I85: 0 | J85: 0 | K85: 0 | L85: 0 | M85: 0 | Z85: =+'%Analysis'!A87 -> Whiting
B86: Used in Eutectics | C86: =C61-C85 -> 0 | D86: 0 | E86: 0 | F86: 0 | G86: 0 | H86: 0 | I86: 0 | J86: =J61-J85 -> 0 | K86: 0 | L86: =L61-L85 -> 0 | M86: =M61-M85 -> 0 | Z86: =+'%Analysis'!A88 -> Wollastonite
B87: MW | C87: 94.196 | D87: 61.979 | E87: 29.881 | F87: 56.077 | G87: 40.304 | H87: 153.326 | I87: 103.619 | J87: 81.379 | K87: 69.62 | L87: 101.961 | M87: 60.084 | Z87: =+'%Analysis'!A89 -> Yellow Ochre
B88: =SUM(C88:J88) -> 0 | C88: =C86/C87 -> 0 | D88: =D86/D87 -> 0 | E88: =E86/E87 -> 0 | F88: =F86/F87 -> 0 | G88: =IF(M2=TRUE,G86/G87,0) -> 0 | H88: =H86/H87 -> 0 | I88: =IF(J2=TRUE,I86/I87,0) -> 0 | J88: =J86/J87 -> 0 | K88: =K86/K87 -> 0 | L88: =L86/L87 -> 0 | M88: =M86/M87 -> 0 | V88: =V76/W76 ->  | Z88: =+'%Analysis'!A90 -> Zircopax
B89: Used in Eutectics | C89: =C88/$B$88 ->  | K89: =K88/$B$88 ->  | L89: =L88/$B$88 ->  | M89: =M88/$B$88 ->  | Z89: =+'%Analysis'!A91 -> ZnO
B90: Excess | C90: =(C85/C87)/$B$88 ->  | J90: =(J85/J87)/$B$88 ->  | K90: =(K85/K87)/$B$88 ->  | L90: =(L85/L87)/$B$88 ->  | M90: =(M85/M87)/$B$88 ->  | Z90: =+'%Analysis'!A92 -> 0
B91: UMF | C91: =C61/C87 -> 0 | D91: 0 | E91: 0 | F91: 0 | G91: 0 | H91: 0 | I91: 0 | J91: =J61/J87 -> 0 | K91: =K61/K87 -> 0 | L91: =L61/L87 -> 0 | M91: =M61/M87 -> 0 | Z91: =+'%Analysis'!A93 -> 0
B92: =SUM(C91:J91) -> 0 | C92: =C91/$B$92 ->  | K92: =K91/$B$92 ->  | L92: =L91/$B$92 ->  | M92: =M91/$B$92 ->  | Z92: =+'%Analysis'!A94 -> 0
Z93: =+'%Analysis'!A95 -> 0
C94: K2O | D94: Na2O | E94: Li2O | F94: CaO | G94: MgO | H94: BaO | I94: SrO | J94: ZnO | K94: Al2O3 | L94: SiO2 | M94: Fe2O3 | O94: B2O3 | P94: TiO2 | Z94: =+'%Analysis'!A96 -> 0
B95: Weight % | C95: =+C86/(SUM($C$86:$M$86)) ->  | K95: =+L86/(SUM($C$86:$M$86)) ->  | L95: =+M86/(SUM($C$86:$M$86)) ->  | M95: =+O86/(SUM($C$86:$M$86)) ->  | O95: =+P86/(SUM($C$86:$M$86)) ->  | P95: =+R86/(SUM($C$86:$M$86)) ->  | Z95: =+'%Analysis'!A97 -> 0
Z96: =+'%Analysis'!A98 -> 0
Z97: =+'%Analysis'!A99 -> 0
B98: Mineral | C98: Percent | F98: Tot % | H98: K2O | I98: Na2O | J98: Li2O | K98: CaO | L98: SrO | M98: MgO | O98: ZnO | P98: BaO | Q98: Al2O3 | R98: Fe2O3 | S98: B2O3 | T98: SiO2 | U98: TiO2 | V98: CO2 | W98: H2O | Z98: =+'%Analysis'!A100 -> 0
C99: Weight Totals | F99: 0.926725032 | H99: 408.9 | I99: 170.5 | J99: 0 | K99: 1904.387202 | L99: 0 | M99: 1.4 | O99: 0 | P99: 0 | Q99: 1124.7 | R99: 16.3 | S99: 280 | T99: 5482.7 | U99: 0 | V99: 1319.112798 | W99: 280 | Z99: =+'%Analysis'!A101 -> 0
Z100: =+'%Analysis'!A102 -> 0
Z101: =+'%Analysis'!A103 -> 0
Z102: =+'%Analysis'!A104 -> 0
Z103: =+'%Analysis'!A105 -> 0
Z104: =+'%Analysis'!A106 -> 0
Z105: =+'%Analysis'!A107 -> 0
Z106: =+'%Analysis'!A108 -> 0
Z107: =+'%Analysis'!A109 -> 0
Z108: =+'%Analysis'!A110 -> 0
Z109: =+'%Analysis'!A111 -> 0
Z110: =+'%Analysis'!A112 -> 0
Z111: =+'%Analysis'!A113 -> 0
Z112: =+'%Analysis'!A114 -> 0
Z113: =+'%Analysis'!A115 -> 0
Z114: =+'%Analysis'!A116 -> 0
Z115: =+'%Analysis'!A117 -> 0
Z116: =+'%Analysis'!A118 -> 0
Z117: =+'%Analysis'!A119 -> 0
Z118: =+'%Analysis'!A120 -> 0
Z119: =+'%Analysis'!A121 -> 0
Z120: =+'%Analysis'!A122 -> 0
Z121: =+'%Analysis'!A123 -> 0
Z122: =+'%Analysis'!A124 -> 0
Z123: =+'%Analysis'!A125 -> 0
Z124: =+'%Analysis'!A126 -> 0
Z125: =+'%Analysis'!A127 -> 0
Z126: =+'%Analysis'!A128 -> 0
Z127: =+'%Analysis'!A129 -> 0
Z128: =+'%Analysis'!A130 -> 0
Z129: =+'%Analysis'!A131 -> 0
Z130: =+'%Analysis'!A132 -> 0
Z131: =+'%Analysis'!A133 -> 0
Z132: =+'%Analysis'!A134 -> 0
Z133: =+'%Analysis'!A135 -> 0
Z134: =+'%Analysis'!A136 -> 0
B135: Mineral | C135: Percent | F135: Tot % | H135: K2O | I135: Na2O | J135: Li2O | K135: CaO | L135: SrO | M135: MgO | N135: ZnO | O135: BaO | P135: Al2O3 | Q135: Fe2O3 | R135: B2O3 | S135: SiO2 | T135: TiO2 | U135: CO2 | V135: H2O | Z135: =+'%Analysis'!A137 -> 0
B136: =B7 -> 0 | C136: 0 | H136: =IF(ISERROR(+$C136*+VLOOKUP($B136,'%Analysis'!$A$4:$S$204,4,0)),"",+$C136*+VLOOKUP($B136,'%Analysis'!$A$4:$S$204,4,0)) ->  | I136: =IF(ISERROR(+$C136*+VLOOKUP($B136,'%Analysis'!$A$4:$S$204,5,0)),"",+$C136*+VLOOKUP($B136,'%Analysis'!$A$4:$S$204,5,0)) ->  | J136: =IF(ISERROR(+$C136*+VLOOKUP($B136,'%Analysis'!$A$4:$S$204,6,0)),"",+$C136*+VLOOKUP($B136,'%Analysis'!$A$4:$S$204,6,0)) ->  | K136: =IF(ISERROR(+$C136*+VLOOKUP($B136,'%Analysis'!$A$4:$S$204,7,0)),"",+$C136*+VLOOKUP($B136,'%Analysis'!$A$4:$S$204,7,0)) ->  | L136: =IF(ISERROR(+$C136*+VLOOKUP($B136,'%Analysis'!$A$4:$S$204,8,0)),"",+$C136*+VLOOKUP($B136,'%Analysis'!$A$4:$S$204,8,0)) ->  | M136: =IF(ISERROR(+$C136*+VLOOKUP($B136,'%Analysis'!$A$4:$S$204,9,0)),"",+$C136*+VLOOKUP($B136,'%Analysis'!$A$4:$S$204,9,0)) ->  | N136: =IF(ISERROR(+$C136*+VLOOKUP($B136,'%Analysis'!$A$4:$S$204,10,0)),"",+$C136*+VLOOKUP($B136,'%Analysis'!$A$4:$S$204,10,0)) ->  | O136: =IF(ISERROR(+$C136*+VLOOKUP($B136,'%Analysis'!$A$4:$S$204,11,0)),"",+$C136*+VLOOKUP($B136,'%Analysis'!$A$4:$S$204,11,0)) ->  | P136: =IF(ISERROR(+$C136*+VLOOKUP($B136,'%Analysis'!$A$4:$S$204,12,0)),"",+$C136*+VLOOKUP($B136,'%Analysis'!$A$4:$S$204,12,0)) ->  | Q136: =IF(ISERROR(+$C136*+VLOOKUP($B136,'%Analysis'!$A$4:$S$204,13,0)),"",+$C136*+VLOOKUP($B136,'%Analysis'!$A$4:$S$204,13,0)) ->  | R136: =IF(ISERROR(+$C136*+VLOOKUP($B136,'%Analysis'!$A$4:$S$204,14,0)),"",+$C136*+VLOOKUP($B136,'%Analysis'!$A$4:$S$204,14,0)) ->  | S136: =IF(ISERROR(+$C136*+VLOOKUP($B136,'%Analysis'!$A$4:$S$204,15,0)),"",+$C136*+VLOOKUP($B136,'%Analysis'!$A$4:$S$204,15,0)) ->  | T136: =IF(ISERROR(+$C136*+VLOOKUP($B136,'%Analysis'!$A$4:$S$204,16,0)),"",+$C136*+VLOOKUP($B136,'%Analysis'!$A$4:$S$204,16,0)) ->  | U136: =IF(ISERROR(+$C136*+VLOOKUP($B136,'%Analysis'!$A$4:$S$204,17,0)),"",+$C136*+VLOOKUP($B136,'%Analysis'!$A$4:$S$204,17,0)) ->  | V136: =IF(ISERROR(+$C136*+VLOOKUP($B136,'%Analysis'!$A$4:$S$204,18,0)),"",+$C136*+VLOOKUP($B136,'%Analysis'!$A$4:$S$204,18,0)) ->  | Z136: =+'%Analysis'!A138 -> 0
B137: 0 | C137: 0 | H137: =IF(ISERROR(+$C137*+VLOOKUP($B137,'%Analysis'!$A$4:$S$204,4,0)),"",+$C137*+VLOOKUP($B137,'%Analysis'!$A$4:$S$204,4,0)) ->  | I137: =IF(ISERROR(+$C137*+VLOOKUP($B137,'%Analysis'!$A$4:$S$204,5,0)),"",+$C137*+VLOOKUP($B137,'%Analysis'!$A$4:$S$204,5,0)) ->  | J137: =IF(ISERROR(+$C137*+VLOOKUP($B137,'%Analysis'!$A$4:$S$204,6,0)),"",+$C137*+VLOOKUP($B137,'%Analysis'!$A$4:$S$204,6,0)) ->  | K137: =IF(ISERROR(+$C137*+VLOOKUP($B137,'%Analysis'!$A$4:$S$204,7,0)),"",+$C137*+VLOOKUP($B137,'%Analysis'!$A$4:$S$204,7,0)) ->  | L137: =IF(ISERROR(+$C137*+VLOOKUP($B137,'%Analysis'!$A$4:$S$204,8,0)),"",+$C137*+VLOOKUP($B137,'%Analysis'!$A$4:$S$204,8,0)) ->  | M137: =IF(ISERROR(+$C137*+VLOOKUP($B137,'%Analysis'!$A$4:$S$204,9,0)),"",+$C137*+VLOOKUP($B137,'%Analysis'!$A$4:$S$204,9,0)) ->  | N137: =IF(ISERROR(+$C137*+VLOOKUP($B137,'%Analysis'!$A$4:$S$204,10,0)),"",+$C137*+VLOOKUP($B137,'%Analysis'!$A$4:$S$204,10,0)) ->  | O137: =IF(ISERROR(+$C137*+VLOOKUP($B137,'%Analysis'!$A$4:$S$204,11,0)),"",+$C137*+VLOOKUP($B137,'%Analysis'!$A$4:$S$204,11,0)) ->  | P137: =IF(ISERROR(+$C137*+VLOOKUP($B137,'%Analysis'!$A$4:$S$204,12,0)),"",+$C137*+VLOOKUP($B137,'%Analysis'!$A$4:$S$204,12,0)) ->  | Q137: =IF(ISERROR(+$C137*+VLOOKUP($B137,'%Analysis'!$A$4:$S$204,13,0)),"",+$C137*+VLOOKUP($B137,'%Analysis'!$A$4:$S$204,13,0)) ->  | R137: =IF(ISERROR(+$C137*+VLOOKUP($B137,'%Analysis'!$A$4:$S$204,14,0)),"",+$C137*+VLOOKUP($B137,'%Analysis'!$A$4:$S$204,14,0)) ->  | S137: =IF(ISERROR(+$C137*+VLOOKUP($B137,'%Analysis'!$A$4:$S$204,15,0)),"",+$C137*+VLOOKUP($B137,'%Analysis'!$A$4:$S$204,15,0)) ->  | T137: =IF(ISERROR(+$C137*+VLOOKUP($B137,'%Analysis'!$A$4:$S$204,16,0)),"",+$C137*+VLOOKUP($B137,'%Analysis'!$A$4:$S$204,16,0)) ->  | U137: =IF(ISERROR(+$C137*+VLOOKUP($B137,'%Analysis'!$A$4:$S$204,17,0)),"",+$C137*+VLOOKUP($B137,'%Analysis'!$A$4:$S$204,17,0)) ->  | V137: =IF(ISERROR(+$C137*+VLOOKUP($B137,'%Analysis'!$A$4:$S$204,18,0)),"",+$C137*+VLOOKUP($B137,'%Analysis'!$A$4:$S$204,18,0)) ->  | Z137: =+'%Analysis'!A139 -> 0
B138: 0 | C138: 0 | H138: =IF(ISERROR(+$C138*+VLOOKUP($B138,'%Analysis'!$A$4:$S$204,4,0)),"",+$C138*+VLOOKUP($B138,'%Analysis'!$A$4:$S$204,4,0)) ->  | I138: =IF(ISERROR(+$C138*+VLOOKUP($B138,'%Analysis'!$A$4:$S$204,5,0)),"",+$C138*+VLOOKUP($B138,'%Analysis'!$A$4:$S$204,5,0)) ->  | J138: =IF(ISERROR(+$C138*+VLOOKUP($B138,'%Analysis'!$A$4:$S$204,6,0)),"",+$C138*+VLOOKUP($B138,'%Analysis'!$A$4:$S$204,6,0)) ->  | K138: =IF(ISERROR(+$C138*+VLOOKUP($B138,'%Analysis'!$A$4:$S$204,7,0)),"",+$C138*+VLOOKUP($B138,'%Analysis'!$A$4:$S$204,7,0)) ->  | L138: =IF(ISERROR(+$C138*+VLOOKUP($B138,'%Analysis'!$A$4:$S$204,8,0)),"",+$C138*+VLOOKUP($B138,'%Analysis'!$A$4:$S$204,8,0)) ->  | M138: =IF(ISERROR(+$C138*+VLOOKUP($B138,'%Analysis'!$A$4:$S$204,9,0)),"",+$C138*+VLOOKUP($B138,'%Analysis'!$A$4:$S$204,9,0)) ->  | N138: =IF(ISERROR(+$C138*+VLOOKUP($B138,'%Analysis'!$A$4:$S$204,10,0)),"",+$C138*+VLOOKUP($B138,'%Analysis'!$A$4:$S$204,10,0)) ->  | O138: =IF(ISERROR(+$C138*+VLOOKUP($B138,'%Analysis'!$A$4:$S$204,11,0)),"",+$C138*+VLOOKUP($B138,'%Analysis'!$A$4:$S$204,11,0)) ->  | P138: =IF(ISERROR(+$C138*+VLOOKUP($B138,'%Analysis'!$A$4:$S$204,12,0)),"",+$C138*+VLOOKUP($B138,'%Analysis'!$A$4:$S$204,12,0)) ->  | Q138: =IF(ISERROR(+$C138*+VLOOKUP($B138,'%Analysis'!$A$4:$S$204,13,0)),"",+$C138*+VLOOKUP($B138,'%Analysis'!$A$4:$S$204,13,0)) ->  | R138: =IF(ISERROR(+$C138*+VLOOKUP($B138,'%Analysis'!$A$4:$S$204,14,0)),"",+$C138*+VLOOKUP($B138,'%Analysis'!$A$4:$S$204,14,0)) ->  | S138: =IF(ISERROR(+$C138*+VLOOKUP($B138,'%Analysis'!$A$4:$S$204,15,0)),"",+$C138*+VLOOKUP($B138,'%Analysis'!$A$4:$S$204,15,0)) ->  | T138: =IF(ISERROR(+$C138*+VLOOKUP($B138,'%Analysis'!$A$4:$S$204,16,0)),"",+$C138*+VLOOKUP($B138,'%Analysis'!$A$4:$S$204,16,0)) ->  | U138: =IF(ISERROR(+$C138*+VLOOKUP($B138,'%Analysis'!$A$4:$S$204,17,0)),"",+$C138*+VLOOKUP($B138,'%Analysis'!$A$4:$S$204,17,0)) ->  | V138: =IF(ISERROR(+$C138*+VLOOKUP($B138,'%Analysis'!$A$4:$S$204,18,0)),"",+$C138*+VLOOKUP($B138,'%Analysis'!$A$4:$S$204,18,0)) ->  | Z138: =+'%Analysis'!A140 -> 0
B139: 0 | C139: 0 | H139: =IF(ISERROR(+$C139*+VLOOKUP($B139,'%Analysis'!$A$4:$S$204,4,0)),"",+$C139*+VLOOKUP($B139,'%Analysis'!$A$4:$S$204,4,0)) ->  | I139: =IF(ISERROR(+$C139*+VLOOKUP($B139,'%Analysis'!$A$4:$S$204,5,0)),"",+$C139*+VLOOKUP($B139,'%Analysis'!$A$4:$S$204,5,0)) ->  | J139: =IF(ISERROR(+$C139*+VLOOKUP($B139,'%Analysis'!$A$4:$S$204,6,0)),"",+$C139*+VLOOKUP($B139,'%Analysis'!$A$4:$S$204,6,0)) ->  | K139: =IF(ISERROR(+$C139*+VLOOKUP($B139,'%Analysis'!$A$4:$S$204,7,0)),"",+$C139*+VLOOKUP($B139,'%Analysis'!$A$4:$S$204,7,0)) ->  | L139: =IF(ISERROR(+$C139*+VLOOKUP($B139,'%Analysis'!$A$4:$S$204,8,0)),"",+$C139*+VLOOKUP($B139,'%Analysis'!$A$4:$S$204,8,0)) ->  | M139: =IF(ISERROR(+$C139*+VLOOKUP($B139,'%Analysis'!$A$4:$S$204,9,0)),"",+$C139*+VLOOKUP($B139,'%Analysis'!$A$4:$S$204,9,0)) ->  | N139: =IF(ISERROR(+$C139*+VLOOKUP($B139,'%Analysis'!$A$4:$S$204,10,0)),"",+$C139*+VLOOKUP($B139,'%Analysis'!$A$4:$S$204,10,0)) ->  | O139: =IF(ISERROR(+$C139*+VLOOKUP($B139,'%Analysis'!$A$4:$S$204,11,0)),"",+$C139*+VLOOKUP($B139,'%Analysis'!$A$4:$S$204,11,0)) ->  | P139: =IF(ISERROR(+$C139*+VLOOKUP($B139,'%Analysis'!$A$4:$S$204,12,0)),"",+$C139*+VLOOKUP($B139,'%Analysis'!$A$4:$S$204,12,0)) ->  | Q139: =IF(ISERROR(+$C139*+VLOOKUP($B139,'%Analysis'!$A$4:$S$204,13,0)),"",+$C139*+VLOOKUP($B139,'%Analysis'!$A$4:$S$204,13,0)) ->  | R139: =IF(ISERROR(+$C139*+VLOOKUP($B139,'%Analysis'!$A$4:$S$204,14,0)),"",+$C139*+VLOOKUP($B139,'%Analysis'!$A$4:$S$204,14,0)) ->  | S139: =IF(ISERROR(+$C139*+VLOOKUP($B139,'%Analysis'!$A$4:$S$204,15,0)),"",+$C139*+VLOOKUP($B139,'%Analysis'!$A$4:$S$204,15,0)) ->  | T139: =IF(ISERROR(+$C139*+VLOOKUP($B139,'%Analysis'!$A$4:$S$204,16,0)),"",+$C139*+VLOOKUP($B139,'%Analysis'!$A$4:$S$204,16,0)) ->  | U139: =IF(ISERROR(+$C139*+VLOOKUP($B139,'%Analysis'!$A$4:$S$204,17,0)),"",+$C139*+VLOOKUP($B139,'%Analysis'!$A$4:$S$204,17,0)) ->  | V139: =IF(ISERROR(+$C139*+VLOOKUP($B139,'%Analysis'!$A$4:$S$204,18,0)),"",+$C139*+VLOOKUP($B139,'%Analysis'!$A$4:$S$204,18,0)) ->  | Z139: =+'%Analysis'!A141 -> 0
B140: 0 | C140: 0 | H140: =IF(ISERROR(+$C140*+VLOOKUP($B140,'%Analysis'!$A$4:$S$204,4,0)),"",+$C140*+VLOOKUP($B140,'%Analysis'!$A$4:$S$204,4,0)) ->  | I140: =IF(ISERROR(+$C140*+VLOOKUP($B140,'%Analysis'!$A$4:$S$204,5,0)),"",+$C140*+VLOOKUP($B140,'%Analysis'!$A$4:$S$204,5,0)) ->  | J140: =IF(ISERROR(+$C140*+VLOOKUP($B140,'%Analysis'!$A$4:$S$204,6,0)),"",+$C140*+VLOOKUP($B140,'%Analysis'!$A$4:$S$204,6,0)) ->  | K140: =IF(ISERROR(+$C140*+VLOOKUP($B140,'%Analysis'!$A$4:$S$204,7,0)),"",+$C140*+VLOOKUP($B140,'%Analysis'!$A$4:$S$204,7,0)) ->  | L140: =IF(ISERROR(+$C140*+VLOOKUP($B140,'%Analysis'!$A$4:$S$204,8,0)),"",+$C140*+VLOOKUP($B140,'%Analysis'!$A$4:$S$204,8,0)) ->  | M140: =IF(ISERROR(+$C140*+VLOOKUP($B140,'%Analysis'!$A$4:$S$204,9,0)),"",+$C140*+VLOOKUP($B140,'%Analysis'!$A$4:$S$204,9,0)) ->  | N140: =IF(ISERROR(+$C140*+VLOOKUP($B140,'%Analysis'!$A$4:$S$204,10,0)),"",+$C140*+VLOOKUP($B140,'%Analysis'!$A$4:$S$204,10,0)) ->  | O140: =IF(ISERROR(+$C140*+VLOOKUP($B140,'%Analysis'!$A$4:$S$204,11,0)),"",+$C140*+VLOOKUP($B140,'%Analysis'!$A$4:$S$204,11,0)) ->  | P140: =IF(ISERROR(+$C140*+VLOOKUP($B140,'%Analysis'!$A$4:$S$204,12,0)),"",+$C140*+VLOOKUP($B140,'%Analysis'!$A$4:$S$204,12,0)) ->  | Q140: =IF(ISERROR(+$C140*+VLOOKUP($B140,'%Analysis'!$A$4:$S$204,13,0)),"",+$C140*+VLOOKUP($B140,'%Analysis'!$A$4:$S$204,13,0)) ->  | R140: =IF(ISERROR(+$C140*+VLOOKUP($B140,'%Analysis'!$A$4:$S$204,14,0)),"",+$C140*+VLOOKUP($B140,'%Analysis'!$A$4:$S$204,14,0)) ->  | S140: =IF(ISERROR(+$C140*+VLOOKUP($B140,'%Analysis'!$A$4:$S$204,15,0)),"",+$C140*+VLOOKUP($B140,'%Analysis'!$A$4:$S$204,15,0)) ->  | T140: =IF(ISERROR(+$C140*+VLOOKUP($B140,'%Analysis'!$A$4:$S$204,16,0)),"",+$C140*+VLOOKUP($B140,'%Analysis'!$A$4:$S$204,16,0)) ->  | U140: =IF(ISERROR(+$C140*+VLOOKUP($B140,'%Analysis'!$A$4:$S$204,17,0)),"",+$C140*+VLOOKUP($B140,'%Analysis'!$A$4:$S$204,17,0)) ->  | V140: =IF(ISERROR(+$C140*+VLOOKUP($B140,'%Analysis'!$A$4:$S$204,18,0)),"",+$C140*+VLOOKUP($B140,'%Analysis'!$A$4:$S$204,18,0)) ->  | Z140: =+'%Analysis'!A142 -> 0
B141: 0 | C141: 0 | H141: =IF(ISERROR(+$C141*+VLOOKUP($B141,'%Analysis'!$A$4:$S$204,4,0)),"",+$C141*+VLOOKUP($B141,'%Analysis'!$A$4:$S$204,4,0)) ->  | I141: =IF(ISERROR(+$C141*+VLOOKUP($B141,'%Analysis'!$A$4:$S$204,5,0)),"",+$C141*+VLOOKUP($B141,'%Analysis'!$A$4:$S$204,5,0)) ->  | J141: =IF(ISERROR(+$C141*+VLOOKUP($B141,'%Analysis'!$A$4:$S$204,6,0)),"",+$C141*+VLOOKUP($B141,'%Analysis'!$A$4:$S$204,6,0)) ->  | K141: =IF(ISERROR(+$C141*+VLOOKUP($B141,'%Analysis'!$A$4:$S$204,7,0)),"",+$C141*+VLOOKUP($B141,'%Analysis'!$A$4:$S$204,7,0)) ->  | L141: =IF(ISERROR(+$C141*+VLOOKUP($B141,'%Analysis'!$A$4:$S$204,8,0)),"",+$C141*+VLOOKUP($B141,'%Analysis'!$A$4:$S$204,8,0)) ->  | M141: =IF(ISERROR(+$C141*+VLOOKUP($B141,'%Analysis'!$A$4:$S$204,9,0)),"",+$C141*+VLOOKUP($B141,'%Analysis'!$A$4:$S$204,9,0)) ->  | N141: =IF(ISERROR(+$C141*+VLOOKUP($B141,'%Analysis'!$A$4:$S$204,10,0)),"",+$C141*+VLOOKUP($B141,'%Analysis'!$A$4:$S$204,10,0)) ->  | O141: =IF(ISERROR(+$C141*+VLOOKUP($B141,'%Analysis'!$A$4:$S$204,11,0)),"",+$C141*+VLOOKUP($B141,'%Analysis'!$A$4:$S$204,11,0)) ->  | P141: =IF(ISERROR(+$C141*+VLOOKUP($B141,'%Analysis'!$A$4:$S$204,12,0)),"",+$C141*+VLOOKUP($B141,'%Analysis'!$A$4:$S$204,12,0)) ->  | Q141: =IF(ISERROR(+$C141*+VLOOKUP($B141,'%Analysis'!$A$4:$S$204,13,0)),"",+$C141*+VLOOKUP($B141,'%Analysis'!$A$4:$S$204,13,0)) ->  | R141: =IF(ISERROR(+$C141*+VLOOKUP($B141,'%Analysis'!$A$4:$S$204,14,0)),"",+$C141*+VLOOKUP($B141,'%Analysis'!$A$4:$S$204,14,0)) ->  | S141: =IF(ISERROR(+$C141*+VLOOKUP($B141,'%Analysis'!$A$4:$S$204,15,0)),"",+$C141*+VLOOKUP($B141,'%Analysis'!$A$4:$S$204,15,0)) ->  | T141: =IF(ISERROR(+$C141*+VLOOKUP($B141,'%Analysis'!$A$4:$S$204,16,0)),"",+$C141*+VLOOKUP($B141,'%Analysis'!$A$4:$S$204,16,0)) ->  | U141: =IF(ISERROR(+$C141*+VLOOKUP($B141,'%Analysis'!$A$4:$S$204,17,0)),"",+$C141*+VLOOKUP($B141,'%Analysis'!$A$4:$S$204,17,0)) ->  | V141: =IF(ISERROR(+$C141*+VLOOKUP($B141,'%Analysis'!$A$4:$S$204,18,0)),"",+$C141*+VLOOKUP($B141,'%Analysis'!$A$4:$S$204,18,0)) ->  | Z141: =+'%Analysis'!A143 -> 0
B142: 0 | C142: 0 | H142: =IF(ISERROR(+$C142*+VLOOKUP($B142,'%Analysis'!$A$4:$S$204,4,0)),"",+$C142*+VLOOKUP($B142,'%Analysis'!$A$4:$S$204,4,0)) ->  | I142: =IF(ISERROR(+$C142*+VLOOKUP($B142,'%Analysis'!$A$4:$S$204,5,0)),"",+$C142*+VLOOKUP($B142,'%Analysis'!$A$4:$S$204,5,0)) ->  | J142: =IF(ISERROR(+$C142*+VLOOKUP($B142,'%Analysis'!$A$4:$S$204,6,0)),"",+$C142*+VLOOKUP($B142,'%Analysis'!$A$4:$S$204,6,0)) ->  | K142: =IF(ISERROR(+$C142*+VLOOKUP($B142,'%Analysis'!$A$4:$S$204,7,0)),"",+$C142*+VLOOKUP($B142,'%Analysis'!$A$4:$S$204,7,0)) ->  | L142: =IF(ISERROR(+$C142*+VLOOKUP($B142,'%Analysis'!$A$4:$S$204,8,0)),"",+$C142*+VLOOKUP($B142,'%Analysis'!$A$4:$S$204,8,0)) ->  | M142: =IF(ISERROR(+$C142*+VLOOKUP($B142,'%Analysis'!$A$4:$S$204,9,0)),"",+$C142*+VLOOKUP($B142,'%Analysis'!$A$4:$S$204,9,0)) ->  | N142: =IF(ISERROR(+$C142*+VLOOKUP($B142,'%Analysis'!$A$4:$S$204,10,0)),"",+$C142*+VLOOKUP($B142,'%Analysis'!$A$4:$S$204,10,0)) ->  | O142: =IF(ISERROR(+$C142*+VLOOKUP($B142,'%Analysis'!$A$4:$S$204,11,0)),"",+$C142*+VLOOKUP($B142,'%Analysis'!$A$4:$S$204,11,0)) ->  | P142: =IF(ISERROR(+$C142*+VLOOKUP($B142,'%Analysis'!$A$4:$S$204,12,0)),"",+$C142*+VLOOKUP($B142,'%Analysis'!$A$4:$S$204,12,0)) ->  | Q142: =IF(ISERROR(+$C142*+VLOOKUP($B142,'%Analysis'!$A$4:$S$204,13,0)),"",+$C142*+VLOOKUP($B142,'%Analysis'!$A$4:$S$204,13,0)) ->  | R142: =IF(ISERROR(+$C142*+VLOOKUP($B142,'%Analysis'!$A$4:$S$204,14,0)),"",+$C142*+VLOOKUP($B142,'%Analysis'!$A$4:$S$204,14,0)) ->  | S142: =IF(ISERROR(+$C142*+VLOOKUP($B142,'%Analysis'!$A$4:$S$204,15,0)),"",+$C142*+VLOOKUP($B142,'%Analysis'!$A$4:$S$204,15,0)) ->  | T142: =IF(ISERROR(+$C142*+VLOOKUP($B142,'%Analysis'!$A$4:$S$204,16,0)),"",+$C142*+VLOOKUP($B142,'%Analysis'!$A$4:$S$204,16,0)) ->  | U142: =IF(ISERROR(+$C142*+VLOOKUP($B142,'%Analysis'!$A$4:$S$204,17,0)),"",+$C142*+VLOOKUP($B142,'%Analysis'!$A$4:$S$204,17,0)) ->  | V142: =IF(ISERROR(+$C142*+VLOOKUP($B142,'%Analysis'!$A$4:$S$204,18,0)),"",+$C142*+VLOOKUP($B142,'%Analysis'!$A$4:$S$204,18,0)) ->  | Z142: =+'%Analysis'!A144 -> 0
B143: 0 | C143: 0 | H143: =IF(ISERROR(+$C143*+VLOOKUP($B143,'%Analysis'!$A$4:$S$204,4,0)),"",+$C143*+VLOOKUP($B143,'%Analysis'!$A$4:$S$204,4,0)) ->  | I143: =IF(ISERROR(+$C143*+VLOOKUP($B143,'%Analysis'!$A$4:$S$204,5,0)),"",+$C143*+VLOOKUP($B143,'%Analysis'!$A$4:$S$204,5,0)) ->  | J143: =IF(ISERROR(+$C143*+VLOOKUP($B143,'%Analysis'!$A$4:$S$204,6,0)),"",+$C143*+VLOOKUP($B143,'%Analysis'!$A$4:$S$204,6,0)) ->  | K143: =IF(ISERROR(+$C143*+VLOOKUP($B143,'%Analysis'!$A$4:$S$204,7,0)),"",+$C143*+VLOOKUP($B143,'%Analysis'!$A$4:$S$204,7,0)) ->  | L143: =IF(ISERROR(+$C143*+VLOOKUP($B143,'%Analysis'!$A$4:$S$204,8,0)),"",+$C143*+VLOOKUP($B143,'%Analysis'!$A$4:$S$204,8,0)) ->  | M143: =IF(ISERROR(+$C143*+VLOOKUP($B143,'%Analysis'!$A$4:$S$204,9,0)),"",+$C143*+VLOOKUP($B143,'%Analysis'!$A$4:$S$204,9,0)) ->  | N143: =IF(ISERROR(+$C143*+VLOOKUP($B143,'%Analysis'!$A$4:$S$204,10,0)),"",+$C143*+VLOOKUP($B143,'%Analysis'!$A$4:$S$204,10,0)) ->  | O143: =IF(ISERROR(+$C143*+VLOOKUP($B143,'%Analysis'!$A$4:$S$204,11,0)),"",+$C143*+VLOOKUP($B143,'%Analysis'!$A$4:$S$204,11,0)) ->  | P143: =IF(ISERROR(+$C143*+VLOOKUP($B143,'%Analysis'!$A$4:$S$204,12,0)),"",+$C143*+VLOOKUP($B143,'%Analysis'!$A$4:$S$204,12,0)) ->  | Q143: =IF(ISERROR(+$C143*+VLOOKUP($B143,'%Analysis'!$A$4:$S$204,13,0)),"",+$C143*+VLOOKUP($B143,'%Analysis'!$A$4:$S$204,13,0)) ->  | R143: =IF(ISERROR(+$C143*+VLOOKUP($B143,'%Analysis'!$A$4:$S$204,14,0)),"",+$C143*+VLOOKUP($B143,'%Analysis'!$A$4:$S$204,14,0)) ->  | S143: =IF(ISERROR(+$C143*+VLOOKUP($B143,'%Analysis'!$A$4:$S$204,15,0)),"",+$C143*+VLOOKUP($B143,'%Analysis'!$A$4:$S$204,15,0)) ->  | T143: =IF(ISERROR(+$C143*+VLOOKUP($B143,'%Analysis'!$A$4:$S$204,16,0)),"",+$C143*+VLOOKUP($B143,'%Analysis'!$A$4:$S$204,16,0)) ->  | U143: =IF(ISERROR(+$C143*+VLOOKUP($B143,'%Analysis'!$A$4:$S$204,17,0)),"",+$C143*+VLOOKUP($B143,'%Analysis'!$A$4:$S$204,17,0)) ->  | V143: =IF(ISERROR(+$C143*+VLOOKUP($B143,'%Analysis'!$A$4:$S$204,18,0)),"",+$C143*+VLOOKUP($B143,'%Analysis'!$A$4:$S$204,18,0)) ->  | Z143: =+'%Analysis'!A145 -> 0
B144: 0 | C144: 0 | H144: =IF(ISERROR(+$C144*+VLOOKUP($B144,'%Analysis'!$A$4:$S$204,4,0)),"",+$C144*+VLOOKUP($B144,'%Analysis'!$A$4:$S$204,4,0)) ->  | I144: =IF(ISERROR(+$C144*+VLOOKUP($B144,'%Analysis'!$A$4:$S$204,5,0)),"",+$C144*+VLOOKUP($B144,'%Analysis'!$A$4:$S$204,5,0)) ->  | J144: =IF(ISERROR(+$C144*+VLOOKUP($B144,'%Analysis'!$A$4:$S$204,6,0)),"",+$C144*+VLOOKUP($B144,'%Analysis'!$A$4:$S$204,6,0)) ->  | K144: =IF(ISERROR(+$C144*+VLOOKUP($B144,'%Analysis'!$A$4:$S$204,7,0)),"",+$C144*+VLOOKUP($B144,'%Analysis'!$A$4:$S$204,7,0)) ->  | L144: =IF(ISERROR(+$C144*+VLOOKUP($B144,'%Analysis'!$A$4:$S$204,8,0)),"",+$C144*+VLOOKUP($B144,'%Analysis'!$A$4:$S$204,8,0)) ->  | M144: =IF(ISERROR(+$C144*+VLOOKUP($B144,'%Analysis'!$A$4:$S$204,9,0)),"",+$C144*+VLOOKUP($B144,'%Analysis'!$A$4:$S$204,9,0)) ->  | N144: =IF(ISERROR(+$C144*+VLOOKUP($B144,'%Analysis'!$A$4:$S$204,10,0)),"",+$C144*+VLOOKUP($B144,'%Analysis'!$A$4:$S$204,10,0)) ->  | O144: =IF(ISERROR(+$C144*+VLOOKUP($B144,'%Analysis'!$A$4:$S$204,11,0)),"",+$C144*+VLOOKUP($B144,'%Analysis'!$A$4:$S$204,11,0)) ->  | P144: =IF(ISERROR(+$C144*+VLOOKUP($B144,'%Analysis'!$A$4:$S$204,12,0)),"",+$C144*+VLOOKUP($B144,'%Analysis'!$A$4:$S$204,12,0)) ->  | Q144: =IF(ISERROR(+$C144*+VLOOKUP($B144,'%Analysis'!$A$4:$S$204,13,0)),"",+$C144*+VLOOKUP($B144,'%Analysis'!$A$4:$S$204,13,0)) ->  | R144: =IF(ISERROR(+$C144*+VLOOKUP($B144,'%Analysis'!$A$4:$S$204,14,0)),"",+$C144*+VLOOKUP($B144,'%Analysis'!$A$4:$S$204,14,0)) ->  | S144: =IF(ISERROR(+$C144*+VLOOKUP($B144,'%Analysis'!$A$4:$S$204,15,0)),"",+$C144*+VLOOKUP($B144,'%Analysis'!$A$4:$S$204,15,0)) ->  | T144: =IF(ISERROR(+$C144*+VLOOKUP($B144,'%Analysis'!$A$4:$S$204,16,0)),"",+$C144*+VLOOKUP($B144,'%Analysis'!$A$4:$S$204,16,0)) ->  | U144: =IF(ISERROR(+$C144*+VLOOKUP($B144,'%Analysis'!$A$4:$S$204,17,0)),"",+$C144*+VLOOKUP($B144,'%Analysis'!$A$4:$S$204,17,0)) ->  | V144: =IF(ISERROR(+$C144*+VLOOKUP($B144,'%Analysis'!$A$4:$S$204,18,0)),"",+$C144*+VLOOKUP($B144,'%Analysis'!$A$4:$S$204,18,0)) ->  | Z144: =+'%Analysis'!A146 -> 0
B145: 0 | C145: 0 | H145: =IF(ISERROR(+$C145*+VLOOKUP($B145,'%Analysis'!$A$4:$S$204,4,0)),"",+$C145*+VLOOKUP($B145,'%Analysis'!$A$4:$S$204,4,0)) ->  | I145: =IF(ISERROR(+$C145*+VLOOKUP($B145,'%Analysis'!$A$4:$S$204,5,0)),"",+$C145*+VLOOKUP($B145,'%Analysis'!$A$4:$S$204,5,0)) ->  | J145: =IF(ISERROR(+$C145*+VLOOKUP($B145,'%Analysis'!$A$4:$S$204,6,0)),"",+$C145*+VLOOKUP($B145,'%Analysis'!$A$4:$S$204,6,0)) ->  | K145: =IF(ISERROR(+$C145*+VLOOKUP($B145,'%Analysis'!$A$4:$S$204,7,0)),"",+$C145*+VLOOKUP($B145,'%Analysis'!$A$4:$S$204,7,0)) ->  | L145: =IF(ISERROR(+$C145*+VLOOKUP($B145,'%Analysis'!$A$4:$S$204,8,0)),"",+$C145*+VLOOKUP($B145,'%Analysis'!$A$4:$S$204,8,0)) ->  | M145: =IF(ISERROR(+$C145*+VLOOKUP($B145,'%Analysis'!$A$4:$S$204,9,0)),"",+$C145*+VLOOKUP($B145,'%Analysis'!$A$4:$S$204,9,0)) ->  | N145: =IF(ISERROR(+$C145*+VLOOKUP($B145,'%Analysis'!$A$4:$S$204,10,0)),"",+$C145*+VLOOKUP($B145,'%Analysis'!$A$4:$S$204,10,0)) ->  | O145: =IF(ISERROR(+$C145*+VLOOKUP($B145,'%Analysis'!$A$4:$S$204,11,0)),"",+$C145*+VLOOKUP($B145,'%Analysis'!$A$4:$S$204,11,0)) ->  | P145: =IF(ISERROR(+$C145*+VLOOKUP($B145,'%Analysis'!$A$4:$S$204,12,0)),"",+$C145*+VLOOKUP($B145,'%Analysis'!$A$4:$S$204,12,0)) ->  | Q145: =IF(ISERROR(+$C145*+VLOOKUP($B145,'%Analysis'!$A$4:$S$204,13,0)),"",+$C145*+VLOOKUP($B145,'%Analysis'!$A$4:$S$204,13,0)) ->  | R145: =IF(ISERROR(+$C145*+VLOOKUP($B145,'%Analysis'!$A$4:$S$204,14,0)),"",+$C145*+VLOOKUP($B145,'%Analysis'!$A$4:$S$204,14,0)) ->  | S145: =IF(ISERROR(+$C145*+VLOOKUP($B145,'%Analysis'!$A$4:$S$204,15,0)),"",+$C145*+VLOOKUP($B145,'%Analysis'!$A$4:$S$204,15,0)) ->  | T145: =IF(ISERROR(+$C145*+VLOOKUP($B145,'%Analysis'!$A$4:$S$204,16,0)),"",+$C145*+VLOOKUP($B145,'%Analysis'!$A$4:$S$204,16,0)) ->  | U145: =IF(ISERROR(+$C145*+VLOOKUP($B145,'%Analysis'!$A$4:$S$204,17,0)),"",+$C145*+VLOOKUP($B145,'%Analysis'!$A$4:$S$204,17,0)) ->  | V145: =IF(ISERROR(+$C145*+VLOOKUP($B145,'%Analysis'!$A$4:$S$204,18,0)),"",+$C145*+VLOOKUP($B145,'%Analysis'!$A$4:$S$204,18,0)) ->  | Z145: =+'%Analysis'!A147 -> 0
B146: 0 | C146: 0 | H146: =IF(ISERROR(+$C146*+VLOOKUP($B146,'%Analysis'!$A$4:$S$204,4,0)),"",+$C146*+VLOOKUP($B146,'%Analysis'!$A$4:$S$204,4,0)) ->  | I146: =IF(ISERROR(+$C146*+VLOOKUP($B146,'%Analysis'!$A$4:$S$204,5,0)),"",+$C146*+VLOOKUP($B146,'%Analysis'!$A$4:$S$204,5,0)) ->  | J146: =IF(ISERROR(+$C146*+VLOOKUP($B146,'%Analysis'!$A$4:$S$204,6,0)),"",+$C146*+VLOOKUP($B146,'%Analysis'!$A$4:$S$204,6,0)) ->  | K146: =IF(ISERROR(+$C146*+VLOOKUP($B146,'%Analysis'!$A$4:$S$204,7,0)),"",+$C146*+VLOOKUP($B146,'%Analysis'!$A$4:$S$204,7,0)) ->  | L146: =IF(ISERROR(+$C146*+VLOOKUP($B146,'%Analysis'!$A$4:$S$204,8,0)),"",+$C146*+VLOOKUP($B146,'%Analysis'!$A$4:$S$204,8,0)) ->  | M146: =IF(ISERROR(+$C146*+VLOOKUP($B146,'%Analysis'!$A$4:$S$204,9,0)),"",+$C146*+VLOOKUP($B146,'%Analysis'!$A$4:$S$204,9,0)) ->  | N146: =IF(ISERROR(+$C146*+VLOOKUP($B146,'%Analysis'!$A$4:$S$204,10,0)),"",+$C146*+VLOOKUP($B146,'%Analysis'!$A$4:$S$204,10,0)) ->  | O146: =IF(ISERROR(+$C146*+VLOOKUP($B146,'%Analysis'!$A$4:$S$204,11,0)),"",+$C146*+VLOOKUP($B146,'%Analysis'!$A$4:$S$204,11,0)) ->  | P146: =IF(ISERROR(+$C146*+VLOOKUP($B146,'%Analysis'!$A$4:$S$204,12,0)),"",+$C146*+VLOOKUP($B146,'%Analysis'!$A$4:$S$204,12,0)) ->  | Q146: =IF(ISERROR(+$C146*+VLOOKUP($B146,'%Analysis'!$A$4:$S$204,13,0)),"",+$C146*+VLOOKUP($B146,'%Analysis'!$A$4:$S$204,13,0)) ->  | R146: =IF(ISERROR(+$C146*+VLOOKUP($B146,'%Analysis'!$A$4:$S$204,14,0)),"",+$C146*+VLOOKUP($B146,'%Analysis'!$A$4:$S$204,14,0)) ->  | S146: =IF(ISERROR(+$C146*+VLOOKUP($B146,'%Analysis'!$A$4:$S$204,15,0)),"",+$C146*+VLOOKUP($B146,'%Analysis'!$A$4:$S$204,15,0)) ->  | T146: =IF(ISERROR(+$C146*+VLOOKUP($B146,'%Analysis'!$A$4:$S$204,16,0)),"",+$C146*+VLOOKUP($B146,'%Analysis'!$A$4:$S$204,16,0)) ->  | U146: =IF(ISERROR(+$C146*+VLOOKUP($B146,'%Analysis'!$A$4:$S$204,17,0)),"",+$C146*+VLOOKUP($B146,'%Analysis'!$A$4:$S$204,17,0)) ->  | V146: =IF(ISERROR(+$C146*+VLOOKUP($B146,'%Analysis'!$A$4:$S$204,18,0)),"",+$C146*+VLOOKUP($B146,'%Analysis'!$A$4:$S$204,18,0)) ->  | Z146: =+'%Analysis'!A148 -> 0
B147: 0 | C147: 0 | H147: =IF(ISERROR(+$C147*+VLOOKUP($B147,'%Analysis'!$A$4:$S$204,4,0)),"",+$C147*+VLOOKUP($B147,'%Analysis'!$A$4:$S$204,4,0)) ->  | I147: =IF(ISERROR(+$C147*+VLOOKUP($B147,'%Analysis'!$A$4:$S$204,5,0)),"",+$C147*+VLOOKUP($B147,'%Analysis'!$A$4:$S$204,5,0)) ->  | J147: =IF(ISERROR(+$C147*+VLOOKUP($B147,'%Analysis'!$A$4:$S$204,6,0)),"",+$C147*+VLOOKUP($B147,'%Analysis'!$A$4:$S$204,6,0)) ->  | K147: =IF(ISERROR(+$C147*+VLOOKUP($B147,'%Analysis'!$A$4:$S$204,7,0)),"",+$C147*+VLOOKUP($B147,'%Analysis'!$A$4:$S$204,7,0)) ->  | L147: =IF(ISERROR(+$C147*+VLOOKUP($B147,'%Analysis'!$A$4:$S$204,8,0)),"",+$C147*+VLOOKUP($B147,'%Analysis'!$A$4:$S$204,8,0)) ->  | M147: =IF(ISERROR(+$C147*+VLOOKUP($B147,'%Analysis'!$A$4:$S$204,9,0)),"",+$C147*+VLOOKUP($B147,'%Analysis'!$A$4:$S$204,9,0)) ->  | N147: =IF(ISERROR(+$C147*+VLOOKUP($B147,'%Analysis'!$A$4:$S$204,10,0)),"",+$C147*+VLOOKUP($B147,'%Analysis'!$A$4:$S$204,10,0)) ->  | O147: =IF(ISERROR(+$C147*+VLOOKUP($B147,'%Analysis'!$A$4:$S$204,11,0)),"",+$C147*+VLOOKUP($B147,'%Analysis'!$A$4:$S$204,11,0)) ->  | P147: =IF(ISERROR(+$C147*+VLOOKUP($B147,'%Analysis'!$A$4:$S$204,12,0)),"",+$C147*+VLOOKUP($B147,'%Analysis'!$A$4:$S$204,12,0)) ->  | Q147: =IF(ISERROR(+$C147*+VLOOKUP($B147,'%Analysis'!$A$4:$S$204,13,0)),"",+$C147*+VLOOKUP($B147,'%Analysis'!$A$4:$S$204,13,0)) ->  | R147: =IF(ISERROR(+$C147*+VLOOKUP($B147,'%Analysis'!$A$4:$S$204,14,0)),"",+$C147*+VLOOKUP($B147,'%Analysis'!$A$4:$S$204,14,0)) ->  | S147: =IF(ISERROR(+$C147*+VLOOKUP($B147,'%Analysis'!$A$4:$S$204,15,0)),"",+$C147*+VLOOKUP($B147,'%Analysis'!$A$4:$S$204,15,0)) ->  | T147: =IF(ISERROR(+$C147*+VLOOKUP($B147,'%Analysis'!$A$4:$S$204,16,0)),"",+$C147*+VLOOKUP($B147,'%Analysis'!$A$4:$S$204,16,0)) ->  | U147: =IF(ISERROR(+$C147*+VLOOKUP($B147,'%Analysis'!$A$4:$S$204,17,0)),"",+$C147*+VLOOKUP($B147,'%Analysis'!$A$4:$S$204,17,0)) ->  | V147: =IF(ISERROR(+$C147*+VLOOKUP($B147,'%Analysis'!$A$4:$S$204,18,0)),"",+$C147*+VLOOKUP($B147,'%Analysis'!$A$4:$S$204,18,0)) ->  | Z147: =+'%Analysis'!A149 -> 0
B148: 0 | C148: 0 | H148: =IF(ISERROR(+$C148*+VLOOKUP($B148,'%Analysis'!$A$4:$S$204,4,0)),"",+$C148*+VLOOKUP($B148,'%Analysis'!$A$4:$S$204,4,0)) ->  | I148: =IF(ISERROR(+$C148*+VLOOKUP($B148,'%Analysis'!$A$4:$S$204,5,0)),"",+$C148*+VLOOKUP($B148,'%Analysis'!$A$4:$S$204,5,0)) ->  | J148: =IF(ISERROR(+$C148*+VLOOKUP($B148,'%Analysis'!$A$4:$S$204,6,0)),"",+$C148*+VLOOKUP($B148,'%Analysis'!$A$4:$S$204,6,0)) ->  | K148: =IF(ISERROR(+$C148*+VLOOKUP($B148,'%Analysis'!$A$4:$S$204,7,0)),"",+$C148*+VLOOKUP($B148,'%Analysis'!$A$4:$S$204,7,0)) ->  | L148: =IF(ISERROR(+$C148*+VLOOKUP($B148,'%Analysis'!$A$4:$S$204,8,0)),"",+$C148*+VLOOKUP($B148,'%Analysis'!$A$4:$S$204,8,0)) ->  | M148: =IF(ISERROR(+$C148*+VLOOKUP($B148,'%Analysis'!$A$4:$S$204,9,0)),"",+$C148*+VLOOKUP($B148,'%Analysis'!$A$4:$S$204,9,0)) ->  | N148: =IF(ISERROR(+$C148*+VLOOKUP($B148,'%Analysis'!$A$4:$S$204,10,0)),"",+$C148*+VLOOKUP($B148,'%Analysis'!$A$4:$S$204,10,0)) ->  | O148: =IF(ISERROR(+$C148*+VLOOKUP($B148,'%Analysis'!$A$4:$S$204,11,0)),"",+$C148*+VLOOKUP($B148,'%Analysis'!$A$4:$S$204,11,0)) ->  | P148: =IF(ISERROR(+$C148*+VLOOKUP($B148,'%Analysis'!$A$4:$S$204,12,0)),"",+$C148*+VLOOKUP($B148,'%Analysis'!$A$4:$S$204,12,0)) ->  | Q148: =IF(ISERROR(+$C148*+VLOOKUP($B148,'%Analysis'!$A$4:$S$204,13,0)),"",+$C148*+VLOOKUP($B148,'%Analysis'!$A$4:$S$204,13,0)) ->  | R148: =IF(ISERROR(+$C148*+VLOOKUP($B148,'%Analysis'!$A$4:$S$204,14,0)),"",+$C148*+VLOOKUP($B148,'%Analysis'!$A$4:$S$204,14,0)) ->  | S148: =IF(ISERROR(+$C148*+VLOOKUP($B148,'%Analysis'!$A$4:$S$204,15,0)),"",+$C148*+VLOOKUP($B148,'%Analysis'!$A$4:$S$204,15,0)) ->  | T148: =IF(ISERROR(+$C148*+VLOOKUP($B148,'%Analysis'!$A$4:$S$204,16,0)),"",+$C148*+VLOOKUP($B148,'%Analysis'!$A$4:$S$204,16,0)) ->  | U148: =IF(ISERROR(+$C148*+VLOOKUP($B148,'%Analysis'!$A$4:$S$204,17,0)),"",+$C148*+VLOOKUP($B148,'%Analysis'!$A$4:$S$204,17,0)) ->  | V148: =IF(ISERROR(+$C148*+VLOOKUP($B148,'%Analysis'!$A$4:$S$204,18,0)),"",+$C148*+VLOOKUP($B148,'%Analysis'!$A$4:$S$204,18,0)) ->  | Z148: =+'%Analysis'!A150 -> 0
H149: =IF(ISERROR(+$C149*+VLOOKUP($B149,'%Analysis'!$A$4:$S$204,4,0)),"",+$C149*+VLOOKUP($B149,'%Analysis'!$A$4:$S$204,4,0)) ->  | I149: =IF(ISERROR(+$C149*+VLOOKUP($B149,'%Analysis'!$A$4:$S$204,5,0)),"",+$C149*+VLOOKUP($B149,'%Analysis'!$A$4:$S$204,5,0)) ->  | J149: =IF(ISERROR(+$C149*+VLOOKUP($B149,'%Analysis'!$A$4:$S$204,6,0)),"",+$C149*+VLOOKUP($B149,'%Analysis'!$A$4:$S$204,6,0)) ->  | K149: =IF(ISERROR(+$C149*+VLOOKUP($B149,'%Analysis'!$A$4:$S$204,7,0)),"",+$C149*+VLOOKUP($B149,'%Analysis'!$A$4:$S$204,7,0)) ->  | L149: =IF(ISERROR(+$C149*+VLOOKUP($B149,'%Analysis'!$A$4:$S$204,8,0)),"",+$C149*+VLOOKUP($B149,'%Analysis'!$A$4:$S$204,8,0)) ->  | M149: =IF(ISERROR(+$C149*+VLOOKUP($B149,'%Analysis'!$A$4:$S$204,9,0)),"",+$C149*+VLOOKUP($B149,'%Analysis'!$A$4:$S$204,9,0)) ->  | N149: =IF(ISERROR(+$C149*+VLOOKUP($B149,'%Analysis'!$A$4:$S$204,10,0)),"",+$C149*+VLOOKUP($B149,'%Analysis'!$A$4:$S$204,10,0)) ->  | O149: =IF(ISERROR(+$C149*+VLOOKUP($B149,'%Analysis'!$A$4:$S$204,11,0)),"",+$C149*+VLOOKUP($B149,'%Analysis'!$A$4:$S$204,11,0)) ->  | P149: =IF(ISERROR(+$C149*+VLOOKUP($B149,'%Analysis'!$A$4:$S$204,12,0)),"",+$C149*+VLOOKUP($B149,'%Analysis'!$A$4:$S$204,12,0)) ->  | Q149: =IF(ISERROR(+$C149*+VLOOKUP($B149,'%Analysis'!$A$4:$S$204,13,0)),"",+$C149*+VLOOKUP($B149,'%Analysis'!$A$4:$S$204,13,0)) ->  | R149: =IF(ISERROR(+$C149*+VLOOKUP($B149,'%Analysis'!$A$4:$S$204,14,0)),"",+$C149*+VLOOKUP($B149,'%Analysis'!$A$4:$S$204,14,0)) ->  | S149: =IF(ISERROR(+$C149*+VLOOKUP($B149,'%Analysis'!$A$4:$S$204,15,0)),"",+$C149*+VLOOKUP($B149,'%Analysis'!$A$4:$S$204,15,0)) ->  | T149: =IF(ISERROR(+$C149*+VLOOKUP($B149,'%Analysis'!$A$4:$S$204,16,0)),"",+$C149*+VLOOKUP($B149,'%Analysis'!$A$4:$S$204,16,0)) ->  | U149: =IF(ISERROR(+$C149*+VLOOKUP($B149,'%Analysis'!$A$4:$S$204,17,0)),"",+$C149*+VLOOKUP($B149,'%Analysis'!$A$4:$S$204,17,0)) ->  | V149: =IF(ISERROR(+$C149*+VLOOKUP($B149,'%Analysis'!$A$4:$S$204,18,0)),"",+$C149*+VLOOKUP($B149,'%Analysis'!$A$4:$S$204,18,0)) ->  | Z149: =+'%Analysis'!A151 -> 0
H150: =IF(ISERROR(+$C150*+VLOOKUP($B150,'%Analysis'!$A$4:$S$204,4,0)),"",+$C150*+VLOOKUP($B150,'%Analysis'!$A$4:$S$204,4,0)) ->  | I150: =IF(ISERROR(+$C150*+VLOOKUP($B150,'%Analysis'!$A$4:$S$204,5,0)),"",+$C150*+VLOOKUP($B150,'%Analysis'!$A$4:$S$204,5,0)) ->  | J150: =IF(ISERROR(+$C150*+VLOOKUP($B150,'%Analysis'!$A$4:$S$204,6,0)),"",+$C150*+VLOOKUP($B150,'%Analysis'!$A$4:$S$204,6,0)) ->  | K150: =IF(ISERROR(+$C150*+VLOOKUP($B150,'%Analysis'!$A$4:$S$204,7,0)),"",+$C150*+VLOOKUP($B150,'%Analysis'!$A$4:$S$204,7,0)) ->  | L150: =IF(ISERROR(+$C150*+VLOOKUP($B150,'%Analysis'!$A$4:$S$204,8,0)),"",+$C150*+VLOOKUP($B150,'%Analysis'!$A$4:$S$204,8,0)) ->  | M150: =IF(ISERROR(+$C150*+VLOOKUP($B150,'%Analysis'!$A$4:$S$204,9,0)),"",+$C150*+VLOOKUP($B150,'%Analysis'!$A$4:$S$204,9,0)) ->  | N150: =IF(ISERROR(+$C150*+VLOOKUP($B150,'%Analysis'!$A$4:$S$204,10,0)),"",+$C150*+VLOOKUP($B150,'%Analysis'!$A$4:$S$204,10,0)) ->  | O150: =IF(ISERROR(+$C150*+VLOOKUP($B150,'%Analysis'!$A$4:$S$204,11,0)),"",+$C150*+VLOOKUP($B150,'%Analysis'!$A$4:$S$204,11,0)) ->  | P150: =IF(ISERROR(+$C150*+VLOOKUP($B150,'%Analysis'!$A$4:$S$204,12,0)),"",+$C150*+VLOOKUP($B150,'%Analysis'!$A$4:$S$204,12,0)) ->  | Q150: =IF(ISERROR(+$C150*+VLOOKUP($B150,'%Analysis'!$A$4:$S$204,13,0)),"",+$C150*+VLOOKUP($B150,'%Analysis'!$A$4:$S$204,13,0)) ->  | R150: =IF(ISERROR(+$C150*+VLOOKUP($B150,'%Analysis'!$A$4:$S$204,14,0)),"",+$C150*+VLOOKUP($B150,'%Analysis'!$A$4:$S$204,14,0)) ->  | S150: =IF(ISERROR(+$C150*+VLOOKUP($B150,'%Analysis'!$A$4:$S$204,15,0)),"",+$C150*+VLOOKUP($B150,'%Analysis'!$A$4:$S$204,15,0)) ->  | T150: =IF(ISERROR(+$C150*+VLOOKUP($B150,'%Analysis'!$A$4:$S$204,16,0)),"",+$C150*+VLOOKUP($B150,'%Analysis'!$A$4:$S$204,16,0)) ->  | U150: =IF(ISERROR(+$C150*+VLOOKUP($B150,'%Analysis'!$A$4:$S$204,17,0)),"",+$C150*+VLOOKUP($B150,'%Analysis'!$A$4:$S$204,17,0)) ->  | V150: =IF(ISERROR(+$C150*+VLOOKUP($B150,'%Analysis'!$A$4:$S$204,18,0)),"",+$C150*+VLOOKUP($B150,'%Analysis'!$A$4:$S$204,18,0)) ->  | Z150: =+'%Analysis'!A152 -> 0
Z151: =+'%Analysis'!A153 -> 0
Z152: =+'%Analysis'!A154 -> 0
C153: Weight Totals | F153: =384.248/414.63 -> 0.926725032 | H153: =SUM(H136:H152) -> 0 | I153: =SUM(I136:I152) -> 0 | J153: 0 | K153: 0 | L153: 0 | M153: 0 | N153: 0 | O153: 0 | P153: 0 | Q153: 0 | R153: 0 | S153: 0 | T153: 0 | U153: 0 | V153: 0 | Z153: =+'%Analysis'!A155 -> 0
C154: Mol Weights | H154: 94.196 | I154: 61.979 | J154: 29.881 | K154: 56.077 | L154: 103.619 | M154: 40.304 | N154: 81.379 | O154: 153.326 | P154: 101.961 | Q154: 159.688 | R154: 69.62 | S154: 60.084 | T154: 79.866 | U154: 44.01 | V154: 18.015 | Z154: =+'%Analysis'!A156 -> 0
C155: Gram Equivalents | F155: =SUM(I155:V155) -> 0 | H155: =H153/H154 -> 0 | I155: =I153/I154 -> 0 | J155: =J153/J154 -> 0 | K155: =K153/K154 -> 0 | L155: =L153/L154 -> 0 | M155: 0 | N155: 0 | O155: 0 | P155: 0 | Q155: 0 | R155: 0 | S155: 0 | T155: 0 | U155: 0 | V155: 0
C156: Total Flux Equivs | H156: =SUM(H155:O155) -> 0
C157: Formula | H157: =H155/$H$156 -> 
G159: TOTAL | H159: K2O | I159: Na2O | J159: Li2O | K159: CaO | L159: SrO | M159: MgO | N159: ZnO | O159: BaO | P159: Al2O3 | Q159: Fe2O3 | R159: B2O3 | S159: SiO2 | T159: TiO2 | U159: CO2 | V159: H2O
E160: | | F160: Fired | G160: =+H153+I153+J153+K153+L153+M153+N153+O153+P153+Q153+R153+S153+T153 -> 0 | H160: =+H153 -> 0 | I160: =+I153 -> 0 | J160: 0 | K160: 0 | L160: 0 | M160: 0 | N160: 0 | O160: 0 | P160: 0 | Q160: 0 | R160: 0 | S160: 0 | T160: 0
E161: | | F161: Wt % | G161: =G160/$G$160 ->  | H161: =H160/$G$160 -> 
E162: |
E163: |
E164: |

Sheet %Analysis
A1: Percent Analysis of Ceramic Glaze Ingredients
A2: This page updated courtesy of Dick White
A4: Mineral | B4: Mol Wt | C4: Tot % | D4: K2O | E4: Na2O | F4: Li2O | G4: CaO | H4: SrO | I4: MgO | J4: ZnO | K4: BaO | L4: Al2O3 | M4: Fe2O3 | N4: B2O3 | O4: SiO2 | P4: TiO2 | Q4: CO2 | R4: H2O | S4: Source
A5: Al2O3 | B5: 101.94 | C5: =SUM(D5:R5) -> 100 | L5: 100
A6: Albany Slip | B6: 462.93 | C6: 99.99 | D6: 3.2 | E6: 0.8 | G6: 5.81 | I6: 2.71 | L6: 14.63 | M6: 5.21 | O6: 57.82 | P6: 0.4 | Q6: 9.41 | S6: DigitalFire
A7: Alumina Hydrate | B7: 155.94 | C7: 100 | L7: 65.37129665 | R7: 34.62870335
A8: B2O3 | C8: 100 | N8: 100
A9: BaCarb | C9: 100 | K9: 77.7 | Q9: 22.3
A10: BaO | C10: 100 | K10: 100
A11: Barnard Slip | C11: 96.11 | D11: 2 | G11: 0.3 | I11: 0.8 | L11: 10 | M11: 15 | O11: 59 | P11: 0.7 | Q11: 8.31 | S11: DigitalFire
A12: Bentone MA | C12: =SUM(D10:R10) -> 100 | E12: 3.2 | F12: 1.3 | G12: 5.5 | I12: 22.7 | L12: 0.8 | M12: 0.3 | O12: 53.2 | Q12: 12.7 | S12: DigitalFire
A13: Bentonite | C13: =SUM(D13:R13) -> 99.37 | D13: 2.9 | G13: 0.46 | I13: 2.26 | L13: 20.7 | M13: 3.47 | O13: 64.32 | P13: 0.11 | R13: 5.15
A14: BoneAsh | C14: =SUM(D14:R14) -> 55.82 | G14: 55.82 | S14: DigitalFire
A15: Borax | C15: =SUM(D15:R15) -> 100 | E15: 16.26 | N15: 36.53 | R15: 47.21
A16: CaO | C16: =SUM(D16:R16) -> 100 | G16: 100
A17: ChromeOxide
A18: CMC Gum | C18: =SUM(D18:R18) -> 0
A19: CoCarb
A20: Coleman | B20: 411 | C20: =SUM(D20:R20) -> 100 | G20: 27.3 | N20: 50.8 | R20: 21.9
A21: CoOxide | C21: =SUM(D21:R21) -> 0
A22: Corn Old | C22: =SUM(D22:R22) -> 98.78 | D22: 3.8 | E22: 4 | G22: 2.96 | I22: 0.09 | L22: 14.9 | M22: 0.13 | O22: 72.9
A23: Cornwall | B23: 726.06 | C23: =SUM(D23:R23) -> 98.7 | D23: 6.5 | E23: 2.3 | G23: 1.6 | L23: 16.7 | M23: 0.2 | O23: 70.9 | P23: 0.5 | S23: CeramicArtsDaily
A24: Cu2O
A25: CuCarb
A26: Custer | B26: 618.82 | C26: =SUM(D26:R26) -> 100 | D26: 7 | E26: 3 | G26: 0.3 | I26: 0.01 | L26: 15 | M26: 0.15 | O26: 73.5 | Q26: 1.04 | S26: Ron Roy
A27: Custer - Old | C27: 99.7 | D27: 10.1 | E27: 3 | G27: 0.3 | L27: 17.1 | M27: 0.2 | O27: 69 | S27: Pacer
A28: Dolomite | B28: 184.4 | C28: 100 | G28: 30.49 | I28: 21.9 | Q28: 47.61 | S28: DigitalFire
A29: EPK | B29: 272.92 | C29: 98.12 | D29: 0.33 | E29: 0.06 | G29: 0.18 | I29: 0.1 | L29: 37.36 | M29: 0.79 | O29: 45.73 | P29: 0.37 | Q29: 11.8 | R29: 1.4 | S29: DigitalFire
A30: EPK - Calcined | C30: 100 | L30: 45.9 | O30: 54.1 | S30: DigitalFire
A31: Fe2O3 | C31: 100 | M31: 100
A32: Ferro3110 | B32: 261.11 | C32: 100 | D32: 2.36 | E32: 15.24 | G32: 6.29 | L32: 3.7 | N32: 2.64 | O32: 69.77 | S32: DigitalFire
A33: Ferro3124 | B33: 274.12 | C33: 100.05 | D33: 0.68 | E33: 6.4 | G33: 14.28 | L33: 10.01 | N33: 13.74 | O33: 54.94 | S33: DigitalFire
A34: Ferro3134 | B34: 195.57 | C34: 100 | E34: 10.14 | G34: 19.51 | L34: 2 | N34: 22.79 | O34: 45.56 | S34: DigitalFire
A35: Ferro3195 | B35: 339.82 | C35: 100 | E35: 5.69 | G35: 11.36 | L35: 11.98 | N35: 22.62 | O35: 48.35 | S35: DigitalFire
A36: Flint | B36: 60.06 | C36: 100 | O36: 100 | S36: DigitalFire
A37: G-200 | B37: 553.87 | C37: 99.78 | D37: 10.8 | E37: 3.1 | G37: 0.8 | I37: 0.05 | L37: 18.5 | M37: 0.08 | O37: 66.3 | Q37: 0.15 | S37: DigitalFire
A38: G200 HP | B38: 560.75 | C38: 99.82 | D38: 13.2 | E38: 1.52 | G38: 0.75 | L38: 18.2 | M38: 0.09 | O38: 65.9 | Q38: 0.16 | S38: Digitalfire
A39: Gerstley Borate | B39: 199.15 | C39: 100 | D39: 0.4 | E39: 4 | G39: 19.6 | I39: 3.5 | L39: 1 | M39: 0.4 | N39: 26.8 | O39: 14.8 | Q39: 29.5 | S39: DigitalFire
A40: Gerstley Borate - 1999 | C40: 98.2 | E40: 2.9 | G40: 18.9 | L40: 7 | N40: 25.7 | O40: 21.2 | Q40: 22.5 | S40: GlazeMaster
A41: Gillespie Borate | C41: 100.02 | E41: 3.77 | G41: 23 | H41: 0.45 | I41: 3.9 | L41: 1.7 | N41: 24.5 | O41: 11.8 | Q41: 30.9 | S41: DigitalFire
A42: Goldart | B42: 353.77 | C42: 99.98 | D42: 1.9 | E42: 0.2 | G42: 0.2 | I42: 0.48 | L42: 28.8 | M42: 1.4 | O42: 55.2 | P42: 1.8 | Q42: 10 | S42: DigitalFire
A43: Grolleg | B43: 271.38 | C43: 100.14 | D43: 1.9 | E43: 0.1 | G43: 0.1 | I43: 0.3 | L43: 37 | M43: 0.7 | O43: 48 | P43: 0.03 | R43: 12.01 | S43: DigitalFire
A44: K2CO3 | B44: 138.2 | C44: 100 | D44: 68.15484805 | Q44: 31.84515195
A45: K2O | C45: 100 | D45: 100
A46: Kaolin | B46: 253.67 | C46: 100 | L46: 40.21 | O46: 47.29 | R46: 12.5 | S46: DigitalFire
A47: KFeld | C47: 100 | D47: 16.92 | L47: 18.32 | O47: 64.76
A48: Kingman | B48: 573.21 | C48: 99.99 | D48: 12.01 | E48: 2.8 | G48: 0.1 | L48: 18.72 | M48: 0.11 | O48: 66.17 | Q48: 0.08 | S48: DigitalFire
A49: KonaF-4 | B49: 518.83 | C49: 99.9 | D49: 4.8 | E49: 6.9 | G49: 1.7 | L49: 19.6 | O49: 66.7 | Q49: 0.2 | S49: DigitalFire
A50: Leucite | C50: 100 | D50: 21.59 | L50: 23.36 | O50: 55.05
A51: Li2O | C51: 100 | F51: 100
A52: LiCarb | C52: 100 | F52: 40.74 | Q52: 59.26 | S52: DigitalFire
A53: LiSilicate | B53: 90 | C53: 100 | F53: 33.222 | O53: 66.778
A54: Macaloid | C54: 99.7 | E54: 3.2 | F54: 1.3 | G54: 5.5 | I54: 22.7 | L54: 0.8 | M54: 0.3 | O54: 53.2 | Q54: 12.7 | S54: DigitalFire
A55: MgCarb | C55: 99.99 | I55: 43.09 | Q55: 37.64 | R55: 19.26 | S55: DigitalFire
A56: MgO | C56: 100 | I56: 100
A57: Mahavir Feldspar | C57: 99.88 | D57: 11.5 | E57: 3 | G57: 0.15 | I57: 0.15 | L57: 17.5 | M57: 0.08 | O57: 67 | Q57: 0.5 | S57: DigitalFire
A58: Minspar 200 | B58: 568.06 | C58: 99.47 | D58: 4.1 | E58: 6.5 | G58: 1.5 | L58: 18.2 | M58: 0.07 | O58: 68.8 | Q58: 0.3 | S58: DigitalFire
A59: MnCarb | C59: 0
A60: MnO2 | C60: 0
A61: Na2CO3 | B61: 106 | C61: 100 | E61: 50 | Q61: 50 | S61: DigitalFire
A62: Na2O | C62: 100 | E62: 100
A63: NaFeld | B63: 524.6 | C63: 100 | E63: 11.82 | L63: 19.44 | O63: 68.74
A64: NephelineSyenite | B64: 404.8 | C64: 99.97 | D64: 4.8 | E64: 10.5 | G64: 0.35 | I64: 0.02 | L64: 23.6 | M64: 0.08 | O64: 60.2 | Q64: 0.42
A65: NiCarb
A66: OldHick | C66: =SUM(D66:R66) -> 89.37 | D66: 1.62 | L66: 28.2 | M66: 1.12 | O66: 56.9 | P66: 1.53
A67: OM4 | B67: 365.59 | C67: =SUM(D67:R67) -> 100.6 | D67: 1.1 | E67: 0.2 | G67: 0.2 | I67: 0.5 | L67: 26.3 | M67: 1.3 | O67: 59.7 | P67: 2 | Q67: 9.3 | S67: DigitalFire
A68: P2O5
A69: Petalite | B69: 655.86 | C69: =SUM(D69:R69) -> 100.01 | F69: 4.87 | L69: 16.65 | O69: 78.49 | S69: DigitalFire
A70: PlVit | C70: 100 | D70: 5 | E70: 0.9 | G70: 1 | I70: 0.5 | L70: 12.7 | M70: 0.5 | O70: 76.5 | P70: 0.1 | Q70: 2.8 | S70: DigitalFire
A71: Redart | B71: 626.27 | C71: 99.78 | D71: 4.15 | E71: 0.38 | G71: 0.26 | I71: 1.59 | L71: 15.51 | M71: 7.05 | O71: 64.95 | P71: 1.09 | Q71: 4.8 | S71: DigitalFire
A72: Rutile | C72: 100.1 | M72: 10 | P72: 90 | R72: 0.1 | S72: DigitalFire
A73: Silica | B73: 60.06 | C73: 100 | O73: 100
A74: SiO2 | C74: 100 | O74: 100
A75: Spodumene | B75: 376.28 | C75: 99.87 | D75: 0.15 | E75: 0.15 | F75: 7.7 | G75: 0.03 | L75: 26.77 | M75: 0.09 | O75: 64.97 | P75: 0.01 | S75: GlazeMaster (Gwalia)
A76: SrCarb | C76: 100 | H76: 70.2 | Q76: 29.8 | S76: DigitalFire
A77: SrO | C77: 100 | H77: 100
A78: Superpax | C78: 32.79 | O78: 32.79 | S78: DigitalFire
A79: Talc - NYTAL | C79: 99.84 | E79: 0.34 | G79: 8.42 | I79: 30 | L79: 0.31 | M79: 0.16 | O79: 55.2 | Q79: 5.41 | S79: GlazeMaster
A80: Talc - Texas | B80: 132.16 | C80: 99.7 | D80: 0.3 | G80: 3.5 | I80: 29.5 | L80: 0.3 | M80: 0.5 | O80: 53.5 | P80: 0.1 | R80: 12 | S80: DigitalFire (Amtalc C98)
A81: TinOxide
A82: TiO2 | C82: =SUM(D82:R82) -> 100 | P82: 100
A83: Ultrox | C83: 35 | O83: 35 | S83: DigitalFire
A84: Veegum | C84: 0
A85: VolAsh | C85: 98.45 | D85: 4.5 | E85: 3.6 | G85: 1 | I85: 0.35 | L85: 13 | M85: 3 | O85: 73
A86: Westex Talc | B86: 141.42 | C86: 100 | D86: 1 | E86: 0.9 | G86: 2.9 | I86: 25.4 | L86: 0.35 | M86: 0.5 | O86: 57.3 | Q86: 7.35 | R86: 4.3 | S86: Digitalfire
A87: Whiting | C87: 100 | G87: 56.1 | Q87: 43.9 | S87: Digitalfire
A88: Wollastonite | B88: 116.17 | C88: 100 | G88: 48.28 | O88: 51.72 | S88: Digitalfire
A89: Yellow Ochre
A90: Zircopax | C90: =SUM(D90:R90) -> 32.79 | O90: 32.79 | S90: DigitalFire
A91: ZnO | C91: =SUM(D91:R91) -> 100 | J91: 100

Sheet Revisions
A1: version 1.91 | C1: %Analysis page updated by Dick White
